Workbook

Sheet CAMP PILOTO EVOL
A1: ATUALIZADA EM: 10/12/25 12:14:48 | D1: OK | F1: DIF. LIDER | G1: DIF. 5º | H1: DIF. PRÓXIMO | I1: OK | K1: DIF. LIDER | L1: DIF. 5º | M1: DIF. PRÓXIMO | N1: OK | P1: DIF. LIDER | Q1: DIF. 5º | R1: DIF. PRÓXIMO | S1: OK | U1: DIF. LIDER | V1: DIF. 5º | W1: DIF. PRÓXIMO | X1: OK | Z1: DIF. LIDER | AA1: DIF. 5º | AB1: DIF. PRÓXIMO | AC1: OK | AE1: DIF. LIDER | AF1: DIF. 5º | AG1: DIF. PRÓXIMO | AH1: OK | AJ1: DIF. LIDER | AK1: DIF. 5º | AL1: DIF. PRÓXIMO | AM1: OK | AO1: DIF. LIDER | AP1: DIF. 5º | AQ1: DIF. PRÓXIMO | AR1: OK | AT1: DIF. LIDER | AU1: DIF. 5º | AV1: DIF. PRÓXIMO | AW1: OK | AY1: DIF. LIDER | AZ1: DIF. 5º | BA1: DIF. PRÓXIMO | BB1: OK | BD1: DIF. LIDER | BE1: DIF. 5º | BF1: DIF. PRÓXIMO | BG1: OK | BI1: DIF. LIDER | BJ1: DIF. 5º | BK1: DIF. PRÓXIMO
D2: 1ª etapa | I2: 2ª etapa | N2: 3ª etapa | S2: 4ª etapa | X2: 5ª etapa | AC2: 6ª etapa | AH2: 7ª etapa | AM2: 8ª etapa | AR2: 9ª etapa | AW2: 10ª etapa | BB2: 11ª etapa | BG2: 12ª etapa
D3: 2025-02-09 | I3: 2025-02-23 | N3: 2025-03-16 | S3: 2025-04-13 | X3: 2025-05-18 | AC3: 2025-06-15 | AH3: 2025-07-13 | AM3: 2025-08-17 | AR3: 2025-09-14 | AW3: 2025-10-12 | BB3: 2025-11-09 | BG3: 2025-12-07
B4: Nome do (a) Piloto (a) | D4: PILOTO | E4: PONTOS | I4: PILOTO | J4: PONTOS | N4: PILOTO | O4: PONTOS | S4: PILOTO | T4: PONTOS | X4: PILOTO | Y4: PONTOS | AC4: PILOTO | AD4: PONTOS | AH4: PILOTO | AI4: PONTOS | AM4: PILOTO | AN4: PONTOS | AR4: PILOTO | AS4: PONTOS | AW4: PILOTO | AX4: PONTOS | BB4: PILOTO | BC4: PONTOS | BG4: PILOTO | BH4: PONTOS
A5: X | B5: Maria Borges | C5: 147 | D5: Léo Dumont | E5: 20 | F5: - | G5: - | H5: - | I5: Maria Borges | J5: 34 | K5: - | L5: - | M5: - | N5: Maria Borges | O5: 50 | P5: - | Q5: - | R5: - | S5: Léo Dumont | T5: 65 | U5: - | V5: - | W5: - | X5: Maria Borges | Y5: 74 | Z5: - | AA5: - | AB5: - | AC5: Maria Borges | AD5: 69 | AE5: - | AF5: - | AG5: - | AH5: Maria Borges | AI5: 86 | AJ5: - | AK5: - | AL5: - | AM5: Maria Borges | AN5: 103 | AO5: - | AP5: - | AQ5: - | AR5: Maria Borges | AS5: 116 | AT5: - | AU5: - | AV5: - | AW5: Maria Borges | AX5: 124 | AY5: - | AZ5: - | BA5: - | BB5: Maria Borges | BC5: 132 | BD5: - | BE5: - | BF5: - | BG5: Maria Borges | BH5: 147 | BI5: - | BJ5: - | BK5: -
A6: X | B6: Christofer Laguna | C6: 141 | D6: Maria Borges | E6: 17 | F6: =E$5-E6 -> 3 | G6: - | H6: =E5-E6 -> 3 | I6: Léo Dumont | J6: 31 | K6: =J$5-J6 -> 3 | L6: - | M6: =J5-J6 -> 3 | N6: Léo Dumont | O6: 44 | P6: =O$5-O6 -> 6 | Q6: - | R6: =O5-O6 -> 6 | S6: Maria Borges | T6: 54 | U6: =T$5-T6 -> 11 | V6: - | W6: =T5-T6 -> 11 | X6: Léo Dumont | Y6: 70 | Z6: =Y$5-Y6 -> 4 | AA6: - | AB6: =Y5-Y6 -> 4 | AC6: Léo Dumont | AD6: 65 | AE6: =AD$5-AD6 -> 4 | AF6: - | AG6: =AD5-AD6 -> 4 | AH6: Léo Dumont | AI6: 72 | AJ6: =AI$5-AI6 -> 14 | AK6: - | AL6: =AI5-AI6 -> 14 | AM6: Christofer Laguna | AN6: 90 | AO6: =AN$5-AN6 -> 13 | AP6: - | AQ6: =AN5-AN6 -> 13 | AR6: Christofer Laguna | AS6: 100 | AT6: =AS$5-AS6 -> 16 | AU6: - | AV6: =AS5-AS6 -> 16 | AW6: Christofer Laguna | AX6: 101 | AY6: =AX$5-AX6 -> 23 | AZ6: - | BA6: =AX5-AX6 -> 23 | BB6: Christofer Laguna | BC6: 120 | BD6: =BC$5-BC6 -> 12 | BE6: - | BF6: =BC5-BC6 -> 12 | BG6: Christofer Laguna | BH6: 141 | BI6: =BH$5-BH6 -> 6 | BJ6: - | BK6: =BH5-BH6 -> 6
A7: X | B7: Guilherme Rodrigues | C7: 112 | D7: Will Francino | E7: 15 | F7: =E$5-E7 -> 5 | G7: - | H7: =E6-E7 -> 2 | I7: Marcelo Almeida | J7: 24 | K7: =J$5-J7 -> 10 | L7: - | M7: =J6-J7 -> 7 | N7: Marcelo Almeida | O7: 34 | P7: =O$5-O7 -> 16 | Q7: - | R7: =O6-O7 -> 10 | S7: Christofer Laguna | T7: 40 | U7: =T$5-T7 -> 25 | V7: - | W7: =T6-T7 -> 14 | X7: Christofer Laguna | Y7: 53 | Z7: =Y$5-Y7 -> 21 | AA7: - | AB7: =Y6-Y7 -> 17 | AC7: Christofer Laguna | AD7: 54 | AE7: =AD$5-AD7 -> 15 | AF7: - | AG7: =AD6-AD7 -> 11 | AH7: Christofer Laguna | AI7: 69 | AJ7: =AI$5-AI7 -> 17 | AK7: - | AL7: =AI6-AI7 -> 3 | AM7: Léo Dumont | AN7: 87 | AO7: =AN$5-AN7 -> 16 | AP7: - | AQ7: =AN6-AN7 -> 3 | AR7: Léo Dumont | AS7: 92 | AT7: =AS$5-AS7 -> 24 | AU7: - | AV7: =AS6-AS7 -> 8 | AW7: Léo Dumont | AX7: 90 | AY7: =AX$5-AX7 -> 34 | AZ7: - | BA7: =AX6-AX7 -> 11 | BB7: Guilherme Rodrigues | BC7: 96 | BD7: =BC$5-BC7 -> 36 | BE7: - | BF7: =BC6-BC7 -> 24 | BG7: Guilherme Rodrigues | BH7: 112 | BI7: =BH$5-BH7 -> 35 | BJ7: - | BK7: =BH6-BH7 -> 29
A8: X | B8: Eduardo Vitol | C8: 97 | D8: Christofer Laguna | E8: 13 | F8: =E$5-E8 -> 7 | G8: - | H8: =E7-E8 -> 2 | I8: Guilherme Rodrigues | J8: 20 | K8: =J$5-J8 -> 14 | L8: - | M8: =J7-J8 -> 4 | N8: Christofer Laguna | O8: 33 | P8: =O$5-O8 -> 17 | Q8: - | R8: =O7-O8 -> 1 | S8: Marcelo Almeida | T8: 40 | U8: =T$5-T8 -> 25 | V8: - | W8: =T7-T8 -> 0 | X8: Ludving Mendez | Y8: 46 | Z8: =Y$5-Y8 -> 28 | AA8: - | AB8: =Y7-Y8 -> 7 | AC8: Ludving Mendez | AD8: 46 | AE8: =AD$5-AD8 -> 23 | AF8: - | AG8: =AD7-AD8 -> 8 | AH8: Igor Helmold | AI8: 48 | AJ8: =AI$5-AI8 -> 38 | AK8: - | AL8: =AI7-AI8 -> 21 | AM8: Igor Helmold | AN8: 58 | AO8: =AN$5-AN8 -> 45 | AP8: - | AQ8: =AN7-AN8 -> 29 | AR8: Guilherme Rodrigues | AS8: 68 | AT8: =AS$5-AS8 -> 48 | AU8: - | AV8: =AS7-AS8 -> 24 | AW8: Guilherme Rodrigues | AX8: 85 | AY8: =AX$5-AX8 -> 39 | AZ8: - | BA8: =AX7-AX8 -> 5 | BB8: Léo Dumont | BC8: 88 | BD8: =BC$5-BC8 -> 44 | BE8: - | BF8: =BC7-BC8 -> 8 | BG8: Eduardo Vitol | BH8: 97 | BI8: =BH$5-BH8 -> 50 | BJ8: - | BK8: =BH7-BH8 -> 15
A9: X | B9: Léo Dumont | C9: 85 | D9: Marcelo Almeida | E9: 11 | F9: =E$5-E9 -> 9 | G9: - | H9: =E8-E9 -> 2 | I9: Ludving Mendez | J9: 20 | K9: =J$5-J9 -> 14 | L9: - | M9: =J8-J9 -> 0 | N9: Reila Ricardo | O9: 31 | P9: =O$5-O9 -> 19 | Q9: - | R9: =O8-O9 -> 2 | S9: Reila Ricardo | T9: 32 | U9: =T$5-T9 -> 33 | V9: - | W9: =T8-T9 -> 8 | X9: Eduardo Vitol | Y9: 42 | Z9: =Y$5-Y9 -> 32 | AA9: - | AB9: =Y8-Y9 -> 4 | AC9: Gustavo Reis | AD9: 39 | AE9: =AD$5-AD9 -> 30 | AF9: - | AG9: =AD8-AD9 -> 7 | AH9: Ludving Mendez | AI9: 47 | AJ9: =AI$5-AI9 -> 39 | AK9: - | AL9: =AI8-AI9 -> 1 | AM9: Guilherme Rodrigues | AN9: 51 | AO9: =AN$5-AN9 -> 52 | AP9: - | AQ9: =AN8-AN9 -> 7 | AR9: Igor Helmold | AS9: 67 | AT9: =AS$5-AS9 -> 49 | AU9: - | AV9: =AS8-AS9 -> 1 | AW9: Eduardo Vitol | AX9: 73 | AY9: =AX$5-AX9 -> 51 | AZ9: - | BA9: =AX8-AX9 -> 12 | BB9: Eduardo Vitol | BC9: 86 | BD9: =BC$5-BC9 -> 46 | BE9: - | BF9: =BC8-BC9 -> 2 | BG9: Léo Dumont | BH9: 85 | BI9: =BH$5-BH9 -> 62 | BJ9: - | BK9: =BH8-BH9 -> 12
B10: Igor Helmold | C10: 81 | D10: Ludving Mendez | E10: 10 | F10: =E$5-E10 -> 10 | G10: =E$9-E10 -> 1 | H10: =E9-E10 -> 1 | I10: Gislei Silva | J10: 17 | K10: =J$5-J10 -> 17 | L10: =J$9-J10 -> 3 | M10: =J9-J10 -> 3 | N10: Ludving Mendez | O10: 31 | P10: =O$5-O10 -> 19 | Q10: =O$9-O10 -> 0 | R10: =O9-O10 -> 0 | S10: Eduardo Vitol | T10: 32 | U10: =T$5-T10 -> 33 | V10: =T$9-T10 -> 0 | W10: =T9-T10 -> 0 | X10: Marcelo Almeida | Y10: 40 | Z10: =Y$5-Y10 -> 34 | AA10: =Y$9-Y10 -> 2 | AB10: =Y9-Y10 -> 2 | AC10: Marcelo Almeida | AD10: 39 | AE10: =AD$5-AD10 -> 30 | AF10: =AD$9-AD10 -> 0 | AG10: =AD9-AD10 -> 0 | AH10: Eduardo Vitol | AI10: 44 | AJ10: =AI$5-AI10 -> 42 | AK10: =AI$9-AI10 -> 3 | AL10: =AI9-AI10 -> 3 | AM10: Eduardo Vitol | AN10: 49 | AO10: =AN$5-AN10 -> 54 | AP10: =AN$9-AN10 -> 2 | AQ10: =AN9-AN10 -> 2 | AR10: Eduardo Vitol | AS10: 60 | AT10: =AS$5-AS10 -> 56 | AU10: =AS$9-AS10 -> 7 | AV10: =AS9-AS10 -> 7 | AW10: Igor Helmold | AX10: 72 | AY10: =AX$5-AX10 -> 52 | AZ10: =AX$9-AX10 -> 1 | BA10: =AX9-AX10 -> 1 | BB10: Igor Helmold | BC10: 82 | BD10: =BC$5-BC10 -> 50 | BE10: =BC$9-BC10 -> 4 | BF10: =BC9-BC10 -> 4 | BG10: Igor Helmold | BH10: 81 | BI10: =BH$5-BH10 -> 66 | BJ10: =BH$9-BH10 -> 4 | BK10: =BH9-BH10 -> 4
B11: Matheus Sarmento | C11: 65 | D11: Eduardo Vitol | E11: 9 | F11: =E$5-E11 -> 11 | G11: =E$9-E11 -> 2 | H11: =E10-E11 -> 1 | I11: Eduardo Vitol | J11: 14 | K11: =J$5-J11 -> 20 | L11: =J$9-J11 -> 6 | M11: =J10-J11 -> 3 | N11: Gislei Silva | O11: 26 | P11: =O$5-O11 -> 24 | Q11: =O$9-O11 -> 5 | R11: =O10-O11 -> 5 | S11: Ludving Mendez | T11: 31 | U11: =T$5-T11 -> 34 | V11: =T$9-T11 -> 1 | W11: =T10-T11 -> 1 | X11: Reila Ricardo | Y11: 33 | Z11: =Y$5-Y11 -> 41 | AA11: =Y$9-Y11 -> 9 | AB11: =Y10-Y11 -> 7 | AC11: Igor Helmold | AD11: 37 | AE11: =AD$5-AD11 -> 32 | AF11: =AD$9-AD11 -> 2 | AG11: =AD10-AD11 -> 2 | AH11: Guilherme Rodrigues | AI11: 40 | AJ11: =AI$5-AI11 -> 46 | AK11: =AI$9-AI11 -> 7 | AL11: =AI10-AI11 -> 4 | AM11: Ludving Mendez | AN11: 47 | AO11: =AN$5-AN11 -> 56 | AP11: =AN$9-AN11 -> 4 | AQ11: =AN10-AN11 -> 2 | AR11: Ludving Mendez | AS11: 47 | AT11: =AS$5-AS11 -> 69 | AU11: =AS$9-AS11 -> 20 | AV11: =AS10-AS11 -> 13 | AW11: Augusto Lopes | AX11: 57 | AY11: =AX$5-AX11 -> 67 | AZ11: =AX$9-AX11 -> 16 | BA11: =AX10-AX11 -> 15 | BB11: Augusto Lopes | BC11: 63 | BD11: =BC$5-BC11 -> 69 | BE11: =BC$9-BC11 -> 23 | BF11: =BC10-BC11 -> 19 | BG11: Matheus Sarmento | BH11: 65 | BI11: =BH$5-BH11 -> 82 | BJ11: =BH$9-BH11 -> 20 | BK11: =BH10-BH11 -> 16
B12: Augusto Lopes | C12: 61 | D12: Reila Ricardo | E12: 8 | F12: =E$5-E12 -> 12 | G12: =E$9-E12 -> 3 | H12: =E11-E12 -> 1 | I12: Marcus Brum | J12: 14 | K12: =J$5-J12 -> 20 | L12: =J$9-J12 -> 6 | M12: =J11-J12 -> 0 | N12: Guilherme Rodrigues | O12: 21 | P12: =O$5-O12 -> 29 | Q12: =O$9-O12 -> 10 | R12: =O11-O12 -> 5 | S12: Gislei Silva | T12: 29 | U12: =T$5-T12 -> 36 | V12: =T$9-T12 -> 3 | W12: =T11-T12 -> 2 | X12: Gislei Silva | Y12: 32 | Z12: =Y$5-Y12 -> 42 | AA12: =Y$9-Y12 -> 10 | AB12: =Y11-Y12 -> 1 | AC12: Eduardo Vitol | AD12: 37 | AE12: =AD$5-AD12 -> 32 | AF12: =AD$9-AD12 -> 2 | AG12: =AD11-AD12 -> 0 | AH12: Marcelo Almeida | AI12: 39 | AJ12: =AI$5-AI12 -> 47 | AK12: =AI$9-AI12 -> 8 | AL12: =AI11-AI12 -> 1 | AM12: Gustavo Reis | AN12: 40 | AO12: =AN$5-AN12 -> 63 | AP12: =AN$9-AN12 -> 11 | AQ12: =AN11-AN12 -> 7 | AR12: Rodrigo Mendonça | AS12: 45 | AT12: =AS$5-AS12 -> 71 | AU12: =AS$9-AS12 -> 22 | AV12: =AS11-AS12 -> 2 | AW12: Reila Ricardo | AX12: 52 | AY12: =AX$5-AX12 -> 72 | AZ12: =AX$9-AX12 -> 21 | BA12: =AX11-AX12 -> 5 | BB12: Marcus Brum | BC12: 58 | BD12: =BC$5-BC12 -> 74 | BE12: =BC$9-BC12 -> 28 | BF12: =BC11-BC12 -> 5 | BG12: Augusto Lopes | BH12: 61 | BI12: =BH$5-BH12 -> 86 | BJ12: =BH$9-BH12 -> 24 | BK12: =BH11-BH12 -> 4
B13: Reila Ricardo | C13: 60 | D13: Matheus Sarmento | E13: 7 | F13: =E$5-E13 -> 13 | G13: =E$9-E13 -> 4 | H13: =E12-E13 -> 1 | I13: Reila Ricardo | J13: 14 | K13: =J$5-J13 -> 20 | L13: =J$9-J13 -> 6 | M13: =J12-J13 -> 0 | N13: Eduardo Vitol | O13: 19 | P13: =O$5-O13 -> 31 | Q13: =O$9-O13 -> 12 | R13: =O12-O13 -> 2 | S13: Marcus Brum | T13: 27 | U13: =T$5-T13 -> 38 | V13: =T$9-T13 -> 5 | W13: =T12-T13 -> 2 | X13: Guilherme Rodrigues | Y13: 28 | Z13: =Y$5-Y13 -> 46 | AA13: =Y$9-Y13 -> 14 | AB13: =Y12-Y13 -> 4 | AC13: Gislei Silva | AD13: 34 | AE13: =AD$5-AD13 -> 35 | AF13: =AD$9-AD13 -> 5 | AG13: =AD12-AD13 -> 3 | AH13: Gustavo Reis | AI13: 36 | AJ13: =AI$5-AI13 -> 50 | AK13: =AI$9-AI13 -> 11 | AL13: =AI12-AI13 -> 3 | AM13: Marcelo Almeida | AN13: 39 | AO13: =AN$5-AN13 -> 64 | AP13: =AN$9-AN13 -> 12 | AQ13: =AN12-AN13 -> 1 | AR13: Gislei Silva | AS13: 41 | AT13: =AS$5-AS13 -> 75 | AU13: =AS$9-AS13 -> 26 | AV13: =AS12-AS13 -> 4 | AW13: Rodrigo Mendonça | AX13: 45 | AY13: =AX$5-AX13 -> 79 | AZ13: =AX$9-AX13 -> 28 | BA13: =AX12-AX13 -> 7 | BB13: Leonardo Sousa | BC13: 57 | BD13: =BC$5-BC13 -> 75 | BE13: =BC$9-BC13 -> 29 | BF13: =BC12-BC13 -> 1 | BG13: Reila Ricardo | BH13: 60 | BI13: =BH$5-BH13 -> 87 | BJ13: =BH$9-BH13 -> 25 | BK13: =BH12-BH13 -> 1
B14: Marcus Brum | C14: 58 | D14: Marcus Brum | E14: 6 | F14: =E$5-E14 -> 14 | G14: =E$9-E14 -> 5 | H14: =E13-E14 -> 1 | I14: Christofer Laguna | J14: 13 | K14: =J$5-J14 -> 21 | L14: =J$9-J14 -> 7 | M14: =J13-J14 -> 1 | N14: Marcus Brum | O14: 16 | P14: =O$5-O14 -> 34 | Q14: =O$9-O14 -> 15 | R14: =O13-O14 -> 3 | S14: Guilherme Rodrigues | T14: 21 | U14: =T$5-T14 -> 44 | V14: =T$9-T14 -> 11 | W14: =T13-T14 -> 6 | X14: Marcus Brum | Y14: 28 | Z14: =Y$5-Y14 -> 46 | AA14: =Y$9-Y14 -> 14 | AB14: =Y13-Y14 -> 0 | AC14: Bruno Botelho | AD14: 34 | AE14: =AD$5-AD14 -> 35 | AF14: =AD$9-AD14 -> 5 | AG14: =AD13-AD14 -> 0 | AH14: Gislei Silva | AI14: 36 | AJ14: =AI$5-AI14 -> 50 | AK14: =AI$9-AI14 -> 11 | AL14: =AI13-AI14 -> 0 | AM14: Augusto Lopes | AN14: 37 | AO14: =AN$5-AN14 -> 66 | AP14: =AN$9-AN14 -> 14 | AQ14: =AN13-AN14 -> 2 | AR14: Reila Ricardo | AS14: 41 | AT14: =AS$5-AS14 -> 75 | AU14: =AS$9-AS14 -> 26 | AV14: =AS13-AS14 -> 0 | AW14: Gislei Silva | AX14: 44 | AY14: =AX$5-AX14 -> 80 | AZ14: =AX$9-AX14 -> 29 | BA14: =AX13-AX14 -> 1 | BB14: Reila Ricardo | BC14: 53 | BD14: =BC$5-BC14 -> 79 | BE14: =BC$9-BC14 -> 33 | BF14: =BC13-BC14 -> 4 | BG14: Marcus Brum | BH14: 58 | BI14: =BH$5-BH14 -> 89 | BJ14: =BH$9-BH14 -> 27 | BK14: =BH13-BH14 -> 2
B15: Leonardo Sousa | C15: 54 | D15: Guilherme Rodrigues | E15: 5 | F15: =E$5-E15 -> 15 | G15: =E$9-E15 -> 6 | H15: =E14-E15 -> 1 | I15: Will Francino | J15: 11 | K15: =J$5-J15 -> 23 | L15: =J$9-J15 -> 9 | M15: =J14-J15 -> 2 | N15: Thiago Alves | O15: 12 | P15: =O$5-O15 -> 38 | Q15: =O$9-O15 -> 19 | R15: =O14-O15 -> 4 | S15: Gustavo Reis | T15: 20 | U15: =T$5-T15 -> 45 | V15: =T$9-T15 -> 12 | W15: =T14-T15 -> 1 | X15: Igor Helmold | Y15: 25 | Z15: =Y$5-Y15 -> 49 | AA15: =Y$9-Y15 -> 17 | AB15: =Y14-Y15 -> 3 | AC15: Reila Ricardo | AD15: 31 | AE15: =AD$5-AD15 -> 38 | AF15: =AD$9-AD15 -> 8 | AG15: =AD14-AD15 -> 3 | AH15: Bruno Botelho | AI15: 35 | AJ15: =AI$5-AI15 -> 51 | AK15: =AI$9-AI15 -> 12 | AL15: =AI14-AI15 -> 1 | AM15: Reila Ricardo | AN15: 37 | AO15: =AN$5-AN15 -> 66 | AP15: =AN$9-AN15 -> 14 | AQ15: =AN14-AN15 -> 0 | AR15: Gustavo Reis | AS15: 39 | AT15: =AS$5-AS15 -> 77 | AU15: =AS$9-AS15 -> 28 | AV15: =AS14-AS15 -> 2 | AW15: Ludving Mendez | AX15: 44 | AY15: =AX$5-AX15 -> 80 | AZ15: =AX$9-AX15 -> 29 | BA15: =AX14-AX15 -> 0 | BB15: Matheus Sarmento | BC15: 52 | BD15: =BC$5-BC15 -> 80 | BE15: =BC$9-BC15 -> 34 | BF15: =BC14-BC15 -> 1 | BG15: Leonardo Sousa | BH15: 54 | BI15: =BH$5-BH15 -> 93 | BJ15: =BH$9-BH15 -> 31 | BK15: =BH14-BH15 -> 4
B16: Henrique Sarmento | C16: 52 | D16: Bernardo Veloso | E16: 4 | F16: =E$5-E16 -> 16 | G16: =E$9-E16 -> 7 | H16: =E15-E16 -> 1 | I16: Matheus Sarmento | J16: 8 | K16: =J$5-J16 -> 26 | L16: =J$9-J16 -> 12 | M16: =J15-J16 -> 3 | N16: Bruno Botelho | O16: 12 | P16: =O$5-O16 -> 38 | Q16: =O$9-O16 -> 19 | R16: =O15-O16 -> 0 | S16: Bruno Botelho | T16: 20 | U16: =T$5-T16 -> 45 | V16: =T$9-T16 -> 12 | W16: =T15-T16 -> 0 | X16: Leonardo Sousa | Y16: 21 | Z16: =Y$5-Y16 -> 53 | AA16: =Y$9-Y16 -> 21 | AB16: =Y15-Y16 -> 4 | AC16: Guilherme Rodrigues | AD16: 27 | AE16: =AD$5-AD16 -> 42 | AF16: =AD$9-AD16 -> 12 | AG16: =AD15-AD16 -> 4 | AH16: Reila Ricardo | AI16: 32 | AJ16: =AI$5-AI16 -> 54 | AK16: =AI$9-AI16 -> 15 | AL16: =AI15-AI16 -> 3 | AM16: Gislei Silva | AN16: 34 | AO16: =AN$5-AN16 -> 69 | AP16: =AN$9-AN16 -> 17 | AQ16: =AN15-AN16 -> 3 | AR16: Marcelo Almeida | AS16: 39 | AT16: =AS$5-AS16 -> 77 | AU16: =AS$9-AS16 -> 28 | AV16: =AS15-AS16 -> 0 | AW16: Marcus Brum | AX16: 43 | AY16: =AX$5-AX16 -> 81 | AZ16: =AX$9-AX16 -> 30 | BA16: =AX15-AX16 -> 1 | BB16: Rodrigo Mendonça | BC16: 49 | BD16: =BC$5-BC16 -> 83 | BE16: =BC$9-BC16 -> 37 | BF16: =BC15-BC16 -> 3 | BG16: Henrique Sarmento | BH16: 52 | BI16: =BH$5-BH16 -> 95 | BJ16: =BH$9-BH16 -> 33 | BK16: =BH15-BH16 -> 2
B17: Ilton Sarmento | C17: 48 | D17: Leonardo Sousa | E17: 3 | F17: =E$5-E17 -> 17 | G17: =E$9-E17 -> 8 | H17: =E16-E17 -> 1 | I17: Bruno Botelho | J17: 8 | K17: =J$5-J17 -> 26 | L17: =J$9-J17 -> 12 | M17: =J16-J17 -> 0 | N17: Will Francino | O17: 11 | P17: =O$5-O17 -> 39 | Q17: =O$9-O17 -> 20 | R17: =O16-O17 -> 1 | S17: Leonardo Sousa | T17: 18 | U17: =T$5-T17 -> 47 | V17: =T$9-T17 -> 14 | W17: =T16-T17 -> 2 | X17: Bruno Botelho | Y17: 20 | Z17: =Y$5-Y17 -> 54 | AA17: =Y$9-Y17 -> 22 | AB17: =Y16-Y17 -> 1 | AC17: Marcus Brum | AD17: 26 | AE17: =AD$5-AD17 -> 43 | AF17: =AD$9-AD17 -> 13 | AG17: =AD16-AD17 -> 1 | AH17: Rodrigo Mendonça | AI17: 27 | AJ17: =AI$5-AI17 -> 59 | AK17: =AI$9-AI17 -> 20 | AL17: =AI16-AI17 -> 5 | AM17: Bruno Botelho | AN17: 34 | AO17: =AN$5-AN17 -> 69 | AP17: =AN$9-AN17 -> 17 | AQ17: =AN16-AN17 -> 0 | AR17: Leonardo Sousa | AS17: 38 | AT17: =AS$5-AS17 -> 78 | AU17: =AS$9-AS17 -> 29 | AV17: =AS16-AS17 -> 1 | AW17: Matheus Sarmento | AX17: 43 | AY17: =AX$5-AX17 -> 81 | AZ17: =AX$9-AX17 -> 30 | BA17: =AX16-AX17 -> 0 | BB17: Gustavo Reis | BC17: 47 | BD17: =BC$5-BC17 -> 85 | BE17: =BC$9-BC17 -> 39 | BF17: =BC16-BC17 -> 2 | BG17: Ilton Sarmento | BH17: 48 | BI17: =BH$5-BH17 -> 99 | BJ17: =BH$9-BH17 -> 37 | BK17: =BH16-BH17 -> 4
B18: Rodrigo Mendonça | C18: 46 | D18: Bruno Gomes | E18: 1 | F18: =E$5-E18 -> 19 | G18: =E$9-E18 -> 10 | H18: =E17-E18 -> 2 | I18: Leonardo Sousa | J18: 8 | K18: =J$5-J18 -> 26 | L18: =J$9-J18 -> 12 | M18: =J17-J18 -> 0 | N18: Leonardo Sousa | O18: 9 | P18: =O$5-O18 -> 41 | Q18: =O$9-O18 -> 22 | R18: =O17-O18 -> 2 | S18: Igor Helmold | T18: 16 | U18: =T$5-T18 -> 49 | V18: =T$9-T18 -> 16 | W18: =T17-T18 -> 2 | X18: Matheus Sarmento | Y18: 18 | Z18: =Y$5-Y18 -> 56 | AA18: =Y$9-Y18 -> 24 | AB18: =Y17-Y18 -> 2 | AC18: Rodrigo Mendonça | AD18: 23 | AE18: =AD$5-AD18 -> 46 | AF18: =AD$9-AD18 -> 16 | AG18: =AD17-AD18 -> 3 | AH18: Marcus Brum | AI18: 27 | AJ18: =AI$5-AI18 -> 59 | AK18: =AI$9-AI18 -> 20 | AL18: =AI17-AI18 -> 0 | AM18: Matheus Sarmento | AN18: 31 | AO18: =AN$5-AN18 -> 72 | AP18: =AN$9-AN18 -> 20 | AQ18: =AN17-AN18 -> 3 | AR18: Augusto Lopes | AS18: 37 | AT18: =AS$5-AS18 -> 79 | AU18: =AS$9-AS18 -> 30 | AV18: =AS17-AS18 -> 1 | AW18: Bruno Botelho | AX18: 42 | AY18: =AX$5-AX18 -> 82 | AZ18: =AX$9-AX18 -> 31 | BA18: =AX17-AX18 -> 1 | BB18: Gislei Silva | BC18: 44 | BD18: =BC$5-BC18 -> 88 | BE18: =BC$9-BC18 -> 42 | BF18: =BC17-BC18 -> 3 | BG18: Rodrigo Mendonça | BH18: 46 | BI18: =BH$5-BH18 -> 101 | BJ18: =BH$9-BH18 -> 39 | BK18: =BH17-BH18 -> 2
B19: Gustavo Reis | C19: 44 | D19: Gustavo Reis | E19: 1 | F19: =E$5-E19 -> 19 | G19: =E$9-E19 -> 10 | H19: =E18-E19 -> 0 | I19: Thiago Alves | J19: 4 | K19: =J$5-J19 -> 30 | L19: =J$9-J19 -> 16 | M19: =J18-J19 -> 4 | N19: Matheus Sarmento | O19: 9 | P19: =O$5-O19 -> 41 | Q19: =O$9-O19 -> 22 | R19: =O18-O19 -> 0 | S19: Thiago Alves | T19: 14 | U19: =T$5-T19 -> 51 | V19: =T$9-T19 -> 18 | W19: =T18-T19 -> 2 | X19: Rodrigo Mendonça | Y19: 17 | Z19: =Y$5-Y19 -> 57 | AA19: =Y$9-Y19 -> 25 | AB19: =Y18-Y19 -> 1 | AC19: Thiago Alves | AD19: 18 | AE19: =AD$5-AD19 -> 51 | AF19: =AD$9-AD19 -> 21 | AG19: =AD18-AD19 -> 5 | AH19: Thiago Alves | AI19: 27 | AJ19: =AI$5-AI19 -> 59 | AK19: =AI$9-AI19 -> 20 | AL19: =AI18-AI19 -> 0 | AM19: Ilton Sarmento | AN19: 29 | AO19: =AN$5-AN19 -> 74 | AP19: =AN$9-AN19 -> 22 | AQ19: =AN18-AN19 -> 2 | AR19: Ilton Sarmento | AS19: 35 | AT19: =AS$5-AS19 -> 81 | AU19: =AS$9-AS19 -> 32 | AV19: =AS18-AS19 -> 2 | AW19: Ilton Sarmento | AX19: 41 | AY19: =AX$5-AX19 -> 83 | AZ19: =AX$9-AX19 -> 32 | BA19: =AX18-AX19 -> 1 | BB19: Bruno Botelho | BC19: 43 | BD19: =BC$5-BC19 -> 89 | BE19: =BC$9-BC19 -> 43 | BF19: =BC18-BC19 -> 1 | BG19: Gustavo Reis | BH19: 44 | BI19: =BH$5-BH19 -> 103 | BJ19: =BH$9-BH19 -> 41 | BK19: =BH18-BH19 -> 2
B20: Bruno Botelho | C20: 43 | D20: Marcelo Parizzi | E20: 1 | F20: =E$5-E20 -> 19 | G20: =E$9-E20 -> 10 | H20: =E19-E20 -> 0 | I20: Bernardo Veloso | J20: 4 | K20: =J$5-J20 -> 30 | L20: =J$9-J20 -> 16 | M20: =J19-J20 -> 0 | N20: Bernardo Veloso | O20: 5 | P20: =O$5-O20 -> 45 | Q20: =O$9-O20 -> 26 | R20: =O19-O20 -> 4 | S20: Marcelo Parizzi | T20: 12 | U20: =T$5-T20 -> 53 | V20: =T$9-T20 -> 20 | W20: =T19-T20 -> 2 | X20: Henrique Sarmento | Y20: 17 | Z20: =Y$5-Y20 -> 57 | AA20: =Y$9-Y20 -> 25 | AB20: =Y19-Y20 -> 0 | AC20: Leonardo Sousa | AD20: 18 | AE20: =AD$5-AD20 -> 51 | AF20: =AD$9-AD20 -> 21 | AG20: =AD19-AD20 -> 0 | AH20: Augusto Lopes | AI20: 24 | AJ20: =AI$5-AI20 -> 62 | AK20: =AI$9-AI20 -> 23 | AL20: =AI19-AI20 -> 3 | AM20: Marcus Brum | AN20: 27 | AO20: =AN$5-AN20 -> 76 | AP20: =AN$9-AN20 -> 24 | AQ20: =AN19-AN20 -> 2 | AR20: Bruno Botelho | AS20: 34 | AT20: =AS$5-AS20 -> 82 | AU20: =AS$9-AS20 -> 33 | AV20: =AS19-AS20 -> 1 | AW20: Gustavo Reis | AX20: 39 | AY20: =AX$5-AX20 -> 85 | AZ20: =AX$9-AX20 -> 34 | BA20: =AX19-AX20 -> 2 | BB20: Henrique Sarmento | BC20: 42 | BD20: =BC$5-BC20 -> 90 | BE20: =BC$9-BC20 -> 44 | BF20: =BC19-BC20 -> 1 | BG20: Bruno Botelho | BH20: 43 | BI20: =BH$5-BH20 -> 104 | BJ20: =BH$9-BH20 -> 42 | BK20: =BH19-BH20 -> 1
B21: Gislei Silva | C21: 41 | D21: Henrique Sarmento | E21: 1 | F21: =E$5-E21 -> 19 | G21: =E$9-E21 -> 10 | H21: =E20-E21 -> 0 | I21: Henrique Sarmento | J21: 4 | K21: =J$5-J21 -> 30 | L21: =J$9-J21 -> 16 | M21: =J20-J21 -> 0 | N21: Henrique Sarmento | O21: 5 | P21: =O$5-O21 -> 45 | Q21: =O$9-O21 -> 26 | R21: =O20-O21 -> 0 | S21: Will Francino | T21: 11 | U21: =T$5-T21 -> 54 | V21: =T$9-T21 -> 21 | W21: =T20-T21 -> 1 | X21: Thiago Alves | Y21: 16 | Z21: =Y$5-Y21 -> 58 | AA21: =Y$9-Y21 -> 26 | AB21: =Y20-Y21 -> 1 | AC21: Matheus Sarmento | AD21: 17 | AE21: =AD$5-AD21 -> 52 | AF21: =AD$9-AD21 -> 22 | AG21: =AD20-AD21 -> 1 | AH21: Henrique Sarmento | AI21: 24 | AJ21: =AI$5-AI21 -> 62 | AK21: =AI$9-AI21 -> 23 | AL21: =AI20-AI21 -> 0 | AM21: Thiago Alves | AN21: 27 | AO21: =AN$5-AN21 -> 76 | AP21: =AN$9-AN21 -> 24 | AQ21: =AN20-AN21 -> 0 | AR21: Matheus Sarmento | AS21: 33 | AT21: =AS$5-AS21 -> 83 | AU21: =AS$9-AS21 -> 34 | AV21: =AS20-AS21 -> 1 | AW21: Marcelo Almeida | AX21: 39 | AY21: =AX$5-AX21 -> 85 | AZ21: =AX$9-AX21 -> 34 | BA21: =AX20-AX21 -> 0 | BB21: Ilton Sarmento | BC21: 42 | BD21: =BC$5-BC21 -> 90 | BE21: =BC$9-BC21 -> 44 | BF21: =BC20-BC21 -> 0 | BG21: Gislei Silva | BH21: 41 | BI21: =BH$5-BH21 -> 106 | BJ21: =BH$9-BH21 -> 44 | BK21: =BH20-BH21 -> 2
B22: Ludving Mendez | C22: 38 | D22: Ronaldo Ribeiro | E22: 1 | F22: =E$5-E22 -> 19 | G22: =E$9-E22 -> 10 | H22: =E21-E22 -> 0 | I22: Ilton Sarmento | J22: 3 | K22: =J$5-J22 -> 31 | L22: =J$9-J22 -> 17 | M22: =J21-J22 -> 1 | N22: Ilton Sarmento | O22: 4 | P22: =O$5-O22 -> 46 | Q22: =O$9-O22 -> 27 | R22: =O21-O22 -> 1 | S22: Matheus Sarmento | T22: 10 | U22: =T$5-T22 -> 55 | V22: =T$9-T22 -> 22 | W22: =T21-T22 -> 1 | X22: Gustavo Reis | Y22: 15 | Z22: =Y$5-Y22 -> 59 | AA22: =Y$9-Y22 -> 27 | AB22: =Y21-Y22 -> 1 | AC22: Rafael Colen | AD22: 16 | AE22: =AD$5-AD22 -> 53 | AF22: =AD$9-AD22 -> 23 | AG22: =AD21-AD22 -> 1 | AH22: Matheus Sarmento | AI22: 23 | AJ22: =AI$5-AI22 -> 63 | AK22: =AI$9-AI22 -> 24 | AL22: =AI21-AI22 -> 1 | AM22: Henrique Sarmento | AN22: 26 | AO22: =AN$5-AN22 -> 77 | AP22: =AN$9-AN22 -> 25 | AQ22: =AN21-AN22 -> 1 | AR22: Marcus Brum | AS22: 28 | AT22: =AS$5-AS22 -> 88 | AU22: =AS$9-AS22 -> 39 | AV22: =AS21-AS22 -> 5 | AW22: Leonardo Sousa | AX22: 39 | AY22: =AX$5-AX22 -> 85 | AZ22: =AX$9-AX22 -> 34 | BA22: =AX21-AX22 -> 0 | BB22: Ludving Mendez | BC22: 41 | BD22: =BC$5-BC22 -> 91 | BE22: =BC$9-BC22 -> 45 | BF22: =BC21-BC22 -> 1 | BG22: Ludving Mendez | BH22: 38 | BI22: =BH$5-BH22 -> 109 | BJ22: =BH$9-BH22 -> 47 | BK22: =BH21-BH22 -> 3
B23: Silvano | C23: 37 | D23: Ilton Sarmento | E23: 1 | F23: =E$5-E23 -> 19 | G23: =E$9-E23 -> 10 | H23: =E22-E23 -> 0 | I23: Bruno Gomes | J23: 2 | K23: =J$5-J23 -> 32 | L23: =J$9-J23 -> 18 | M23: =J22-J23 -> 1 | N23: Gustavo Reis | O23: 3 | P23: =O$5-O23 -> 47 | Q23: =O$9-O23 -> 28 | R23: =O22-O23 -> 1 | S23: Ilton Sarmento | T23: 9 | U23: =T$5-T23 -> 56 | V23: =T$9-T23 -> 23 | W23: =T22-T23 -> 1 | X23: Will Francino | Y23: 13 | Z23: =Y$5-Y23 -> 61 | AA23: =Y$9-Y23 -> 29 | AB23: =Y22-Y23 -> 2 | AC23: Henrique Sarmento | AD23: 16 | AE23: =AD$5-AD23 -> 53 | AF23: =AD$9-AD23 -> 23 | AG23: =AD22-AD23 -> 0 | AH23: Ilton Sarmento | AI23: 20 | AJ23: =AI$5-AI23 -> 66 | AK23: =AI$9-AI23 -> 27 | AL23: =AI22-AI23 -> 3 | AM23: Leonardo Sousa | AN23: 25 | AO23: =AN$5-AN23 -> 78 | AP23: =AN$9-AN23 -> 26 | AQ23: =AN22-AN23 -> 1 | AR23: Henrique Sarmento | AS23: 28 | AT23: =AS$5-AS23 -> 88 | AU23: =AS$9-AS23 -> 39 | AV23: =AS22-AS23 -> 0 | AW23: Henrique Sarmento | AX23: 35 | AY23: =AX$5-AX23 -> 89 | AZ23: =AX$9-AX23 -> 38 | BA23: =AX22-AX23 -> 4 | BB23: Marcelo Almeida | BC23: 39 | BD23: =BC$5-BC23 -> 93 | BE23: =BC$9-BC23 -> 47 | BF23: =BC22-BC23 -> 2 | BG23: Silvano | BH23: 37 | BI23: =BH$5-BH23 -> 110 | BJ23: =BH$9-BH23 -> 48 | BK23: =BH22-BH23 -> 1
B24: Marcelo Almeida | C24: 36 | D24: Bruno Botelho | E24: 1 | F24: =E$5-E24 -> 19 | G24: =E$9-E24 -> 10 | H24: =E23-E24 -> 0 | I24: Enedson Gomes | J24: 1 | K24: =J$5-J24 -> 33 | L24: =J$9-J24 -> 19 | M24: =J23-J24 -> 1 | N24: Augusto Lopes | O24: 3 | P24: =O$5-O24 -> 47 | Q24: =O$9-O24 -> 28 | R24: =O23-O24 -> 0 | S24: Bernardo Veloso | T24: 6 | U24: =T$5-T24 -> 59 | V24: =T$9-T24 -> 26 | W24: =T23-T24 -> 3 | X24: Marcelo Parizzi | Y24: 12 | Z24: =Y$5-Y24 -> 62 | AA24: =Y$9-Y24 -> 30 | AB24: =Y23-Y24 -> 1 | AC24: Will Francino | AD24: 15 | AE24: =AD$5-AD24 -> 54 | AF24: =AD$9-AD24 -> 24 | AG24: =AD23-AD24 -> 1 | AH24: Rafael Colen | AI24: 19 | AJ24: =AI$5-AI24 -> 67 | AK24: =AI$9-AI24 -> 28 | AL24: =AI23-AI24 -> 1 | AM24: Rodrigo Mendonça | AN24: 24 | AO24: =AN$5-AN24 -> 79 | AP24: =AN$9-AN24 -> 27 | AQ24: =AN23-AN24 -> 1 | AR24: Rafael Colen | AS24: 27 | AT24: =AS$5-AS24 -> 89 | AU24: =AS$9-AS24 -> 40 | AV24: =AS23-AS24 -> 1 | AW24: Rafael Colen | AX24: 24 | AY24: =AX$5-AX24 -> 100 | AZ24: =AX$9-AX24 -> 49 | BA24: =AX23-AX24 -> 11 | BB24: Rafael Colen | BC24: 24 | BD24: =BC$5-BC24 -> 108 | BE24: =BC$9-BC24 -> 62 | BF24: =BC23-BC24 -> 15 | BG24: Marcelo Almeida | BH24: 36 | BI24: =BH$5-BH24 -> 111 | BJ24: =BH$9-BH24 -> 49 | BK24: =BH23-BH24 -> 1
B25: Rafael Colen | C25: 33 | D25: Gislei Silva | E25: 0 | F25: =E$5-E25 -> 20 | G25: =E$9-E25 -> 11 | H25: =E24-E25 -> 1 | I25: Marcelo Parizzi | J25: 1 | K25: =J$5-J25 -> 33 | L25: =J$9-J25 -> 19 | M25: =J24-J25 -> 0 | N25: Bruno Gomes | O25: 3 | P25: =O$5-O25 -> 47 | Q25: =O$9-O25 -> 28 | R25: =O24-O25 -> 0 | S25: Henrique Sarmento | T25: 6 | U25: =T$5-T25 -> 59 | V25: =T$9-T25 -> 26 | W25: =T24-T25 -> 0 | X25: Ilton Sarmento | Y25: 10 | Z25: =Y$5-Y25 -> 64 | AA25: =Y$9-Y25 -> 32 | AB25: =Y24-Y25 -> 2 | AC25: Marcelo Parizzi | AD25: 12 | AE25: =AD$5-AD25 -> 57 | AF25: =AD$9-AD25 -> 27 | AG25: =AD24-AD25 -> 3 | AH25: Leonardo Sousa | AI25: 18 | AJ25: =AI$5-AI25 -> 68 | AK25: =AI$9-AI25 -> 29 | AL25: =AI24-AI25 -> 1 | AM25: Rafael Colen | AN25: 22 | AO25: =AN$5-AN25 -> 81 | AP25: =AN$9-AN25 -> 29 | AQ25: =AN24-AN25 -> 2 | AR25: Thiago Alves | AS25: 27 | AT25: =AS$5-AS25 -> 89 | AU25: =AS$9-AS25 -> 40 | AV25: =AS24-AS25 -> 0 | AW25: Silvano | AX25: 24 | AY25: =AX$5-AX25 -> 100 | AZ25: =AX$9-AX25 -> 49 | BA25: =AX24-AX25 -> 0 | BB25: Silvano | BC25: 23 | BD25: =BC$5-BC25 -> 109 | BE25: =BC$9-BC25 -> 63 | BF25: =BC24-BC25 -> 1 | BG25: Rafael Colen | BH25: 33 | BI25: =BH$5-BH25 -> 114 | BJ25: =BH$9-BH25 -> 52 | BK25: =BH24-BH25 -> 3
B26: Thiago Alves | C26: 18 | D26: Augusto Lopes | E26: 0 | F26: =E$5-E26 -> 20 | G26: =E$9-E26 -> 11 | H26: =E25-E26 -> 0 | I26: Ronaldo Ribeiro | J26: 1 | K26: =J$5-J26 -> 33 | L26: =J$9-J26 -> 19 | M26: =J25-J26 -> 0 | N26: Igor Helmold | O26: 1 | P26: =O$5-O26 -> 49 | Q26: =O$9-O26 -> 30 | R26: =O25-O26 -> 2 | S26: Augusto Lopes | T26: 4 | U26: =T$5-T26 -> 61 | V26: =T$9-T26 -> 28 | W26: =T25-T26 -> 2 | X26: Bruno Gomes | Y26: 8 | Z26: =Y$5-Y26 -> 66 | AA26: =Y$9-Y26 -> 34 | AB26: =Y25-Y26 -> 2 | AC26: Ronaldo Ribeiro | AD26: 12 | AE26: =AD$5-AD26 -> 57 | AF26: =AD$9-AD26 -> 27 | AG26: =AD25-AD26 -> 0 | AH26: Will Francino | AI26: 12 | AJ26: =AI$5-AI26 -> 74 | AK26: =AI$9-AI26 -> 35 | AL26: =AI25-AI26 -> 6 | AM26: Bernardo Veloso | AN26: 12 | AO26: =AN$5-AN26 -> 91 | AP26: =AN$9-AN26 -> 39 | AQ26: =AN25-AN26 -> 10 | AR26: Silvano | AS26: 25 | AT26: =AS$5-AS26 -> 91 | AU26: =AS$9-AS26 -> 42 | AV26: =AS25-AS26 -> 2 | AW26: Thiago Alves | AX26: 24 | AY26: =AX$5-AX26 -> 100 | AZ26: =AX$9-AX26 -> 49 | BA26: =AX25-AX26 -> 0 | BB26: Thiago Alves | BC26: 21 | BD26: =BC$5-BC26 -> 111 | BE26: =BC$9-BC26 -> 65 | BF26: =BC25-BC26 -> 2 | BG26: Thiago Alves | BH26: 18 | BI26: =BH$5-BH26 -> 129 | BJ26: =BH$9-BH26 -> 67 | BK26: =BH25-BH26 -> 15
B27: Bernardo Veloso | C27: 10 | D27: Celso Dantas | E27: 0 | F27: =E$5-E27 -> 20 | G27: =E$9-E27 -> 11 | H27: =E26-E27 -> 0 | I27: Rafael Colen | J27: 0 | K27: =J$5-J27 -> 34 | L27: =J$9-J27 -> 20 | M27: =J26-J27 -> 1 | N27: Marcelo Parizzi | O27: 0 | P27: =O$5-O27 -> 50 | Q27: =O$9-O27 -> 31 | R27: =O26-O27 -> 1 | S27: Bruno Gomes | T27: 4 | U27: =T$5-T27 -> 61 | V27: =T$9-T27 -> 28 | W27: =T26-T27 -> 0 | X27: Bernardo Veloso | Y27: 6 | Z27: =Y$5-Y27 -> 68 | AA27: =Y$9-Y27 -> 36 | AB27: =Y26-Y27 -> 2 | AC27: Bernardo Veloso | AD27: 12 | AE27: =AD$5-AD27 -> 57 | AF27: =AD$9-AD27 -> 27 | AG27: =AD26-AD27 -> 0 | AH27: Marcelo Parizzi | AI27: 12 | AJ27: =AI$5-AI27 -> 74 | AK27: =AI$9-AI27 -> 35 | AL27: =AI26-AI27 -> 0 | AM27: Silvano | AN27: 10 | AO27: =AN$5-AN27 -> 93 | AP27: =AN$9-AN27 -> 41 | AQ27: =AN26-AN27 -> 2 | AR27: Bernardo Veloso | AS27: 12 | AT27: =AS$5-AS27 -> 104 | AU27: =AS$9-AS27 -> 55 | AV27: =AS26-AS27 -> 13 | AW27: Bernardo Veloso | AX27: 13 | AY27: =AX$5-AX27 -> 111 | AZ27: =AX$9-AX27 -> 60 | BA27: =AX26-AX27 -> 11 | BB27: Bernardo Veloso | BC27: 13 | BD27: =BC$5-BC27 -> 119 | BE27: =BC$9-BC27 -> 73 | BF27: =BC26-BC27 -> 8 | BG27: Bernardo Veloso | BH27: 10 | BI27: =BH$5-BH27 -> 137 | BJ27: =BH$9-BH27 -> 75 | BK27: =BH26-BH27 -> 8
B28: Ronaldo Ribeiro | C28: 6 | D28: Igor Helmold | E28: 0 | F28: =E$5-E28 -> 20 | G28: =E$9-E28 -> 11 | H28: =E27-E28 -> 0 | I28: Gustavo Reis | J28: 0 | K28: =J$5-J28 -> 34 | L28: =J$9-J28 -> 20 | M28: =J27-J28 -> 0 | N28: Rafael Colen | O28: 0 | P28: =O$5-O28 -> 50 | Q28: =O$9-O28 -> 31 | R28: =O27-O28 -> 0 | S28: Rafael Colen | T28: 0 | U28: =T$5-T28 -> 65 | V28: =T$9-T28 -> 32 | W28: =T27-T28 -> 4 | X28: Augusto Lopes | Y28: 1 | Z28: =Y$5-Y28 -> 73 | AA28: =Y$9-Y28 -> 41 | AB28: =Y27-Y28 -> 5 | AC28: André Colen | AD28: 11 | AE28: =AD$5-AD28 -> 58 | AF28: =AD$9-AD28 -> 28 | AG28: =AD27-AD28 -> 1 | AH28: Bernardo Veloso | AI28: 12 | AJ28: =AI$5-AI28 -> 74 | AK28: =AI$9-AI28 -> 35 | AL28: =AI27-AI28 -> 0 | AM28: Will Francino | AN28: 9 | AO28: =AN$5-AN28 -> 94 | AP28: =AN$9-AN28 -> 42 | AQ28: =AN27-AN28 -> 1 | AR28: Will Francino | AS28: 9 | AT28: =AS$5-AS28 -> 107 | AU28: =AS$9-AS28 -> 58 | AV28: =AS27-AS28 -> 3 | AW28: Will Francino | AX28: 9 | AY28: =AX$5-AX28 -> 115 | AZ28: =AX$9-AX28 -> 64 | BA28: =AX27-AX28 -> 4 | BB28: Will Francino | BC28: 6 | BD28: =BC$5-BC28 -> 126 | BE28: =BC$9-BC28 -> 80 | BF28: =BC27-BC28 -> 7 | BG28: Ronaldo Ribeiro | BH28: 6 | BI28: =BH$5-BH28 -> 141 | BJ28: =BH$9-BH28 -> 79 | BK28: =BH27-BH28 -> 4
B29: Will Francino | C29: 3 | D29: Júnior Torres | E29: 0 | F29: =E$5-E29 -> 20 | G29: =E$9-E29 -> 11 | H29: =E28-E29 -> 0 | I29: Augusto Lopes | J29: 0 | K29: =J$5-J29 -> 34 | L29: =J$9-J29 -> 20 | M29: =J28-J29 -> 0 | N29: Enedson Gomes | O29: 0 | P29: =O$5-O29 -> 50 | Q29: =O$9-O29 -> 31 | R29: =O28-O29 -> 0 | S29: Enedson Gomes | T29: 0 | U29: =T$5-T29 -> 65 | V29: =T$9-T29 -> 32 | W29: =T28-T29 -> 0 | X29: Enedson Gomes | Y29: 1 | Z29: =Y$5-Y29 -> 73 | AA29: =Y$9-Y29 -> 41 | AB29: =Y28-Y29 -> 0 | AC29: Ilton Sarmento | AD29: 10 | AE29: =AD$5-AD29 -> 59 | AF29: =AD$9-AD29 -> 29 | AG29: =AD28-AD29 -> 1 | AH29: Ronaldo Ribeiro | AI29: 9 | AJ29: =AI$5-AI29 -> 77 | AK29: =AI$9-AI29 -> 38 | AL29: =AI28-AI29 -> 3 | AM29: Marcelo Parizzi | AN29: 9 | AO29: =AN$5-AN29 -> 94 | AP29: =AN$9-AN29 -> 42 | AQ29: =AN28-AN29 -> 0 | AR29: Marcelo Parizzi | AS29: 6 | AT29: =AS$5-AS29 -> 110 | AU29: =AS$9-AS29 -> 61 | AV29: =AS28-AS29 -> 3 | AW29: Ronaldo Ribeiro | AX29: 6 | AY29: =AX$5-AX29 -> 118 | AZ29: =AX$9-AX29 -> 67 | BA29: =AX28-AX29 -> 3 | BB29: Ronaldo Ribeiro | BC29: 6 | BD29: =BC$5-BC29 -> 126 | BE29: =BC$9-BC29 -> 80 | BF29: =BC28-BC29 -> 0 | BG29: Will Francino | BH29: 3 | BI29: =BH$5-BH29 -> 144 | BJ29: =BH$9-BH29 -> 82 | BK29: =BH28-BH29 -> 3
B30: Bruno Gomes | C30: 1 | D30: xxxxx | E30: 0 | F30: =E$5-E30 -> 20 | G30: =E$9-E30 -> 11 | H30: =E29-E30 -> 0 | I30: Celso Dantas | J30: 0 | K30: =J$5-J30 -> 34 | L30: =J$9-J30 -> 20 | M30: =J29-J30 -> 0 | N30: Ronaldo Ribeiro | O30: 0 | P30: =O$5-O30 -> 50 | Q30: =O$9-O30 -> 31 | R30: =O29-O30 -> 0 | S30: Ronaldo Ribeiro | T30: 0 | U30: =T$5-T30 -> 65 | V30: =T$9-T30 -> 32 | W30: =T29-T30 -> 0 | X30: Ronaldo Ribeiro | Y30: 0 | Z30: =Y$5-Y30 -> 74 | AA30: =Y$9-Y30 -> 42 | AB30: =Y29-Y30 -> 1 | AC30: Bruno Gomes | AD30: 7 | AE30: =AD$5-AD30 -> 62 | AF30: =AD$9-AD30 -> 32 | AG30: =AD29-AD30 -> 3 | AH30: André Colen | AI30: 8 | AJ30: =AI$5-AI30 -> 78 | AK30: =AI$9-AI30 -> 39 | AL30: =AI29-AI30 -> 1 | AM30: Ronaldo Ribeiro | AN30: 6 | AO30: =AN$5-AN30 -> 97 | AP30: =AN$9-AN30 -> 45 | AQ30: =AN29-AN30 -> 3 | AR30: Ronaldo Ribeiro | AS30: 6 | AT30: =AS$5-AS30 -> 110 | AU30: =AS$9-AS30 -> 61 | AV30: =AS29-AS30 -> 0 | AW30: Bruno Gomes | AX30: 4 | AY30: =AX$5-AX30 -> 120 | AZ30: =AX$9-AX30 -> 69 | BA30: =AX29-AX30 -> 2 | BB30: Bruno Gomes | BC30: 4 | BD30: =BC$5-BC30 -> 128 | BE30: =BC$9-BC30 -> 82 | BF30: =BC29-BC30 -> 2 | BG30: Bruno Gomes | BH30: 1 | BI30: =BH$5-BH30 -> 146 | BJ30: =BH$9-BH30 -> 84 | BK30: =BH29-BH30 -> 2
B31: Enedson Gomes | C31: 1 | D31: Marco Rinold | E31: 0 | F31: =E$5-E31 -> 20 | G31: =E$9-E31 -> 11 | H31: =E30-E31 -> 0 | I31: Igor Helmold | J31: 0 | K31: =J$5-J31 -> 34 | L31: =J$9-J31 -> 20 | M31: =J30-J31 -> 0 | N31: Celso Dantas | O31: 0 | P31: =O$5-O31 -> 50 | Q31: =O$9-O31 -> 31 | R31: =O30-O31 -> 0 | S31: Celso Dantas | T31: 0 | U31: =T$5-T31 -> 65 | V31: =T$9-T31 -> 32 | W31: =T30-T31 -> 0 | X31: Rafael Colen | Y31: 0 | Z31: =Y$5-Y31 -> 74 | AA31: =Y$9-Y31 -> 42 | AB31: =Y30-Y31 -> 0 | AC31: Silvano | AD31: 5 | AE31: =AD$5-AD31 -> 64 | AF31: =AD$9-AD31 -> 34 | AG31: =AD30-AD31 -> 2 | AH31: Bruno Gomes | AI31: 7 | AJ31: =AI$5-AI31 -> 79 | AK31: =AI$9-AI31 -> 40 | AL31: =AI30-AI31 -> 1 | AM31: André Colen | AN31: 5 | AO31: =AN$5-AN31 -> 98 | AP31: =AN$9-AN31 -> 46 | AQ31: =AN30-AN31 -> 1 | AR31: Bruno Gomes | AS31: 4 | AT31: =AS$5-AS31 -> 112 | AU31: =AS$9-AS31 -> 63 | AV31: =AS30-AS31 -> 2 | AW31: Enedson Gomes | AX31: 4 | AY31: =AX$5-AX31 -> 120 | AZ31: =AX$9-AX31 -> 69 | BA31: =AX30-AX31 -> 0 | BB31: Enedson Gomes | BC31: 4 | BD31: =BC$5-BC31 -> 128 | BE31: =BC$9-BC31 -> 82 | BF31: =BC30-BC31 -> 0 | BG31: Enedson Gomes | BH31: 1 | BI31: =BH$5-BH31 -> 146 | BJ31: =BH$9-BH31 -> 84 | BK31: =BH30-BH31 -> 0
B32: Francisco Biulchi | C32: 0 | D32: Rafael Colen | E32: 0 | F32: =E$5-E32 -> 20 | G32: =E$9-E32 -> 11 | H32: =E31-E32 -> 0 | I32: Júnior Torres | J32: 0 | K32: =J$5-J32 -> 34 | L32: =J$9-J32 -> 20 | M32: =J31-J32 -> 0 | N32: Júnior Torres | O32: 0 | P32: =O$5-O32 -> 50 | Q32: =O$9-O32 -> 31 | R32: =O31-O32 -> 0 | S32: Júnior Torres | T32: 0 | U32: =T$5-T32 -> 65 | V32: =T$9-T32 -> 32 | W32: =T31-T32 -> 0 | X32: Celso Dantas | Y32: 0 | Z32: =Y$5-Y32 -> 74 | AA32: =Y$9-Y32 -> 42 | AB32: =Y31-Y32 -> 0 | AC32: Augusto Lopes | AD32: 4 | AE32: =AD$5-AD32 -> 65 | AF32: =AD$9-AD32 -> 35 | AG32: =AD31-AD32 -> 1 | AH32: Silvano | AI32: 4 | AJ32: =AI$5-AI32 -> 82 | AK32: =AI$9-AI32 -> 43 | AL32: =AI31-AI32 -> 3 | AM32: Bruno Gomes | AN32: 5 | AO32: =AN$5-AN32 -> 98 | AP32: =AN$9-AN32 -> 46 | AQ32: =AN31-AN32 -> 0 | AR32: Enedson Gomes | AS32: 4 | AT32: =AS$5-AS32 -> 112 | AU32: =AS$9-AS32 -> 63 | AV32: =AS31-AS32 -> 0 | AW32: Marcelo Parizzi | AX32: 3 | AY32: =AX$5-AX32 -> 121 | AZ32: =AX$9-AX32 -> 70 | BA32: =AX31-AX32 -> 1 | BB32: Francisco Biulchi | BC32: 0 | BD32: =BC$5-BC32 -> 132 | BE32: =BC$9-BC32 -> 86 | BF32: =BC31-BC32 -> 4 | BG32: Francisco Biulchi | BH32: 0 | BI32: =BH$5-BH32 -> 147 | BJ32: =BH$9-BH32 -> 85 | BK32: =BH31-BH32 -> 1
B33: André Colen | C33: 0 | D33: Thiago Alves | E33: 0 | F33: =E$5-E33 -> 20 | G33: =E$9-E33 -> 11 | H33: =E32-E33 -> 0 | I33: xxxxx | J33: 0 | K33: =J$5-J33 -> 34 | L33: =J$9-J33 -> 20 | M33: =J32-J33 -> 0 | N33: xxxxx | O33: 0 | P33: =O$5-O33 -> 50 | Q33: =O$9-O33 -> 31 | R33: =O32-O33 -> 0 | S33: xxxxx | T33: 0 | U33: =T$5-T33 -> 65 | V33: =T$9-T33 -> 32 | W33: =T32-T33 -> 0 | X33: Júnior Torres | Y33: 0 | Z33: =Y$5-Y33 -> 74 | AA33: =Y$9-Y33 -> 42 | AB33: =Y32-Y33 -> 0 | AC33: Enedson Gomes | AD33: 3 | AE33: =AD$5-AD33 -> 66 | AF33: =AD$9-AD33 -> 36 | AG33: =AD32-AD33 -> 1 | AH33: Enedson Gomes | AI33: 4 | AJ33: =AI$5-AI33 -> 82 | AK33: =AI$9-AI33 -> 43 | AL33: =AI32-AI33 -> 0 | AM33: Enedson Gomes | AN33: 4 | AO33: =AN$5-AN33 -> 99 | AP33: =AN$9-AN33 -> 47 | AQ33: =AN32-AN33 -> 1 | AR33: André Colen | AS33: 2 | AT33: =AS$5-AS33 -> 114 | AU33: =AS$9-AS33 -> 65 | AV33: =AS32-AS33 -> 2 | AW33: André Colen | AX33: 0 | AY33: =AX$5-AX33 -> 124 | AZ33: =AX$9-AX33 -> 73 | BA33: =AX32-AX33 -> 3 | BB33: André Colen | BC33: 0 | BD33: =BC$5-BC33 -> 132 | BE33: =BC$9-BC33 -> 86 | BF33: =BC32-BC33 -> 0 | BG33: André Colen | BH33: 0 | BI33: =BH$5-BH33 -> 147 | BJ33: =BH$9-BH33 -> 85 | BK33: =BH32-BH33 -> 0
B34: Marcelo Parizzi | C34: 0 | D34: Thiago Michatoski | E34: 0 | F34: =E$5-E34 -> 20 | G34: =E$9-E34 -> 11 | H34: =E33-E34 -> 0 | I34: Marco Rinold | J34: 0 | K34: =J$5-J34 -> 34 | L34: =J$9-J34 -> 20 | M34: =J33-J34 -> 0 | N34: Marco Rinold | O34: 0 | P34: =O$5-O34 -> 50 | Q34: =O$9-O34 -> 31 | R34: =O33-O34 -> 0 | S34: Marco Rinold | T34: 0 | U34: =T$5-T34 -> 65 | V34: =T$9-T34 -> 32 | W34: =T33-T34 -> 0 | X34: xxxxx | Y34: 0 | Z34: =Y$5-Y34 -> 74 | AA34: =Y$9-Y34 -> 42 | AB34: =Y33-Y34 -> 0 | AC34: Celso Dantas | AD34: 0 | AE34: =AD$5-AD34 -> 69 | AF34: =AD$9-AD34 -> 39 | AG34: =AD33-AD34 -> 3 | AH34: Celso Dantas | AI34: 0 | AJ34: =AI$5-AI34 -> 86 | AK34: =AI$9-AI34 -> 47 | AL34: =AI33-AI34 -> 4 | AM34: Celso Dantas | AN34: 0 | AO34: =AN$5-AN34 -> 103 | AP34: =AN$9-AN34 -> 51 | AQ34: =AN33-AN34 -> 4 | AR34: Celso Dantas | AS34: 0 | AT34: =AS$5-AS34 -> 116 | AU34: =AS$9-AS34 -> 67 | AV34: =AS33-AS34 -> 2 | AW34: Francisco Biulchi | AX34: 0 | AY34: =AX$5-AX34 -> 124 | AZ34: =AX$9-AX34 -> 73 | BA34: =AX33-AX34 -> 0 | BB34: Marcelo Parizzi | BC34: 0 | BD34: =BC$5-BC34 -> 132 | BE34: =BC$9-BC34 -> 86 | BF34: =BC33-BC34 -> 0 | BG34: Marcelo Parizzi | BH34: 0 | BI34: =BH$5-BH34 -> 147 | BJ34: =BH$9-BH34 -> 85 | BK34: =BH33-BH34 -> 0
B35: Celso Dantas | C35: 0 | F35: =E$5-E35 -> 20 | G35: =E$9-E35 -> 11 | H35: =E34-E35 -> 0 | I35: Thiago Michatoski | J35: 0 | K35: =J$5-J35 -> 34 | L35: =J$9-J35 -> 20 | M35: =J34-J35 -> 0 | N35: Thiago Michatoski | O35: 0 | P35: =O$5-O35 -> 50 | Q35: =O$9-O35 -> 31 | R35: =O34-O35 -> 0 | S35: Thiago Michatoski | T35: 0 | U35: =T$5-T35 -> 65 | V35: =T$9-T35 -> 32 | W35: =T34-T35 -> 0 | X35: Marco Rinold | Y35: 0 | Z35: =Y$5-Y35 -> 74 | AA35: =Y$9-Y35 -> 42 | AB35: =Y34-Y35 -> 0 | AC35: Júnior Torres | AD35: 0 | AE35: =AD$5-AD35 -> 69 | AF35: =AD$9-AD35 -> 39 | AG35: =AD34-AD35 -> 0 | AH35: Júnior Torres | AI35: 0 | AJ35: =AI$5-AI35 -> 86 | AK35: =AI$9-AI35 -> 47 | AL35: =AI34-AI35 -> 0 | AM35: Júnior Torres | AN35: 0 | AO35: =AN$5-AN35 -> 103 | AP35: =AN$9-AN35 -> 51 | AQ35: =AN34-AN35 -> 0 | AR35: Júnior Torres | AS35: 0 | AT35: =AS$5-AS35 -> 116 | AU35: =AS$9-AS35 -> 67 | AV35: =AS34-AS35 -> 0 | AW35: Celso Dantas | AX35: 0 | AY35: =AX$5-AX35 -> 124 | AZ35: =AX$9-AX35 -> 73 | BA35: =AX34-AX35 -> 0 | BB35: Celso Dantas | BC35: 0 | BD35: =BC$5-BC35 -> 132 | BE35: =BC$9-BC35 -> 86 | BF35: =BC34-BC35 -> 0 | BG35: Celso Dantas | BH35: 0 | BI35: =BH$5-BH35 -> 147 | BJ35: =BH$9-BH35 -> 85 | BK35: =BH34-BH35 -> 0
B36: Júnior Torres | C36: 0 | F36: =E$5-E36 -> 20 | G36: =E$9-E36 -> 11 | H36: =E35-E36 -> 0 | K36: =J$5-J36 -> 34 | L36: =J$9-J36 -> 20 | M36: =J35-J36 -> 0 | P36: =O$5-O36 -> 50 | Q36: =O$9-O36 -> 31 | R36: =O35-O36 -> 0 | U36: =T$5-T36 -> 65 | V36: =T$9-T36 -> 32 | W36: =T35-T36 -> 0 | X36: Thiago Michatoski | Y36: 0 | Z36: =Y$5-Y36 -> 74 | AA36: =Y$9-Y36 -> 42 | AB36: =Y35-Y36 -> 0 | AC36: xxxxx | AD36: 0 | AE36: =AD$5-AD36 -> 69 | AF36: =AD$9-AD36 -> 39 | AG36: =AD35-AD36 -> 0 | AH36: xxxxx | AI36: 0 | AJ36: =AI$5-AI36 -> 86 | AK36: =AI$9-AI36 -> 47 | AL36: =AI35-AI36 -> 0 | AM36: xxxxx | AN36: 0 | AO36: =AN$5-AN36 -> 103 | AP36: =AN$9-AN36 -> 51 | AQ36: =AN35-AN36 -> 0 | AR36: xxxxx | AS36: 0 | AT36: =AS$5-AS36 -> 116 | AU36: =AS$9-AS36 -> 67 | AV36: =AS35-AS36 -> 0 | AW36: Júnior Torres | AX36: 0 | AY36: =AX$5-AX36 -> 124 | AZ36: =AX$9-AX36 -> 73 | BA36: =AX35-AX36 -> 0 | BB36: Júnior Torres | BC36: 0 | BD36: =BC$5-BC36 -> 132 | BE36: =BC$9-BC36 -> 86 | BF36: =BC35-BC36 -> 0 | BG36: Júnior Torres | BH36: 0 | BI36: =BH$5-BH36 -> 147 | BJ36: =BH$9-BH36 -> 85 | BK36: =BH35-BH36 -> 0
B37: xxxxx | C37: 0 | F37: =E$5-E37 -> 20 | G37: =E$9-E37 -> 11 | H37: =E36-E37 -> 0 | K37: =J$5-J37 -> 34 | L37: =J$9-J37 -> 20 | M37: =J36-J37 -> 0 | P37: =O$5-O37 -> 50 | Q37: =O$9-O37 -> 31 | R37: =O36-O37 -> 0 | U37: =T$5-T37 -> 65 | V37: =T$9-T37 -> 32 | W37: =T36-T37 -> 0 | Z37: =Y$5-Y37 -> 74 | AA37: =Y$9-Y37 -> 42 | AB37: =Y36-Y37 -> 0 | AC37: Marco Rinold | AD37: 0 | AE37: =AD$5-AD37 -> 69 | AF37: =AD$9-AD37 -> 39 | AG37: =AD36-AD37 -> 0 | AH37: Marco Rinold | AI37: 0 | AJ37: =AI$5-AI37 -> 86 | AK37: =AI$9-AI37 -> 47 | AL37: =AI36-AI37 -> 0 | AM37: Marco Rinold | AN37: 0 | AO37: =AN$5-AN37 -> 103 | AP37: =AN$9-AN37 -> 51 | AQ37: =AN36-AN37 -> 0 | AR37: Marco Rinold | AS37: 0 | AT37: =AS$5-AS37 -> 116 | AU37: =AS$9-AS37 -> 67 | AV37: =AS36-AS37 -> 0 | AW37: xxxxx | AX37: 0 | AY37: =AX$5-AX37 -> 124 | AZ37: =AX$9-AX37 -> 73 | BA37: =AX36-AX37 -> 0 | BB37: xxxxx | BC37: 0 | BD37: =BC$5-BC37 -> 132 | BE37: =BC$9-BC37 -> 86 | BF37: =BC36-BC37 -> 0 | BG37: xxxxx | BH37: 0 | BI37: =BH$5-BH37 -> 147 | BJ37: =BH$9-BH37 -> 85 | BK37: =BH36-BH37 -> 0
B38: Marco Rinold | C38: 0 | F38: =E$5-E38 -> 20 | G38: =E$9-E38 -> 11 | H38: =E37-E38 -> 0 | K38: =J$5-J38 -> 34 | L38: =J$9-J38 -> 20 | M38: =J37-J38 -> 0 | P38: =O$5-O38 -> 50 | Q38: =O$9-O38 -> 31 | R38: =O37-O38 -> 0 | U38: =T$5-T38 -> 65 | V38: =T$9-T38 -> 32 | W38: =T37-T38 -> 0 | Z38: =Y$5-Y38 -> 74 | AA38: =Y$9-Y38 -> 42 | AB38: =Y37-Y38 -> 0 | AC38: Thiago Michatoski | AD38: 0 | AE38: =AD$5-AD38 -> 69 | AF38: =AD$9-AD38 -> 39 | AG38: =AD37-AD38 -> 0 | AH38: Thiago Michatoski | AI38: 0 | AJ38: =AI$5-AI38 -> 86 | AK38: =AI$9-AI38 -> 47 | AL38: =AI37-AI38 -> 0 | AM38: Thiago Michatoski | AN38: 0 | AO38: =AN$5-AN38 -> 103 | AP38: =AN$9-AN38 -> 51 | AQ38: =AN37-AN38 -> 0 | AR38: Thiago Michatoski | AS38: 0 | AT38: =AS$5-AS38 -> 116 | AU38: =AS$9-AS38 -> 67 | AV38: =AS37-AS38 -> 0 | AW38: Marco Rinold | AX38: 0 | AY38: =AX$5-AX38 -> 124 | AZ38: =AX$9-AX38 -> 73 | BA38: =AX37-AX38 -> 0 | BB38: Marco Rinold | BC38: 0 | BD38: =BC$5-BC38 -> 132 | BE38: =BC$9-BC38 -> 86 | BF38: =BC37-BC38 -> 0 | BG38: Marco Rinold | BH38: 0 | BI38: =BH$5-BH38 -> 147 | BJ38: =BH$9-BH38 -> 85 | BK38: =BH37-BH38 -> 0
B39: Thiago Michatoski | C39: 0 | F39: =E$5-E39 -> 20 | G39: =E$9-E39 -> 11 | H39: =E38-E39 -> 0 | K39: =J$5-J39 -> 34 | L39: =J$9-J39 -> 20 | M39: =J38-J39 -> 0 | P39: =O$5-O39 -> 50 | Q39: =O$9-O39 -> 31 | R39: =O38-O39 -> 0 | U39: =T$5-T39 -> 65 | V39: =T$9-T39 -> 32 | W39: =T38-T39 -> 0 | Z39: =Y$5-Y39 -> 74 | AA39: =Y$9-Y39 -> 42 | AB39: =Y38-Y39 -> 0 | AE39: =AD$5-AD39 -> 69 | AF39: =AD$9-AD39 -> 39 | AG39: =AD38-AD39 -> 0 | AJ39: =AI$5-AI39 -> 86 | AK39: =AI$9-AI39 -> 47 | AL39: =AI38-AI39 -> 0 | AO39: =AN$5-AN39 -> 103 | AP39: =AN$9-AN39 -> 51 | AQ39: =AN38-AN39 -> 0 | AT39: =AS$5-AS39 -> 116 | AU39: =AS$9-AS39 -> 67 | AV39: =AS38-AS39 -> 0 | AW39: Thiago Michatoski | AX39: 0 | AY39: =AX$5-AX39 -> 124 | AZ39: =AX$9-AX39 -> 73 | BA39: =AX38-AX39 -> 0 | BB39: Thiago Michatoski | BC39: 0 | BD39: =BC$5-BC39 -> 132 | BE39: =BC$9-BC39 -> 86 | BF39: =BC38-BC39 -> 0 | BG39: Thiago Michatoski | BH39: 0 | BI39: =BH$5-BH39 -> 147 | BJ39: =BH$9-BH39 -> 85 | BK39: =BH38-BH39 -> 0
F40: =E$5-E40 -> 20 | G40: =E$9-E40 -> 11 | H40: =E39-E40 -> 0 | K40: =J$5-J40 -> 34 | L40: =J$9-J40 -> 20 | M40: =J39-J40 -> 0 | P40: =O$5-O40 -> 50 | Q40: =O$9-O40 -> 31 | R40: =O39-O40 -> 0 | U40: =T$5-T40 -> 65 | V40: =T$9-T40 -> 32 | W40: =T39-T40 -> 0 | Z40: =Y$5-Y40 -> 74 | AA40: =Y$9-Y40 -> 42 | AB40: =Y39-Y40 -> 0 | AE40: =AD$5-AD40 -> 69 | AF40: =AD$9-AD40 -> 39 | AG40: =AD39-AD40 -> 0 | AJ40: =AI$5-AI40 -> 86 | AK40: =AI$9-AI40 -> 47 | AL40: =AI39-AI40 -> 0 | AO40: =AN$5-AN40 -> 103 | AP40: =AN$9-AN40 -> 51 | AQ40: =AN39-AN40 -> 0 | AT40: =AS$5-AS40 -> 116 | AU40: =AS$9-AS40 -> 67 | AV40: =AS39-AS40 -> 0 | AY40: =AX$5-AX40 -> 124 | AZ40: =AX$9-AX40 -> 73 | BA40: =AX39-AX40 -> 0 | BD40: =BC$5-BC40 -> 132 | BE40: =BC$9-BC40 -> 86 | BF40: =BC39-BC40 -> 0 | BI40: =BH$5-BH40 -> 147 | BJ40: =BH$9-BH40 -> 85 | BK40: =BH39-BH40 -> 0
C41: 37 | F41: =E$5-E41 -> 20 | G41: =E$9-E41 -> 11 | H41: =E40-E41 -> 0 | K41: =J$5-J41 -> 34 | L41: =J$9-J41 -> 20 | M41: =J40-J41 -> 0 | P41: =O$5-O41 -> 50 | Q41: =O$9-O41 -> 31 | R41: =O40-O41 -> 0 | U41: =T$5-T41 -> 65 | V41: =T$9-T41 -> 32 | W41: =T40-T41 -> 0 | Z41: =Y$5-Y41 -> 74 | AA41: =Y$9-Y41 -> 42 | AB41: =Y40-Y41 -> 0 | AE41: =AD$5-AD41 -> 69 | AF41: =AD$9-AD41 -> 39 | AG41: =AD40-AD41 -> 0 | AJ41: =AI$5-AI41 -> 86 | AK41: =AI$9-AI41 -> 47 | AL41: =AI40-AI41 -> 0 | AO41: =AN$5-AN41 -> 103 | AP41: =AN$9-AN41 -> 51 | AQ41: =AN40-AN41 -> 0 | AT41: =AS$5-AS41 -> 116 | AU41: =AS$9-AS41 -> 67 | AV41: =AS40-AS41 -> 0 | AY41: =AX$5-AX41 -> 124 | AZ41: =AX$9-AX41 -> 73 | BA41: =AX40-AX41 -> 0 | BD41: =BC$5-BC41 -> 132 | BE41: =BC$9-BC41 -> 86 | BF41: =BC40-BC41 -> 0 | BI41: =BH$5-BH41 -> 147 | BJ41: =BH$9-BH41 -> 85 | BK41: =BH40-BH41 -> 0
C42: 38 | F42: =E$5-E42 -> 20 | G42: =E$9-E42 -> 11 | H42: =E41-E42 -> 0 | K42: =J$5-J42 -> 34 | L42: =J$9-J42 -> 20 | M42: =J41-J42 -> 0 | P42: =O$5-O42 -> 50 | Q42: =O$9-O42 -> 31 | R42: =O41-O42 -> 0 | U42: =T$5-T42 -> 65 | V42: =T$9-T42 -> 32 | W42: =T41-T42 -> 0 | Z42: =Y$5-Y42 -> 74 | AA42: =Y$9-Y42 -> 42 | AB42: =Y41-Y42 -> 0 | AE42: =AD$5-AD42 -> 69 | AF42: =AD$9-AD42 -> 39 | AG42: =AD41-AD42 -> 0 | AJ42: =AI$5-AI42 -> 86 | AK42: =AI$9-AI42 -> 47 | AL42: =AI41-AI42 -> 0 | AO42: =AN$5-AN42 -> 103 | AP42: =AN$9-AN42 -> 51 | AQ42: =AN41-AN42 -> 0 | AT42: =AS$5-AS42 -> 116 | AU42: =AS$9-AS42 -> 67 | AV42: =AS41-AS42 -> 0 | AY42: =AX$5-AX42 -> 124 | AZ42: =AX$9-AX42 -> 73 | BA42: =AX41-AX42 -> 0 | BD42: =BC$5-BC42 -> 132 | BE42: =BC$9-BC42 -> 86 | BF42: =BC41-BC42 -> 0 | BI42: =BH$5-BH42 -> 147 | BJ42: =BH$9-BH42 -> 85 | BK42: =BH41-BH42 -> 0
C43: 39 | F43: =E$5-E43 -> 20 | G43: =E$9-E43 -> 11 | H43: =E42-E43 -> 0 | K43: =J$5-J43 -> 34 | L43: =J$9-J43 -> 20 | M43: =J42-J43 -> 0 | P43: =O$5-O43 -> 50 | Q43: =O$9-O43 -> 31 | R43: =O42-O43 -> 0 | U43: =T$5-T43 -> 65 | V43: =T$9-T43 -> 32 | W43: =T42-T43 -> 0 | Z43: =Y$5-Y43 -> 74 | AA43: =Y$9-Y43 -> 42 | AB43: =Y42-Y43 -> 0 | AE43: =AD$5-AD43 -> 69 | AF43: =AD$9-AD43 -> 39 | AG43: =AD42-AD43 -> 0 | AJ43: =AI$5-AI43 -> 86 | AK43: =AI$9-AI43 -> 47 | AL43: =AI42-AI43 -> 0 | AO43: =AN$5-AN43 -> 103 | AP43: =AN$9-AN43 -> 51 | AQ43: =AN42-AN43 -> 0 | AT43: =AS$5-AS43 -> 116 | AU43: =AS$9-AS43 -> 67 | AV43: =AS42-AS43 -> 0 | AY43: =AX$5-AX43 -> 124 | AZ43: =AX$9-AX43 -> 73 | BA43: =AX42-AX43 -> 0 | BD43: =BC$5-BC43 -> 132 | BE43: =BC$9-BC43 -> 86 | BF43: =BC42-BC43 -> 0 | BI43: =BH$5-BH43 -> 147 | BJ43: =BH$9-BH43 -> 85 | BK43: =BH42-BH43 -> 0
C44: 40 | F44: =E$5-E44 -> 20 | G44: =E$9-E44 -> 11 | H44: =E43-E44 -> 0 | K44: =J$5-J44 -> 34 | L44: =J$9-J44 -> 20 | M44: =J43-J44 -> 0 | P44: =O$5-O44 -> 50 | Q44: =O$9-O44 -> 31 | R44: =O43-O44 -> 0 | U44: =T$5-T44 -> 65 | V44: =T$9-T44 -> 32 | W44: =T43-T44 -> 0 | Z44: =Y$5-Y44 -> 74 | AA44: =Y$9-Y44 -> 42 | AB44: =Y43-Y44 -> 0 | AE44: =AD$5-AD44 -> 69 | AF44: =AD$9-AD44 -> 39 | AG44: =AD43-AD44 -> 0 | AJ44: =AI$5-AI44 -> 86 | AK44: =AI$9-AI44 -> 47 | AL44: =AI43-AI44 -> 0 | AO44: =AN$5-AN44 -> 103 | AP44: =AN$9-AN44 -> 51 | AQ44: =AN43-AN44 -> 0 | AT44: =AS$5-AS44 -> 116 | AU44: =AS$9-AS44 -> 67 | AV44: =AS43-AS44 -> 0 | AY44: =AX$5-AX44 -> 124 | AZ44: =AX$9-AX44 -> 73 | BA44: =AX43-AX44 -> 0 | BD44: =BC$5-BC44 -> 132 | BE44: =BC$9-BC44 -> 86 | BF44: =BC43-BC44 -> 0 | BI44: =BH$5-BH44 -> 147 | BJ44: =BH$9-BH44 -> 85 | BK44: =BH43-BH44 -> 0
C45: 41 | F45: =E$5-E45 -> 20 | G45: =E$9-E45 -> 11 | H45: =E44-E45 -> 0 | K45: =J$5-J45 -> 34 | L45: =J$9-J45 -> 20 | M45: =J44-J45 -> 0 | P45: =O$5-O45 -> 50 | Q45: =O$9-O45 -> 31 | R45: =O44-O45 -> 0 | U45: =T$5-T45 -> 65 | V45: =T$9-T45 -> 32 | W45: =T44-T45 -> 0 | Z45: =Y$5-Y45 -> 74 | AA45: =Y$9-Y45 -> 42 | AB45: =Y44-Y45 -> 0 | AE45: =AD$5-AD45 -> 69 | AF45: =AD$9-AD45 -> 39 | AG45: =AD44-AD45 -> 0 | AJ45: =AI$5-AI45 -> 86 | AK45: =AI$9-AI45 -> 47 | AL45: =AI44-AI45 -> 0 | AO45: =AN$5-AN45 -> 103 | AP45: =AN$9-AN45 -> 51 | AQ45: =AN44-AN45 -> 0 | AT45: =AS$5-AS45 -> 116 | AU45: =AS$9-AS45 -> 67 | AV45: =AS44-AS45 -> 0 | AY45: =AX$5-AX45 -> 124 | AZ45: =AX$9-AX45 -> 73 | BA45: =AX44-AX45 -> 0 | BD45: =BC$5-BC45 -> 132 | BE45: =BC$9-BC45 -> 86 | BF45: =BC44-BC45 -> 0 | BI45: =BH$5-BH45 -> 147 | BJ45: =BH$9-BH45 -> 85 | BK45: =BH44-BH45 -> 0
C46: 42 | F46: =E$5-E46 -> 20 | G46: =E$9-E46 -> 11 | H46: =E45-E46 -> 0 | K46: =J$5-J46 -> 34 | L46: =J$9-J46 -> 20 | M46: =J45-J46 -> 0 | P46: =O$5-O46 -> 50 | Q46: =O$9-O46 -> 31 | R46: =O45-O46 -> 0 | U46: =T$5-T46 -> 65 | V46: =T$9-T46 -> 32 | W46: =T45-T46 -> 0 | Z46: =Y$5-Y46 -> 74 | AA46: =Y$9-Y46 -> 42 | AB46: =Y45-Y46 -> 0 | AE46: =AD$5-AD46 -> 69 | AF46: =AD$9-AD46 -> 39 | AG46: =AD45-AD46 -> 0 | AJ46: =AI$5-AI46 -> 86 | AK46: =AI$9-AI46 -> 47 | AL46: =AI45-AI46 -> 0 | AO46: =AN$5-AN46 -> 103 | AP46: =AN$9-AN46 -> 51 | AQ46: =AN45-AN46 -> 0 | AT46: =AS$5-AS46 -> 116 | AU46: =AS$9-AS46 -> 67 | AV46: =AS45-AS46 -> 0 | AY46: =AX$5-AX46 -> 124 | AZ46: =AX$9-AX46 -> 73 | BA46: =AX45-AX46 -> 0 | BD46: =BC$5-BC46 -> 132 | BE46: =BC$9-BC46 -> 86 | BF46: =BC45-BC46 -> 0 | BI46: =BH$5-BH46 -> 147 | BJ46: =BH$9-BH46 -> 85 | BK46: =BH45-BH46 -> 0
C47: 43 | F47: =E$5-E47 -> 20 | G47: =E$9-E47 -> 11 | H47: =E46-E47 -> 0 | K47: =J$5-J47 -> 34 | L47: =J$9-J47 -> 20 | M47: =J46-J47 -> 0 | P47: =O$5-O47 -> 50 | Q47: =O$9-O47 -> 31 | R47: =O46-O47 -> 0 | U47: =T$5-T47 -> 65 | V47: =T$9-T47 -> 32 | W47: =T46-T47 -> 0 | Z47: =Y$5-Y47 -> 74 | AA47: =Y$9-Y47 -> 42 | AB47: =Y46-Y47 -> 0 | AE47: =AD$5-AD47 -> 69 | AF47: =AD$9-AD47 -> 39 | AG47: =AD46-AD47 -> 0 | AJ47: =AI$5-AI47 -> 86 | AK47: =AI$9-AI47 -> 47 | AL47: =AI46-AI47 -> 0 | AO47: =AN$5-AN47 -> 103 | AP47: =AN$9-AN47 -> 51 | AQ47: =AN46-AN47 -> 0 | AT47: =AS$5-AS47 -> 116 | AU47: =AS$9-AS47 -> 67 | AV47: =AS46-AS47 -> 0 | AY47: =AX$5-AX47 -> 124 | AZ47: =AX$9-AX47 -> 73 | BA47: =AX46-AX47 -> 0 | BD47: =BC$5-BC47 -> 132 | BE47: =BC$9-BC47 -> 86 | BF47: =BC46-BC47 -> 0 | BI47: =BH$5-BH47 -> 147 | BJ47: =BH$9-BH47 -> 85 | BK47: =BH46-BH47 -> 0
C48: 44 | F48: =E$5-E48 -> 20 | G48: =E$9-E48 -> 11 | H48: =E47-E48 -> 0 | K48: =J$5-J48 -> 34 | L48: =J$9-J48 -> 20 | M48: =J47-J48 -> 0 | P48: =O$5-O48 -> 50 | Q48: =O$9-O48 -> 31 | R48: =O47-O48 -> 0 | U48: =T$5-T48 -> 65 | V48: =T$9-T48 -> 32 | W48: =T47-T48 -> 0 | Z48: =Y$5-Y48 -> 74 | AA48: =Y$9-Y48 -> 42 | AB48: =Y47-Y48 -> 0 | AE48: =AD$5-AD48 -> 69 | AF48: =AD$9-AD48 -> 39 | AG48: =AD47-AD48 -> 0 | AJ48: =AI$5-AI48 -> 86 | AK48: =AI$9-AI48 -> 47 | AL48: =AI47-AI48 -> 0 | AO48: =AN$5-AN48 -> 103 | AP48: =AN$9-AN48 -> 51 | AQ48: =AN47-AN48 -> 0 | AT48: =AS$5-AS48 -> 116 | AU48: =AS$9-AS48 -> 67 | AV48: =AS47-AS48 -> 0 | AY48: =AX$5-AX48 -> 124 | AZ48: =AX$9-AX48 -> 73 | BA48: =AX47-AX48 -> 0 | BD48: =BC$5-BC48 -> 132 | BE48: =BC$9-BC48 -> 86 | BF48: =BC47-BC48 -> 0 | BI48: =BH$5-BH48 -> 147 | BJ48: =BH$9-BH48 -> 85 | BK48: =BH47-BH48 -> 0
C49: 45 | F49: =E$5-E49 -> 20 | G49: =E$9-E49 -> 11 | H49: =E48-E49 -> 0 | K49: =J$5-J49 -> 34 | L49: =J$9-J49 -> 20 | M49: =J48-J49 -> 0 | P49: =O$5-O49 -> 50 | Q49: =O$9-O49 -> 31 | R49: =O48-O49 -> 0 | U49: =T$5-T49 -> 65 | V49: =T$9-T49 -> 32 | W49: =T48-T49 -> 0 | Z49: =Y$5-Y49 -> 74 | AA49: =Y$9-Y49 -> 42 | AB49: =Y48-Y49 -> 0 | AE49: =AD$5-AD49 -> 69 | AF49: =AD$9-AD49 -> 39 | AG49: =AD48-AD49 -> 0 | AJ49: =AI$5-AI49 -> 86 | AK49: =AI$9-AI49 -> 47 | AL49: =AI48-AI49 -> 0 | AO49: =AN$5-AN49 -> 103 | AP49: =AN$9-AN49 -> 51 | AQ49: =AN48-AN49 -> 0 | AT49: =AS$5-AS49 -> 116 | AU49: =AS$9-AS49 -> 67 | AV49: =AS48-AS49 -> 0 | AY49: =AX$5-AX49 -> 124 | AZ49: =AX$9-AX49 -> 73 | BA49: =AX48-AX49 -> 0 | BD49: =BC$5-BC49 -> 132 | BE49: =BC$9-BC49 -> 86 | BF49: =BC48-BC49 -> 0 | BI49: =BH$5-BH49 -> 147 | BJ49: =BH$9-BH49 -> 85 | BK49: =BH48-BH49 -> 0

Sheet TROCA KART
A1: PILOTO | B1: 1 ETAPA | C1: 2 ETAPA | D1: 3 ETAPA | E1: 4 ETAPA | F1: 5 ETAPA | G1: 6 ETAPA | H1: 7 ETAPA | I1: 8 ETAPA | J1: 9 ETAPA | K1: 10 ETAPA | L1: 11 ETAPA | M1: 12 ETAPA | N1: Troca
A2: Augusto Lopes | N2: 0
A3: Bernardo Veloso | N3: 0
A4: Bruno Botelho | N4: 0
A5: Bruno Gomes | N5: 0
A6: Celso Dantas | N6: 0
A7: Christofer Laguna | N7: 0
A8: Eduardo Vitol | N8: 0
A9: Gislei Silva | N9: 0
A10: Guilherme Rodrigues | N10: 0
A11: Gustavo Reis | N11: 0
A12: Henrique Sarmento | N12: 0
A13: Igor Helmold | N13: 0
A14: Ilton Sarmento | N14: 0
A15: Júnior Torres | N15: 0
A16: Léo Dumont | N16: 0
A17: Leonardo Sousa | N17: 0
A18: xxxxx | N18: 0
A19: Ludving Mendez | N19: 0
A20: Marcelo Almeida | N20: 0
A21: Marcelo Parizzi | B21: TROCA | N21: 1
A22: Marco Rinold | N22: 0
A23: Marcus Brum | N23: 0
A24: Maria Borges | N24: 0
A25: Matheus Sarmento | N25: 0
A26: Rafael Colen | N26: 0
A27: Reila Ricardo | N27: 0
A28: Ronaldo Ribeiro | N28: 0
A29: Thiago Alves | H29: TROCA | N29: 1
A30: Thiago Michatoski | N30: 0
A31: Will Francino | N31: 0
A32: Enedson Gomes | N32: 0
A33: Rodrigo Mendonça | N33: 0
A34: Silvano | N34: 0
A35: André Colen | N35: 0
A36: Francisco Biulchi | N36: 0
A37: 0 | N37: 0
A38: 0 | N38: 0
A39: 0 | N39: 0
N40: 0
N41: 0
N42: 0
N43: 0
N44: 0
N45: 0
N46: 0

Sheet PRESENÇAS
A1: PILOTO | B1: 1 ETAPA | C1: 2 ETAPA | D1: 3 ETAPA | E1: 4 ETAPA | F1: 5 ETAPA | G1: 6 ETAPA | H1: 7 ETAPA | I1: 8 ETAPA | J1: 9 ETAPA | K1: 10 ETAPA | L1: 11 ETAPA | M1: 12 ETAPA | N1: Faltou | O1: PUNIÇÕES
A2: Augusto Lopes | B2: ok | C2: ok | D2: ok | E2: ok | F2: ok | G2: ok | H2: ok | I2: ok | J2: Faltou | K2: ok | L2: ok | M2: Faltou | N2: 2 | O2: 2
A3: Bernardo Veloso | B3: ok | C3: Faltou | D3: ok | E3: ok | F3: Faltou | G3: ok | H3: Faltou | I3: Faltou | J3: Faltou | K3: ok | L3: Faltou | M3: Faltou | N3: 7 | O3: 1
A4: Bruno Botelho | B4: ok | C4: ok | D4: ok | E4: ok | F4: Faltou | G4: ok | H4: Faltou | I4: Faltou | J4: Faltou | K4: ok | L4: Faltou | M4: Faltou | N4: 6 | O4: 0
A5: Bruno Gomes | B5: ok | C5: ok | D5: ok | E5: ok | F5: ok | G5: ok | H5: Faltou | I5: Faltou | J5: Faltou | K5: Faltou | L5: Faltou | M5: Faltou | N5: 6 | O5: 0
A6: Celso Dantas | B6: Faltou | C6: Faltou | D6: ok | E6: Faltou | F6: Faltou | G6: Faltou | H6: Faltou | I6: Faltou | J6: Faltou | K6: Faltou | L6: Faltou | M6: Faltou | N6: 11 | O6: 0
A7: Christofer Laguna | B7: ok | C7: Faltou | D7: ok | E7: ok | F7: ok | G7: ok | H7: ok | I7: ok | J7: ok | K7: ok | L7: ok | M7: ok | N7: 1 | O7: 1
A8: Eduardo Vitol | B8: ok | C8: ok | D8: ok | E8: ok | F8: ok | G8: ok | H8: ok | I8: Faltou | J8: ok | K8: ok | L8: ok | M8: ok | N8: 1 | O8: 1
A9: Gislei Silva | B9: ok | C9: ok | D9: ok | E9: ok | F9: ok | G9: ok | H9: Faltou | I9: Faltou | J9: ok | K9: ok | L9: Faltou | M9: Faltou | N9: 4 | O9: 1
A10: Guilherme Rodrigues | B10: ok | C10: ok | D10: ok | E10: Faltou | F10: ok | G10: ok | H10: ok | I10: ok | J10: ok | K10: ok | L10: ok | M10: ok | N10: 1 | O10: 2
A11: Gustavo Reis | B11: ok | C11: Faltou | D11: ok | E11: ok | F11: Faltou | G11: ok | H11: Faltou | I11: ok | J11: Faltou | K11: Faltou | L11: ok | M11: Faltou | N11: 6 | O11: 0
A12: Henrique Sarmento | B12: ok | C12: ok | D12: ok | E12: ok | F12: ok | G12: ok | H12: ok | I12: ok | J12: ok | K12: ok | L12: ok | M12: ok | N12: 0 | O12: 0
A13: Igor Helmold | B13: Faltou | C13: Faltou | D13: ok | E13: ok | F13: ok | G13: ok | H13: ok | I13: ok | J13: ok | K13: ok | L13: ok | M13: Faltou | N13: 3 | O13: 0
A14: Ilton Sarmento | B14: ok | C14: ok | D14: ok | E14: ok | F14: ok | G14: ok | H14: ok | I14: ok | J14: ok | K14: ok | L14: ok | M14: ok | N14: 0 | O14: 1
A15: Júnior Torres | B15: Faltou | C15: Faltou | D15: Faltou | E15: Faltou | F15: Faltou | G15: Faltou | H15: Faltou | I15: Faltou | J15: Faltou | K15: Faltou | L15: Faltou | M15: Faltou | N15: 12 | O15: 0
A16: Léo Dumont | B16: ok | C16: ok | D16: ok | E16: ok | F16: ok | G16: ok | H16: ok | I16: ok | J16: ok | K16: Faltou | L16: Faltou | M16: Faltou | N16: 3 | O16: 0
A17: Leonardo Sousa | B17: ok | C17: ok | D17: ok | E17: ok | F17: ok | G17: ok | H17: Faltou | I17: ok | J17: ok | K17: Faltou | L17: ok | M17: Faltou | N17: 3 | O17: 1
A18: xxxxx | B18: Faltou | C18: Faltou | D18: Faltou | E18: Faltou | F18: Faltou | G18: Faltou | H18: Faltou | I18: Faltou | J18: Faltou | K18: Faltou | L18: Faltou | M18: Faltou | N18: 12 | O18: 0
A19: Ludving Mendez | B19: ok | C19: ok | D19: ok | E19: Faltou | F19: ok | G19: ok | H19: Faltou | I19: Faltou | J19: Faltou | K19: Faltou | L19: Faltou | M19: Faltou | N19: 7 | O19: 0
A20: Marcelo Almeida | B20: ok | C20: ok | D20: ok | E20: ok | F20: Faltou | G20: Faltou | H20: Faltou | I20: Faltou | J20: Faltou | K20: Faltou | L20: Faltou | M20: Faltou | N20: 8 | O20: 0
A21: Marcelo Parizzi | B21: ok | C21: Faltou | D21: ok | E21: ok | F21: Faltou | G21: Faltou | H21: Faltou | I21: Faltou | J21: Faltou | K21: Faltou | L21: Faltou | M21: Faltou | N21: 9 | O21: 0
A22: Marco Rinold | B22: Faltou | C22: Faltou | D22: Faltou | E22: Faltou | F22: Faltou | G22: Faltou | H22: Faltou | I22: Faltou | J22: Faltou | K22: Faltou | L22: Faltou | M22: Faltou | N22: 12 | O22: 0
A23: Marcus Brum | B23: ok | C23: ok | D23: ok | E23: ok | F23: ok | G23: Faltou | H23: Faltou | I23: Faltou | J23: ok | K23: ok | L23: ok | M23: Faltou | N23: 4 | O23: 0
A24: Maria Borges | B24: ok | C24: ok | D24: ok | E24: ok | F24: ok | G24: ok | H24: ok | I24: ok | J24: ok | K24: ok | L24: ok | M24: ok | N24: 0 | O24: 0
A25: Matheus Sarmento | B25: ok | C25: ok | D25: ok | E25: ok | F25: ok | G25: ok | H25: ok | I25: ok | J25: ok | K25: ok | L25: ok | M25: ok | N25: 0 | O25: 0
A26: Rafael Colen | B26: Faltou | C26: ok | D26: ok | E26: ok | F26: Faltou | G26: ok | H26: ok | I26: ok | J26: ok | K26: Faltou | L26: Faltou | M26: ok | N26: 4 | O26: 1
A27: Reila Ricardo | B27: ok | C27: ok | D27: ok | E27: ok | F27: ok | G27: ok | H27: Faltou | I27: ok | J27: ok | K27: ok | L27: Faltou | M27: ok | N27: 2 | O27: 1
A28: Ronaldo Ribeiro | B28: ok | C28: Faltou | D28: Faltou | E28: Faltou | F28: ok | G28: ok | H28: Faltou | I28: Faltou | J28: Faltou | K28: Faltou | L28: Faltou | M28: Faltou | N28: 9 | O28: 0
A29: Thiago Alves | B29: Faltou | C29: ok | D29: ok | E29: ok | F29: ok | G29: Faltou | H29: ok | I29: Faltou | J29: Faltou | K29: Faltou | L29: Faltou | M29: Faltou | N29: 7 | O29: 0
A30: Thiago Michatoski | B30: Faltou | C30: Faltou | D30: Faltou | E30: Faltou | F30: Faltou | G30: Faltou | H30: Faltou | I30: Faltou | J30: Faltou | K30: Faltou | L30: Faltou | M30: Faltou | N30: 12 | O30: 0
A31: Will Francino | B31: ok | C31: Faltou | D31: Faltou | E31: Faltou | F31: Faltou | G31: Faltou | H31: Faltou | I31: Faltou | J31: Faltou | K31: Faltou | L31: Faltou | M31: Faltou | N31: 11 | O31: 0
A32: Enedson Gomes | B32: Faltou | C32: ok | D32: ok | E32: ok | F32: ok | G32: ok | H32: Faltou | I32: Faltou | J32: Faltou | K32: Faltou | L32: Faltou | M32: Faltou | N32: 7 | O32: 0
A33: Rodrigo Mendonça | B33: NÃO | C33: NÃO | D33: NÃO | E33: NÃO | F33: ok | G33: ok | H33: ok | I33: Faltou | J33: ok | K33: Faltou | L33: ok | M33: Faltou | N33: 3 | O33: 1
A34: Silvano | B34: NÃO | C34: NÃO | D34: NÃO | E34: NÃO | F34: ok | G34: ok | H34: Faltou | I34: ok | J34: ok | K34: Faltou | L34: ok | M34: ok | N34: 2 | O34: 0
A35: André Colen | B35: NÃO | C35: NÃO | D35: NÃO | E35: NÃO | F35: NÃO | G35: ok | H35: Faltou | I35: Faltou | J35: Faltou | K35: Faltou | L35: Faltou | M35: Faltou | N35: 6 | O35: 0
A36: Francisco Biulchi | B36: Faltou | C36: Faltou | D36: Faltou | E36: Faltou | F36: Faltou | G36: Faltou | H36: Faltou | I36: Faltou | J36: Faltou | K36: Faltou | L36: Faltou | M36: Faltou | N36: 12 | O36: 0
N37: 0 | O37: 0
N38: 0 | O38: 0
N39: 0 | O39: 0
N40: 0 | O40: 0
N41: 0 | O41: 0
N42: 0 | O42: 0
N43: 0 | O43: 0
N44: 0 | O44: 0
N45: 0 | O45: 0
N46: 0.4595238095

Sheet TABELA
A1: 2025 | E1: OK | I1: OK | M1: OK | Q1: OK | U1: OK | Y1: OK | AC1: OK | AG1: OK | AK1: OK | AO1: OK | AS1: OK | AW1: OK
D2: 1ª etapa | H2: 2ª etapa | L2: 3ª etapa | P2: 4ª etapa | T2: 5ª etapa | X2: 6ª etapa | AB2: 7ª etapa | AF2: 8ª etapa | AJ2: 9ª etapa | AN2: 10ª etapa | AR2: 11ª etapa | AV2: 12ª etapa
D3: 2025-02-09 | H3: 2025-02-23 | L3: 2025-03-16 | P3: 2025-04-13 | T3: 2025-05-18 | X3: 2025-06-15 | AB3: 2025-07-13 | AF3: 2025-08-17 | AJ3: 2025-09-14 | AN3: 2025-10-12 | AR3: 2025-11-09 | AV3: 2025-12-07
B4: Nome do (a) Piloto (a) | C4: Pontuação Geral | D4: Posição | E4: Pontos | F4: Bônus | G4: Penalidade | H4: Posição | I4: Pontos | J4: Bônus | K4: Penalidade | L4: Posição | M4: Pontos | N4: Bônus | O4: Penalidade | P4: Posição | Q4: Pontos | R4: Bônus | S4: Penalidade | T4: Posição | U4: Pontos | V4: Bônus | W4: Penalidade | X4: Posição | Y4: Pontos | Z4: Bônus | AA4: Penalidade | AB4: Posição | AC4: Pontos | AD4: Bônus | AE4: Penalidade | AF4: Posição | AG4: Pontos | AH4: Bônus | AI4: Penalidade | AJ4: Posição | AK4: Pontos | AL4: Bônus | AM4: Penalidade | AN4: Posição | AO4: Pontos | AP4: Bônus | AQ4: Penalidade | AR4: Posição | AS4: Pontos | AT4: Bônus | AU4: Penalidade | AV4: Posição | AW4: Pontos | AX4: Bônus | AY4: Penalidade | AZ4: 1º LUGAR | BA4: 2º LUGAR | BB4: 3º LUGAR | BC4: 4º LUGAR | BD4: 5º LUGAR | BE4: 6º LUGAR | BF4: 7º LUGAR | BG4: 8º LUGAR | BH4: 9º LUGAR | BI4: 10º LUGAR | BJ4: 11º LUGAR | BK4: 12º LUGAR | BL4: 13º LUGAR | BM4: 14º LUGAR | BN4: 15º LUGAR | BO4: 16º LUGAR | BP4: 17º LUGAR | BQ4: 18º LUGAR | BR4: 19º LUGAR | BS4: 20º LUGAR | BT4: 21º LUGAR | BU4: 22º LUGAR | BV4: 23º LUGAR | BW4: 24º LUGAR | BX4: 25º LUGAR | BY4: 26º LUGAR | BZ4: 27º LUGAR | CA4: 28º LUGAR | CB4: 29º LUGAR | CC4: 30º LUGAR | CD4: 31º LUGAR | CE4: 32º LUGAR | CF4: 33º LUGAR | CG4: 34º LUGAR | CH4: 35º LUGAR | CI4: 36º LUGAR | CJ4: 37º LUGAR | CK4: 38º LUGAR | CL4: 39º LUGAR | CM4: 40º LUGAR | CN4: 41º LUGAR
A5: 1 | B5: Augusto Lopes | C5: 61 | D5: 0 | E5: 0 | G5: SIM | H5: 34 | I5: 0 | K5: SIM | L5: 13 | M5: 3 | P5: 21 | Q5: 1 | T5: 21 | U5: 1 | V5: 1 | W5: -1 | X5: 19 | Y5: 1 | AB5: 1 | AC5: 20 | AF5: 4 | AG5: 13 | AK5: 0 | AM5: -1 | AN5: 1 | AO5: 20 | AR5: 10 | AS5: 6 | AW5: 0 | AY5: -3 | AZ5: 2 | BA5: 0 | BB5: 0 | BC5: 1 | BD5: 0 | BE5: 0 | BF5: 0 | BG5: 0 | BH5: 0 | BI5: 1 | BJ5: 0 | BK5: 0 | BL5: 1 | BM5: 0 | BN5: 0 | BO5: 0 | BP5: 0 | BQ5: 0 | BR5: 1 | BS5: 0 | BT5: 2 | BU5: 0 | BV5: 0 | BW5: 0 | BX5: 0 | BY5: 0 | BZ5: 0 | CA5: 0 | CB5: 0 | CC5: 0 | CD5: 0 | CE5: 0 | CF5: 0 | CG5: 1 | CH5: 0 | CI5: 0 | CJ5: 0 | CK5: 0 | CL5: 0 | CM5: 0 | CN5: 0
A6: 2 | B6: Bernardo Veloso | C6: 10 | D6: 12 | E6: 4 | I6: 0 | L6: 21 | M6: 1 | P6: 20 | Q6: 1 | U6: 0 | X6: 10 | Y6: 6 | AC6: 0 | AG6: 0 | AK6: 0 | AN6: 23 | AO6: 1 | AQ6: SIM | AS6: 0 | AW6: 0 | AY6: -3 | AZ6: 0 | BA6: 0 | BB6: 0 | BC6: 0 | BD6: 0 | BE6: 0 | BF6: 0 | BG6: 0 | BH6: 0 | BI6: 1 | BJ6: 0 | BK6: 1 | BL6: 0 | BM6: 0 | BN6: 0 | BO6: 0 | BP6: 0 | BQ6: 0 | BR6: 0 | BS6: 1 | BT6: 1 | BU6: 0 | BV6: 1 | BW6: 0 | BX6: 0 | BY6: 0 | BZ6: 0 | CA6: 0 | CB6: 0 | CC6: 0 | CD6: 0 | CE6: 0 | CF6: 0 | CG6: 0 | CH6: 0 | CI6: 0 | CJ6: 0 | CK6: 0 | CL6: 0 | CM6: 0 | CN6: 0
A7: 3 | B7: Bruno Botelho | C7: 43 | D7: 21 | E7: 1 | H7: 9 | I7: 7 | L7: 12 | M7: 4 | P7: 8 | Q7: 8 | U7: 0 | X7: 3 | Y7: 15 | AC7: 0 | AG7: 0 | AI7: -1 | AK7: 0 | AN7: 8 | AO7: 8 | AP7: 1 | AS7: 0 | AW7: 0 | AZ7: 0 | BA7: 0 | BB7: 1 | BC7: 0 | BD7: 0 | BE7: 0 | BF7: 0 | BG7: 2 | BH7: 1 | BI7: 0 | BJ7: 0 | BK7: 1 | BL7: 0 | BM7: 0 | BN7: 0 | BO7: 0 | BP7: 0 | BQ7: 0 | BR7: 0 | BS7: 0 | BT7: 1 | BU7: 0 | BV7: 0 | BW7: 0 | BX7: 0 | BY7: 0 | BZ7: 0 | CA7: 0 | CB7: 0 | CC7: 0 | CD7: 0 | CE7: 0 | CF7: 0 | CG7: 0 | CH7: 0 | CI7: 0 | CJ7: 0 | CK7: 0 | CL7: 0 | CM7: 0 | CN7: 0
A8: 4 | B8: Bruno Gomes | C8: 1 | D8: 15 | E8: 1 | H8: 17 | I8: 1 | L8: 22 | M8: 1 | P8: 18 | Q8: 1 | T8: 12 | U8: 4 | X8: 15 | Y8: 1 | AC8: 0 | AE8: -1 | AG8: 0 | AI8: -3 | AK8: 0 | AM8: -1 | AO8: 0 | AS8: 0 | AW8: 0 | AY8: -3 | AZ8: 0 | BA8: 0 | BB8: 0 | BC8: 0 | BD8: 0 | BE8: 0 | BF8: 0 | BG8: 0 | BH8: 0 | BI8: 0 | BJ8: 0 | BK8: 1 | BL8: 0 | BM8: 0 | BN8: 2 | BO8: 0 | BP8: 1 | BQ8: 1 | BR8: 0 | BS8: 0 | BT8: 0 | BU8: 1 | BV8: 0 | BW8: 0 | BX8: 0 | BY8: 0 | BZ8: 0 | CA8: 0 | CB8: 0 | CC8: 0 | CD8: 0 | CE8: 0 | CF8: 0 | CG8: 0 | CH8: 0 | CI8: 0 | CJ8: 0 | CK8: 0 | CL8: 0 | CM8: 0 | CN8: 0
A9: 5 | B9: Celso Dantas | C9: 0 | E9: 0 | G9: -3 | I9: 0 | L9: 25 | M9: 1 | Q9: 0 | S9: -1 | U9: 0 | W9: -3 | Y9: 0 | AC9: 0 | AG9: 0 | AI9: -3 | AK9: 0 | AO9: 0 | AS9: 0 | AW9: 0 | AZ9: 0 | BA9: 0 | BB9: 0 | BC9: 0 | BD9: 0 | BE9: 0 | BF9: 0 | BG9: 0 | BH9: 0 | BI9: 0 | BJ9: 0 | BK9: 0 | BL9: 0 | BM9: 0 | BN9: 0 | BO9: 0 | BP9: 0 | BQ9: 0 | BR9: 0 | BS9: 0 | BT9: 0 | BU9: 0 | BV9: 0 | BW9: 0 | BX9: 1 | BY9: 0 | BZ9: 0 | CA9: 0 | CB9: 0 | CC9: 0 | CD9: 0 | CE9: 0 | CF9: 0 | CG9: 0 | CH9: 0 | CI9: 0 | CJ9: 0 | CK9: 0 | CL9: 0 | CM9: 0 | CN9: 0
A10: 6 | B10: Christofer Laguna | C10: 148 | D10: 4 | E10: 13 | I10: 0 | L10: 1 | M10: 20 | P10: 9 | Q10: 7 | T10: 4 | U10: 13 | X10: 8 | Y10: 8 | AB10: 3 | AC10: 15 | AF10: 1 | AG10: 20 | AH10: 1 | AJ10: 6 | AK10: 10 | AN10: 15 | AO10: 1 | AQ10: SIM | AR10: 1 | AS10: 20 | AU10: -1 | AV10: 1 | AW10: 20 | AX10: 1 | AZ10: 4 | BA10: 0 | BB10: 1 | BC10: 2 | BD10: 0 | BE10: 1 | BF10: 0 | BG10: 1 | BH10: 1 | BI10: 0 | BJ10: 0 | BK10: 0 | BL10: 0 | BM10: 0 | BN10: 1 | BO10: 0 | BP10: 0 | BQ10: 0 | BR10: 0 | BS10: 0 | BT10: 0 | BU10: 0 | BV10: 0 | BW10: 0 | BX10: 0 | BY10: 0 | BZ10: 0 | CA10: 0 | CB10: 0 | CC10: 0 | CD10: 0 | CE10: 0 | CF10: 0 | CG10: 0 | CH10: 0 | CI10: 0 | CJ10: 0 | CK10: 0 | CL10: 0 | CM10: 0 | CN10: 0
A11: 7 | B11: Eduardo Vitol | C11: 102 | D11: 7 | E11: 9 | H11: 12 | I11: 4 | J11: 1 | K11: SIM | L11: 11 | M11: 5 | P11: 4 | Q11: 13 | T11: 6 | U11: 10 | X11: 9 | Y11: 7 | AB11: 11 | AC11: 5 | AG11: 0 | AJ11: 5 | AK11: 11 | AN11: 4 | AO11: 13 | AR11: 4 | AS11: 13 | AV11: 5 | AW11: 11 | AZ11: 0 | BA11: 0 | BB11: 0 | BC11: 3 | BD11: 2 | BE11: 1 | BF11: 1 | BG11: 0 | BH11: 1 | BI11: 0 | BJ11: 2 | BK11: 1 | BL11: 0 | BM11: 0 | BN11: 0 | BO11: 0 | BP11: 0 | BQ11: 0 | BR11: 0 | BS11: 0 | BT11: 0 | BU11: 0 | BV11: 0 | BW11: 0 | BX11: 0 | BY11: 0 | BZ11: 0 | CA11: 0 | CB11: 0 | CC11: 0 | CD11: 0 | CE11: 0 | CF11: 0 | CG11: 0 | CH11: 0 | CI11: 0 | CJ11: 0 | CK11: 0 | CL11: 0 | CM11: 0 | CN11: 0
A12: 8 | B12: Gislei Silva | C12: 41 | D12: 14 | E12: 2 | G12: -1 | H12: 1 | I12: 20 | L12: 7 | M12: 9 | P12: 13 | Q12: 3 | T12: 18 | U12: 1 | X12: 13 | Y12: 3 | AC12: 0 | AG12: 0 | AI12: -3 | AJ12: 9 | AK12: 7 | AN12: 13 | AO12: 3 | AQ12: SIM | AS12: 0 | AW12: 0 | AY12: -3 | AZ12: 1 | BA12: 0 | BB12: 0 | BC12: 0 | BD12: 0 | BE12: 0 | BF12: 1 | BG12: 0 | BH12: 1 | BI12: 0 | BJ12: 0 | BK12: 0 | BL12: 3 | BM12: 1 | BN12: 0 | BO12: 0 | BP12: 0 | BQ12: 1 | BR12: 0 | BS12: 0 | BT12: 0 | BU12: 0 | BV12: 0 | BW12: 0 | BX12: 0 | BY12: 0 | BZ12: 0 | CA12: 0 | CB12: 0 | CC12: 0 | CD12: 0 | CE12: 0 | CF12: 0 | CG12: 0 | CH12: 0 | CI12: 0 | CJ12: 0 | CK12: 0 | CL12: 0 | CM12: 0 | CN12: 0
A13: 9 | B13: Guilherme Rodrigues | C13: 113 | D13: 11 | E13: 5 | G13: SIM | H13: 3 | I13: 15 | L13: 18 | M13: 1 | Q13: 0 | T13: 9 | U13: 7 | X13: 0 | Y13: 0 | AA13: SIM | AB13: 4 | AC13: 13 | AF13: 5 | AG13: 11 | AJ13: 2 | AK13: 17 | AN13: 2 | AO13: 17 | AR13: 5 | AS13: 11 | AV13: 2 | AW13: 17 | AY13: -1 | AZ13: 0 | BA13: 3 | BB13: 1 | BC13: 1 | BD13: 2 | BE13: 0 | BF13: 0 | BG13: 0 | BH13: 1 | BI13: 0 | BJ13: 1 | BK13: 0 | BL13: 0 | BM13: 0 | BN13: 0 | BO13: 0 | BP13: 0 | BQ13: 1 | BR13: 0 | BS13: 0 | BT13: 0 | BU13: 0 | BV13: 0 | BW13: 0 | BX13: 0 | BY13: 0 | BZ13: 0 | CA13: 0 | CB13: 0 | CC13: 0 | CD13: 0 | CE13: 0 | CF13: 0 | CG13: 0 | CH13: 0 | CI13: 0 | CJ13: 0 | CK13: 0 | CL13: 0 | CM13: 0 | CN13: 0
A14: 10 | B14: Gustavo Reis | C14: 44 | D14: 16 | E14: 1 | I14: 0 | K14: -3 | L14: 9 | M14: 7 | P14: 2 | Q14: 17 | U14: 0 | W14: -3 | X14: 1 | Y14: 20 | AC14: 0 | AE14: -3 | AF14: 12 | AG14: 4 | AK14: 0 | AM14: -1 | AO14: 0 | AR14: 8 | AS14: 8 | AW14: 0 | AY14: -3 | AZ14: 1 | BA14: 1 | BB14: 0 | BC14: 0 | BD14: 0 | BE14: 0 | BF14: 0 | BG14: 1 | BH14: 1 | BI14: 0 | BJ14: 0 | BK14: 1 | BL14: 0 | BM14: 0 | BN14: 0 | BO14: 1 | BP14: 0 | BQ14: 0 | BR14: 0 | BS14: 0 | BT14: 0 | BU14: 0 | BV14: 0 | BW14: 0 | BX14: 0 | BY14: 0 | BZ14: 0 | CA14: 0 | CB14: 0 | CC14: 0 | CD14: 0 | CE14: 0 | CF14: 0 | CG14: 0 | CH14: 0 | CI14: 0 | CJ14: 0 | CK14: 0 | CL14: 0 | CM14: 0 | CN14: 0
A15: 11 | B15: Henrique Sarmento | C15: 54 | D15: 18 | E15: 1 | H15: 13 | I15: 3 | L15: 24 | M15: 1 | P15: 15 | Q15: 1 | T15: 5 | U15: 11 | X15: 16 | Y15: 1 | AB15: 8 | AC15: 8 | AF15: 14 | AG15: 2 | AJ15: 14 | AK15: 2 | AN15: 9 | AO15: 7 | AR15: 9 | AS15: 7 | AV15: 6 | AW15: 10 | AZ15: 0 | BA15: 0 | BB15: 0 | BC15: 0 | BD15: 1 | BE15: 1 | BF15: 0 | BG15: 1 | BH15: 2 | BI15: 0 | BJ15: 0 | BK15: 0 | BL15: 1 | BM15: 2 | BN15: 1 | BO15: 1 | BP15: 0 | BQ15: 1 | BR15: 0 | BS15: 0 | BT15: 0 | BU15: 0 | BV15: 0 | BW15: 1 | BX15: 0 | BY15: 0 | BZ15: 0 | CA15: 0 | CB15: 0 | CC15: 0 | CD15: 0 | CE15: 0 | CF15: 0 | CG15: 0 | CH15: 0 | CI15: 0 | CJ15: 0 | CK15: 0 | CL15: 0 | CM15: 0 | CN15: 0
A16: 12 | B16: Igor Helmold | C16: 81 | E16: 0 | G16: -3 | I16: 0 | L16: 10 | M16: 6 | P16: 3 | Q16: 15 | T16: 7 | U16: 9 | X16: 6 | Y16: 10 | AB16: 5 | AC16: 11 | AF16: 6 | AG16: 10 | AJ16: 7 | AK16: 9 | AN16: 11 | AO16: 5 | AR16: 6 | AS16: 10 | AW16: 0 | AY16: -1 | AZ16: 0 | BA16: 0 | BB16: 1 | BC16: 0 | BD16: 1 | BE16: 3 | BF16: 2 | BG16: 0 | BH16: 0 | BI16: 1 | BJ16: 1 | BK16: 0 | BL16: 0 | BM16: 0 | BN16: 0 | BO16: 0 | BP16: 0 | BQ16: 0 | BR16: 0 | BS16: 0 | BT16: 0 | BU16: 0 | BV16: 0 | BW16: 0 | BX16: 0 | BY16: 0 | BZ16: 0 | CA16: 0 | CB16: 0 | CC16: 0 | CD16: 0 | CE16: 0 | CF16: 0 | CG16: 0 | CH16: 0 | CI16: 0 | CJ16: 0 | CK16: 0 | CL16: 0 | CM16: 0 | CN16: 0
A17: 13 | B17: Ilton Sarmento | C17: 50 | D17: 20 | E17: 1 | H17: 14 | I17: 2 | L17: 16 | M17: 1 | P17: 11 | Q17: 5 | T17: 17 | U17: 1 | X17: 14 | Y17: 2 | AB17: 6 | AC17: 10 | AF17: 7 | AG17: 9 | AJ17: 10 | AK17: 6 | AN17: 10 | AO17: 6 | AR17: 24 | AS17: 1 | AU17: SIM | AV17: 10 | AW17: 6 | AZ17: 0 | BA17: 0 | BB17: 0 | BC17: 0 | BD17: 0 | BE17: 1 | BF17: 1 | BG17: 0 | BH17: 0 | BI17: 3 | BJ17: 1 | BK17: 0 | BL17: 0 | BM17: 2 | BN17: 0 | BO17: 1 | BP17: 1 | BQ17: 0 | BR17: 0 | BS17: 1 | BT17: 0 | BU17: 0 | BV17: 0 | BW17: 1 | BX17: 0 | BY17: 0 | BZ17: 0 | CA17: 0 | CB17: 0 | CC17: 0 | CD17: 0 | CE17: 0 | CF17: 0 | CG17: 0 | CH17: 0 | CI17: 0 | CJ17: 0 | CK17: 0 | CL17: 0 | CM17: 0 | CN17: 0
A18: 14 | B18: Júnior Torres | C18: 0 | E18: 0 | G18: -3 | I18: 0 | K18: -3 | M18: 0 | O18: -3 | Q18: 0 | S18: -3 | U18: 0 | W18: -3 | Y18: 0 | AA18: -3 | AC18: 0 | AE18: -3 | AG18: 0 | AI18: -3 | AK18: 0 | AM18: -3 | AO18: 0 | AQ18: -3 | AS18: 0 | AU18: -3 | AW18: 0 | AY18: -3 | AZ18: 0 | BA18: 0 | BB18: 0 | BC18: 0 | BD18: 0 | BE18: 0 | BF18: 0 | BG18: 0 | BH18: 0 | BI18: 0 | BJ18: 0 | BK18: 0 | BL18: 0 | BM18: 0 | BN18: 0 | BO18: 0 | BP18: 0 | BQ18: 0 | BR18: 0 | BS18: 0 | BT18: 0 | BU18: 0 | BV18: 0 | BW18: 0 | BX18: 0 | BY18: 0 | BZ18: 0 | CA18: 0 | CB18: 0 | CC18: 0 | CD18: 0 | CE18: 0 | CF18: 0 | CG18: 0 | CH18: 0 | CI18: 0 | CJ18: 0 | CK18: 0 | CL18: 0 | CM18: 0 | CN18: 0
A19: 15 | B19: Léo Dumont | C19: 85 | D19: 1 | E19: 20 | H19: 5 | I19: 11 | L19: 4 | M19: 13 | P19: 1 | Q19: 20 | R19: 1 | T19: 11 | U19: 5 | X19: 21 | Y19: 1 | AB19: 9 | AC19: 7 | AF19: 3 | AG19: 15 | AJ19: 16 | AK19: 1 | AO19: 0 | AQ19: -3 | AS19: 0 | AU19: -3 | AW19: 0 | AY19: -3 | AZ19: 2 | BA19: 0 | BB19: 1 | BC19: 1 | BD19: 1 | BE19: 0 | BF19: 0 | BG19: 0 | BH19: 1 | BI19: 0 | BJ19: 1 | BK19: 0 | BL19: 0 | BM19: 0 | BN19: 0 | BO19: 1 | BP19: 0 | BQ19: 0 | BR19: 0 | BS19: 0 | BT19: 1 | BU19: 0 | BV19: 0 | BW19: 0 | BX19: 0 | BY19: 0 | BZ19: 0 | CA19: 0 | CB19: 0 | CC19: 0 | CD19: 0 | CE19: 0 | CF19: 0 | CG19: 0 | CH19: 0 | CI19: 0 | CJ19: 0 | CK19: 0 | CL19: 0 | CM19: 0 | CN19: 0
A20: 16 | B20: Leonardo Sousa | C20: 54 | D20: 13 | E20: 3 | H20: 11 | I20: 5 | L20: 20 | M20: 1 | P20: 7 | Q20: 9 | T20: 13 | U20: 3 | X20: 30 | Y20: 1 | AA20: SIM | AC20: 0 | AE20: -3 | AF20: 9 | AG20: 7 | AJ20: 4 | AK20: 13 | AO20: 0 | AR20: 2 | AS20: 17 | AT20: 1 | AW20: 0 | AY20: -3 | AZ20: 0 | BA20: 1 | BB20: 0 | BC20: 1 | BD20: 0 | BE20: 0 | BF20: 1 | BG20: 0 | BH20: 1 | BI20: 0 | BJ20: 1 | BK20: 0 | BL20: 2 | BM20: 0 | BN20: 0 | BO20: 0 | BP20: 0 | BQ20: 0 | BR20: 0 | BS20: 1 | BT20: 0 | BU20: 0 | BV20: 0 | BW20: 0 | BX20: 0 | BY20: 0 | BZ20: 0 | CA20: 0 | CB20: 0 | CC20: 1 | CD20: 0 | CE20: 0 | CF20: 0 | CG20: 0 | CH20: 0 | CI20: 0 | CJ20: 0 | CK20: 0 | CL20: 0 | CM20: 0 | CN20: 0
A21: 17 | B21: xxxxx | C21: 0 | E21: 0 | I21: 0 | M21: 0 | Q21: 0 | U21: 0 | Y21: 0 | AC21: 0 | AG21: 0 | AK21: 0 | AO21: 0 | AS21: 0 | AW21: 0 | AZ21: 0 | BA21: 0 | BB21: 0 | BC21: 0 | BD21: 0 | BE21: 0 | BF21: 0 | BG21: 0 | BH21: 0 | BI21: 0 | BJ21: 0 | BK21: 0 | BL21: 0 | BM21: 0 | BN21: 0 | BO21: 0 | BP21: 0 | BQ21: 0 | BR21: 0 | BS21: 0 | BT21: 0 | BU21: 0 | BV21: 0 | BW21: 0 | BX21: 0 | BY21: 0 | BZ21: 0 | CA21: 0 | CB21: 0 | CC21: 0 | CD21: 0 | CE21: 0 | CF21: 0 | CG21: 0 | CH21: 0 | CI21: 0 | CJ21: 0 | CK21: 0 | CL21: 0 | CM21: 0 | CN21: 0
A22: 18 | B22: Ludving Mendez | C22: 38 | D22: 6 | E22: 10 | H22: 6 | I22: 10 | L22: 5 | M22: 11 | Q22: 0 | T22: 3 | U22: 15 | X22: 20 | Y22: 1 | AC22: 0 | AG22: 0 | AK22: 0 | AO22: 0 | AQ22: -3 | AS22: 0 | AU22: -3 | AW22: 0 | AY22: -3 | AZ22: 0 | BA22: 0 | BB22: 1 | BC22: 0 | BD22: 1 | BE22: 2 | BF22: 0 | BG22: 0 | BH22: 0 | BI22: 0 | BJ22: 0 | BK22: 0 | BL22: 0 | BM22: 0 | BN22: 0 | BO22: 0 | BP22: 0 | BQ22: 0 | BR22: 0 | BS22: 1 | BT22: 0 | BU22: 0 | BV22: 0 | BW22: 0 | BX22: 0 | BY22: 0 | BZ22: 0 | CA22: 0 | CB22: 0 | CC22: 0 | CD22: 0 | CE22: 0 | CF22: 0 | CG22: 0 | CH22: 0 | CI22: 0 | CJ22: 0 | CK22: 0 | CL22: 0 | CM22: 0 | CN22: 0
A23: 19 | B23: Marcelo Almeida | C23: 36 | D23: 5 | E23: 11 | H23: 4 | I23: 13 | L23: 6 | M23: 10 | P23: 10 | Q23: 6 | U23: 0 | Y23: 0 | AA23: -1 | AC23: 0 | AG23: 0 | AK23: 0 | AO23: 0 | AS23: 0 | AW23: 0 | AY23: -3 | AZ23: 0 | BA23: 0 | BB23: 0 | BC23: 1 | BD23: 1 | BE23: 1 | BF23: 0 | BG23: 0 | BH23: 0 | BI23: 1 | BJ23: 0 | BK23: 0 | BL23: 0 | BM23: 0 | BN23: 0 | BO23: 0 | BP23: 0 | BQ23: 0 | BR23: 0 | BS23: 0 | BT23: 0 | BU23: 0 | BV23: 0 | BW23: 0 | BX23: 0 | BY23: 0 | BZ23: 0 | CA23: 0 | CB23: 0 | CC23: 0 | CD23: 0 | CE23: 0 | CF23: 0 | CG23: 0 | CH23: 0 | CI23: 0 | CJ23: 0 | CK23: 0 | CL23: 0 | CM23: 0 | CN23: 0
A24: 20 | B24: Marcelo Parizzi | C24: 0 | D24: 17 | E24: 1 | I24: 0 | L24: 15 | M24: 1 | P24: 6 | Q24: 10 | U24: 0 | Y24: 0 | AC24: 0 | AG24: 0 | AI24: -3 | AK24: 0 | AM24: -3 | AO24: 0 | AQ24: -3 | AS24: 0 | AU24: -3 | AW24: 0 | AY24: -3 | AZ24: 0 | BA24: 0 | BB24: 0 | BC24: 0 | BD24: 0 | BE24: 1 | BF24: 0 | BG24: 0 | BH24: 0 | BI24: 0 | BJ24: 0 | BK24: 0 | BL24: 0 | BM24: 0 | BN24: 1 | BO24: 0 | BP24: 1 | BQ24: 0 | BR24: 0 | BS24: 0 | BT24: 0 | BU24: 0 | BV24: 0 | BW24: 0 | BX24: 0 | BY24: 0 | BZ24: 0 | CA24: 0 | CB24: 0 | CC24: 0 | CD24: 0 | CE24: 0 | CF24: 0 | CG24: 0 | CH24: 0 | CI24: 0 | CJ24: 0 | CK24: 0 | CL24: 0 | CM24: 0 | CN24: 0
A25: 21 | B25: Marco Rinold | C25: 0 | E25: 0 | G25: -3 | I25: 0 | K25: -3 | M25: 0 | O25: -3 | Q25: 0 | S25: -1 | U25: 0 | W25: -3 | Y25: 0 | AA25: -3 | AC25: 0 | AE25: -3 | AG25: 0 | AI25: -3 | AK25: 0 | AM25: -3 | AO25: 0 | AQ25: -3 | AS25: 0 | AU25: -3 | AW25: 0 | AY25: -3 | AZ25: 0 | BA25: 0 | BB25: 0 | BC25: 0 | BD25: 0 | BE25: 0 | BF25: 0 | BG25: 0 | BH25: 0 | BI25: 0 | BJ25: 0 | BK25: 0 | BL25: 0 | BM25: 0 | BN25: 0 | BO25: 0 | BP25: 0 | BQ25: 0 | BR25: 0 | BS25: 0 | BT25: 0 | BU25: 0 | BV25: 0 | BW25: 0 | BX25: 0 | BY25: 0 | BZ25: 0 | CA25: 0 | CB25: 0 | CC25: 0 | CD25: 0 | CE25: 0 | CF25: 0 | CG25: 0 | CH25: 0 | CI25: 0 | CJ25: 0 | CK25: 0 | CL25: 0 | CM25: 0 | CN25: 0
A26: 22 | B26: Marcus Brum | C26: 58 | D26: 10 | E26: 6 | H26: 8 | I26: 8 | L26: 14 | M26: 2 | P26: 5 | Q26: 11 | T26: 16 | U26: 1 | Y26: 0 | AA26: -1 | AC26: 0 | AG26: 0 | AJ26: 15 | AK26: 1 | AN26: 3 | AO26: 15 | AR26: 3 | AS26: 15 | AW26: 0 | AZ26: 0 | BA26: 0 | BB26: 2 | BC26: 0 | BD26: 1 | BE26: 0 | BF26: 0 | BG26: 1 | BH26: 0 | BI26: 1 | BJ26: 0 | BK26: 0 | BL26: 0 | BM26: 1 | BN26: 1 | BO26: 1 | BP26: 0 | BQ26: 0 | BR26: 0 | BS26: 0 | BT26: 0 | BU26: 0 | BV26: 0 | BW26: 0 | BX26: 0 | BY26: 0 | BZ26: 0 | CA26: 0 | CB26: 0 | CC26: 0 | CD26: 0 | CE26: 0 | CF26: 0 | CG26: 0 | CH26: 0 | CI26: 0 | CJ26: 0 | CK26: 0 | CL26: 0 | CM26: 0 | CN26: 0
A27: 23 | B27: Maria Borges | C27: 156 | D27: 2 | E27: 17 | H27: 2 | I27: 17 | L27: 3 | M27: 15 | N27: 1 | P27: 12 | Q27: 4 | T27: 1 | U27: 20 | X27: 4 | Y27: 13 | AA27: -1 | AB27: 2 | AC27: 17 | AD27: 1 | AE27: -1 | AF27: 2 | AG27: 17 | AJ27: 8 | AK27: 8 | AN27: 7 | AO27: 9 | AQ27: -1 | AR27: 11 | AS27: 5 | AV27: 3 | AW27: 15 | AZ27: 1 | BA27: 4 | BB27: 2 | BC27: 1 | BD27: 0 | BE27: 0 | BF27: 1 | BG27: 1 | BH27: 0 | BI27: 0 | BJ27: 1 | BK27: 1 | BL27: 0 | BM27: 0 | BN27: 0 | BO27: 0 | BP27: 0 | BQ27: 0 | BR27: 0 | BS27: 0 | BT27: 0 | BU27: 0 | BV27: 0 | BW27: 0 | BX27: 0 | BY27: 0 | BZ27: 0 | CA27: 0 | CB27: 0 | CC27: 0 | CD27: 0 | CE27: 0 | CF27: 0 | CG27: 0 | CH27: 0 | CI27: 0 | CJ27: 0 | CK27: 0 | CL27: 0 | CM27: 0 | CN27: 0
A28: 24 | B28: Matheus Sarmento | C28: 67 | D28: 9 | E28: 7 | H28: 18 | I28: 1 | L28: 17 | M28: 1 | P28: 17 | Q28: 1 | T28: 8 | U28: 8 | X28: 17 | Y28: 1 | AB28: 10 | AC28: 6 | AF28: 8 | AG28: 8 | AJ28: 13 | AK28: 3 | AM28: -1 | AN28: 6 | AO28: 10 | AR28: 7 | AS28: 9 | AV28: 4 | AW28: 13 | AZ28: 0 | BA28: 0 | BB28: 0 | BC28: 1 | BD28: 0 | BE28: 1 | BF28: 1 | BG28: 2 | BH28: 1 | BI28: 1 | BJ28: 0 | BK28: 0 | BL28: 1 | BM28: 0 | BN28: 0 | BO28: 0 | BP28: 3 | BQ28: 1 | BR28: 0 | BS28: 0 | BT28: 0 | BU28: 0 | BV28: 0 | BW28: 0 | BX28: 0 | BY28: 0 | BZ28: 0 | CA28: 0 | CB28: 0 | CC28: 0 | CD28: 0 | CE28: 0 | CF28: 0 | CG28: 0 | CH28: 0 | CI28: 0 | CJ28: 0 | CK28: 0 | CL28: 0 | CM28: 0 | CN28: 0
A29: 25 | B29: Rafael Colen | C29: 33 | E29: 0 | G29: -1 | H29: 15 | I29: 1 | L29: 19 | M29: 1 | P29: 27 | Q29: 1 | S29: SIM | U29: 0 | W29: -3 | X29: 2 | Y29: 17 | AB29: 13 | AC29: 3 | AF29: 13 | AG29: 3 | AJ29: 11 | AK29: 5 | AO29: 0 | AQ29: -3 | AS29: 0 | AV29: 7 | AW29: 9 | AZ29: 0 | BA29: 1 | BB29: 0 | BC29: 0 | BD29: 0 | BE29: 0 | BF29: 1 | BG29: 0 | BH29: 0 | BI29: 0 | BJ29: 1 | BK29: 0 | BL29: 2 | BM29: 0 | BN29: 1 | BO29: 0 | BP29: 0 | BQ29: 0 | BR29: 1 | BS29: 0 | BT29: 0 | BU29: 0 | BV29: 0 | BW29: 0 | BX29: 0 | BY29: 0 | BZ29: 1 | CA29: 0 | CB29: 0 | CC29: 0 | CD29: 0 | CE29: 0 | CF29: 0 | CG29: 0 | CH29: 0 | CI29: 0 | CJ29: 0 | CK29: 0 | CL29: 0 | CM29: 0 | CN29: 0
A30: 26 | B30: Reila Ricardo | C30: 60 | D30: 8 | E30: 8 | H30: 10 | I30: 6 | L30: 2 | M30: 17 | P30: 16 | Q30: 1 | T30: 15 | U30: 1 | X30: 0 | Y30: 0 | AA30: SIM | AC30: 0 | AF30: 11 | AG30: 5 | AJ30: 12 | AK30: 4 | AN30: 5 | AO30: 11 | AS30: 0 | AV30: 9 | AW30: 7 | AZ30: 0 | BA30: 1 | BB30: 0 | BC30: 0 | BD30: 1 | BE30: 0 | BF30: 0 | BG30: 1 | BH30: 1 | BI30: 1 | BJ30: 1 | BK30: 1 | BL30: 0 | BM30: 0 | BN30: 1 | BO30: 1 | BP30: 0 | BQ30: 0 | BR30: 0 | BS30: 0 | BT30: 0 | BU30: 0 | BV30: 0 | BW30: 0 | BX30: 0 | BY30: 0 | BZ30: 0 | CA30: 0 | CB30: 0 | CC30: 0 | CD30: 0 | CE30: 0 | CF30: 0 | CG30: 0 | CH30: 0 | CI30: 0 | CJ30: 0 | CK30: 0 | CL30: 0 | CM30: 0 | CN30: 0
A31: 27 | B31: Ronaldo Ribeiro | C31: 6 | D31: 19 | E31: 1 | I31: 0 | M31: 0 | O31: -3 | Q31: 0 | T31: 10 | U31: 6 | W31: -1 | X31: 7 | Y31: 9 | AC31: 0 | AE31: -3 | AG31: 0 | AI31: -3 | AK31: 0 | AO31: 0 | AS31: 0 | AW31: 0 | AZ31: 0 | BA31: 0 | BB31: 0 | BC31: 0 | BD31: 0 | BE31: 0 | BF31: 1 | BG31: 0 | BH31: 0 | BI31: 1 | BJ31: 0 | BK31: 0 | BL31: 0 | BM31: 0 | BN31: 0 | BO31: 0 | BP31: 0 | BQ31: 0 | BR31: 1 | BS31: 0 | BT31: 0 | BU31: 0 | BV31: 0 | BW31: 0 | BX31: 0 | BY31: 0 | BZ31: 0 | CA31: 0 | CB31: 0 | CC31: 0 | CD31: 0 | CE31: 0 | CF31: 0 | CG31: 0 | CH31: 0 | CI31: 0 | CJ31: 0 | CK31: 0 | CL31: 0 | CM31: 0 | CN31: 0
A32: 28 | B32: Thiago Alves | C32: 18 | E32: 0 | G32: -3 | H32: 7 | I32: 9 | L32: 8 | M32: 8 | P32: 14 | Q32: 2 | T32: 14 | U32: 2 | Y32: 0 | AB32: 7 | AC32: 9 | AG32: 0 | AK32: 0 | AO32: 0 | AQ32: -3 | AS32: 0 | AU32: -3 | AW32: 0 | AY32: -3 | AZ32: 0 | BA32: 0 | BB32: 0 | BC32: 0 | BD32: 0 | BE32: 0 | BF32: 2 | BG32: 1 | BH32: 0 | BI32: 0 | BJ32: 0 | BK32: 0 | BL32: 0 | BM32: 2 | BN32: 0 | BO32: 0 | BP32: 0 | BQ32: 0 | BR32: 0 | BS32: 0 | BT32: 0 | BU32: 0 | BV32: 0 | BW32: 0 | BX32: 0 | BY32: 0 | BZ32: 0 | CA32: 0 | CB32: 0 | CC32: 0 | CD32: 0 | CE32: 0 | CF32: 0 | CG32: 0 | CH32: 0 | CI32: 0 | CJ32: 0 | CK32: 0 | CL32: 0 | CM32: 0 | CN32: 0
A33: 29 | B33: Thiago Michatoski | C33: 0 | E33: 0 | G33: -3 | I33: 0 | K33: -3 | M33: 0 | O33: -3 | Q33: 0 | S33: -3 | U33: 0 | W33: -3 | Y33: 0 | AA33: -3 | AC33: 0 | AE33: -3 | AG33: 0 | AI33: -3 | AK33: 0 | AM33: -3 | AO33: 0 | AQ33: -3 | AS33: 0 | AU33: -3 | AW33: 0 | AY33: -3 | AZ33: 0 | BA33: 0 | BB33: 0 | BC33: 0 | BD33: 0 | BE33: 0 | BF33: 0 | BG33: 0 | BH33: 0 | BI33: 0 | BJ33: 0 | BK33: 0 | BL33: 0 | BM33: 0 | BN33: 0 | BO33: 0 | BP33: 0 | BQ33: 0 | BR33: 0 | BS33: 0 | BT33: 0 | BU33: 0 | BV33: 0 | BW33: 0 | BX33: 0 | BY33: 0 | BZ33: 0 | CA33: 0 | CB33: 0 | CC33: 0 | CD33: 0 | CE33: 0 | CF33: 0 | CG33: 0 | CH33: 0 | CI33: 0 | CJ33: 0 | CK33: 0 | CL33: 0 | CM33: 0 | CN33: 0
A34: 30 | B34: Will Francino | C34: 3 | D34: 3 | E34: 15 | F34: 1 | I34: 0 | K34: -1 | M34: 0 | Q34: 0 | U34: 0 | Y34: 0 | AC34: 0 | AE34: -3 | AG34: 0 | AI34: -3 | AK34: 0 | AO34: 0 | AS34: 0 | AU34: -3 | AW34: 0 | AY34: -3 | AZ34: 0 | BA34: 0 | BB34: 1 | BC34: 0 | BD34: 0 | BE34: 0 | BF34: 0 | BG34: 0 | BH34: 0 | BI34: 0 | BJ34: 0 | BK34: 0 | BL34: 0 | BM34: 0 | BN34: 0 | BO34: 0 | BP34: 0 | BQ34: 0 | BR34: 0 | BS34: 0 | BT34: 0 | BU34: 0 | BV34: 0 | BW34: 0 | BX34: 0 | BY34: 0 | BZ34: 0 | CA34: 0 | CB34: 0 | CC34: 0 | CD34: 0 | CE34: 0 | CF34: 0 | CG34: 0 | CH34: 0 | CI34: 0 | CJ34: 0 | CK34: 0 | CL34: 0 | CM34: 0 | CN34: 0
A35: 31 | B35: Enedson Gomes | C35: 1 | E35: 0 | H35: 16 | I35: 1 | L35: 23 | M35: 1 | P35: 19 | Q35: 1 | S35: -1 | T35: 20 | U35: 1 | X35: 18 | Y35: 1 | AC35: 0 | AG35: 0 | AK35: 0 | AO35: 0 | AS35: 0 | AW35: 0 | AY35: -3 | AZ35: 0 | BA35: 0 | BB35: 0 | BC35: 0 | BD35: 0 | BE35: 0 | BF35: 0 | BG35: 0 | BH35: 0 | BI35: 0 | BJ35: 0 | BK35: 0 | BL35: 0 | BM35: 0 | BN35: 0 | BO35: 1 | BP35: 0 | BQ35: 1 | BR35: 1 | BS35: 1 | BT35: 0 | BU35: 0 | BV35: 1 | BW35: 0 | BX35: 0 | BY35: 0 | BZ35: 0 | CA35: 0 | CB35: 0 | CC35: 0 | CD35: 0 | CE35: 0 | CF35: 0 | CG35: 0 | CH35: 0 | CI35: 0 | CJ35: 0 | CK35: 0 | CL35: 0 | CM35: 0 | CN35: 0
A36: 32 | B36: Rodrigo Mendonça | C36: 46 | E36: 0 | G36: NÃO | I36: 0 | K36: NÃO | M36: 0 | O36: NÃO | Q36: 0 | S36: NÃO | T36: 2 | U36: 17 | X36: 11 | Y36: 5 | Z36: 1 | AA36: SIM | AB36: 12 | AC36: 4 | AG36: 0 | AI36: -3 | AJ36: 1 | AK36: 20 | AL36: 1 | AO36: 0 | AR36: 12 | AS36: 4 | AW36: 0 | AY36: -3 | AZ36: 1 | BA36: 1 | BB36: 0 | BC36: 0 | BD36: 0 | BE36: 0 | BF36: 0 | BG36: 0 | BH36: 0 | BI36: 0 | BJ36: 1 | BK36: 2 | BL36: 0 | BM36: 0 | BN36: 0 | BO36: 0 | BP36: 0 | BQ36: 0 | BR36: 0 | BS36: 0 | BT36: 0 | BU36: 0 | BV36: 0 | BW36: 0 | BX36: 0 | BY36: 0 | BZ36: 0 | CA36: 0 | CB36: 0 | CC36: 0 | CD36: 0 | CE36: 0 | CF36: 0 | CG36: 0 | CH36: 0 | CI36: 0 | CJ36: 0 | CK36: 0 | CL36: 0 | CM36: 0 | CN36: 0
A37: 33 | B37: Silvano | C37: 37 | E37: 0 | G37: NÃO | I37: 0 | K37: NÃO | M37: 0 | O37: NÃO | Q37: 0 | S37: NÃO | T37: 19 | U37: 1 | X37: 12 | Y37: 4 | AC37: 0 | AF37: 10 | AG37: 6 | AJ37: 3 | AK37: 15 | AO37: 0 | AR37: 13 | AS37: 3 | AV37: 8 | AW37: 8 | AZ37: 0 | BA37: 0 | BB37: 1 | BC37: 0 | BD37: 0 | BE37: 0 | BF37: 0 | BG37: 1 | BH37: 0 | BI37: 1 | BJ37: 0 | BK37: 1 | BL37: 1 | BM37: 0 | BN37: 0 | BO37: 0 | BP37: 0 | BQ37: 0 | BR37: 1 | BS37: 0 | BT37: 0 | BU37: 0 | BV37: 0 | BW37: 0 | BX37: 0 | BY37: 0 | BZ37: 0 | CA37: 0 | CB37: 0 | CC37: 0 | CD37: 0 | CE37: 0 | CF37: 0 | CG37: 0 | CH37: 0 | CI37: 0 | CJ37: 0 | CK37: 0 | CL37: 0 | CM37: 0 | CN37: 0
A38: 34 | B38: André Colen | C38: 0 | E38: 0 | G38: NÃO | I38: 0 | K38: NÃO | M38: 0 | O38: NÃO | Q38: 0 | S38: NÃO | U38: 0 | W38: NÃO | X38: 5 | Y38: 11 | AC38: 0 | AE38: -3 | AG38: 0 | AI38: -3 | AK38: 0 | AM38: -3 | AO38: 0 | AQ38: -3 | AS38: 0 | AU38: -3 | AW38: 0 | AY38: -3 | AZ38: 0 | BA38: 0 | BB38: 0 | BC38: 0 | BD38: 1 | BE38: 0 | BF38: 0 | BG38: 0 | BH38: 0 | BI38: 0 | BJ38: 0 | BK38: 0 | BL38: 0 | BM38: 0 | BN38: 0 | BO38: 0 | BP38: 0 | BQ38: 0 | BR38: 0 | BS38: 0 | BT38: 0 | BU38: 0 | BV38: 0 | BW38: 0 | BX38: 0 | BY38: 0 | BZ38: 0 | CA38: 0 | CB38: 0 | CC38: 0 | CD38: 0 | CE38: 0 | CF38: 0 | CG38: 0 | CH38: 0 | CI38: 0 | CJ38: 0 | CK38: 0 | CL38: 0 | CM38: 0 | CN38: 0
A39: 35 | B39: Francisco Biulchi | C39: 0 | E39: 0 | I39: 0 | M39: 0 | Q39: 0 | U39: 0 | Y39: 0 | AC39: 0 | AG39: 0 | AK39: 0 | AO39: 0 | AS39: 0 | AW39: 0 | AY39: -1 | AZ39: 0 | BA39: 1 | BB39: 0 | BC39: 0 | BD39: 0 | BE39: 1 | BF39: 0 | BG39: 0 | BH39: 0 | BI39: 0 | BJ39: 0 | BK39: 0 | BL39: 0 | BM39: 0 | BN39: 1 | BO39: 0 | BP39: 0 | BQ39: 0 | BR39: 0 | BS39: 0 | BT39: 0 | BU39: 0 | BV39: 0 | BW39: 0 | BX39: 0 | BY39: 0 | BZ39: 0 | CA39: 0 | CB39: 0 | CC39: 0 | CD39: 0 | CE39: 0 | CF39: 0 | CG39: 0 | CH39: 0 | CI39: 0 | CJ39: 0 | CK39: 0 | CL39: 0 | CM39: 0 | CN39: 0
A40: 36 | C40: 0 | E40: 0 | I40: 0 | M40: 0 | Q40: 0 | U40: 0 | Y40: 0 | AC40: 0 | AG40: 0 | AK40: 0 | AO40: 0 | AS40: 0 | AW40: 0 | AZ40: 0 | BA40: 0 | BB40: 0 | BC40: 0 | BD40: 0 | BE40: 0 | BF40: 0 | BG40: 0 | BH40: 0 | BI40: 0 | BJ40: 0 | BK40: 0 | BL40: 0 | BM40: 0 | BN40: 0 | BO40: 0 | BP40: 0 | BQ40: 0 | BR40: 0 | BS40: 0 | BT40: 0 | BU40: 0 | BV40: 0 | BW40: 0 | BX40: 0 | BY40: 0 | BZ40: 0 | CA40: 0 | CB40: 0 | CC40: 0 | CD40: 0 | CE40: 0 | CF40: 0 | CG40: 0 | CH40: 0 | CI40: 0 | CJ40: 0 | CK40: 0 | CL40: 0 | CM40: 0 | CN40: 0
A41: 37 | C41: 0 | E41: 0 | I41: 0 | M41: 0 | Q41: 0 | U41: 0 | Y41: 0 | AC41: 0 | AG41: 0 | AK41: 0 | AO41: 0 | AS41: 0 | AW41: 0 | AZ41: 0 | BA41: 0 | BB41: 0 | BC41: 0 | BD41: 0 | BE41: 0 | BF41: 0 | BG41: 0 | BH41: 0 | BI41: 0 | BJ41: 0 | BK41: 0 | BL41: 0 | BM41: 0 | BN41: 0 | BO41: 0 | BP41: 0 | BQ41: 0 | BR41: 0 | BS41: 0 | BT41: 0 | BU41: 0 | BV41: 0 | BW41: 0 | BX41: 0 | BY41: 0 | BZ41: 0 | CA41: 0 | CB41: 0 | CC41: 0 | CD41: 0 | CE41: 0 | CF41: 0 | CG41: 0 | CH41: 0 | CI41: 0 | CJ41: 0 | CK41: 0 | CL41: 0 | CM41: 0 | CN41: 0
A42: 38 | C42: 0 | E42: 0 | I42: 0 | M42: 0 | Q42: 0 | U42: 0 | Y42: 0 | AC42: 0 | AG42: 0 | AK42: 0 | AO42: 0 | AS42: 0 | AW42: 0 | AZ42: 0 | BA42: 0 | BB42: 0 | BC42: 0 | BD42: 0 | BE42: 0 | BF42: 0 | BG42: 0 | BH42: 0 | BI42: 0 | BJ42: 0 | BK42: 0 | BL42: 0 | BM42: 0 | BN42: 0 | BO42: 0 | BP42: 0 | BQ42: 0 | BR42: 0 | BS42: 0 | BT42: 0 | BU42: 0 | BV42: 0 | BW42: 0 | BX42: 0 | BY42: 0 | BZ42: 0 | CA42: 0 | CB42: 0 | CC42: 0 | CD42: 0 | CE42: 0 | CF42: 0 | CG42: 0 | CH42: 0 | CI42: 0 | CJ42: 0 | CK42: 0 | CL42: 0 | CM42: 0 | CN42: 0
A43: 39 | C43: 0 | E43: 0 | I43: 0 | M43: 0 | Q43: 0 | U43: 0 | Y43: 0 | AC43: 0 | AG43: 0 | AK43: 0 | AO43: 0 | AS43: 0 | AW43: 0 | AZ43: 0 | BA43: 0 | BB43: 0 | BC43: 0 | BD43: 0 | BE43: 0 | BF43: 0 | BG43: 0 | BH43: 0 | BI43: 0 | BJ43: 0 | BK43: 0 | BL43: 0 | BM43: 0 | BN43: 0 | BO43: 0 | BP43: 0 | BQ43: 0 | BR43: 0 | BS43: 0 | BT43: 0 | BU43: 0 | BV43: 0 | BW43: 0 | BX43: 0 | BY43: 0 | BZ43: 0 | CA43: 0 | CB43: 0 | CC43: 0 | CD43: 0 | CE43: 0 | CF43: 0 | CG43: 0 | CH43: 0 | CI43: 0 | CJ43: 0 | CK43: 0 | CL43: 0 | CM43: 0 | CN43: 0
A44: 40 | C44: 0 | E44: 0 | I44: 0 | M44: 0 | Q44: 0 | U44: 0 | Y44: 0 | AC44: 0 | AG44: 0 | AK44: 0 | AO44: 0 | AS44: 0 | AW44: 0 | AZ44: 0 | BA44: 0 | BB44: 0 | BC44: 0 | BD44: 0 | BE44: 0 | BF44: 0 | BG44: 0 | BH44: 0 | BI44: 0 | BJ44: 0 | BK44: 0 | BL44: 0 | BM44: 0 | BN44: 0 | BO44: 0 | BP44: 0 | BQ44: 0 | BR44: 0 | BS44: 0 | BT44: 0 | BU44: 0 | BV44: 0 | BW44: 0 | BX44: 0 | BY44: 0 | BZ44: 0 | CA44: 0 | CB44: 0 | CC44: 0 | CD44: 0 | CE44: 0 | CF44: 0 | CG44: 0 | CH44: 0 | CI44: 0 | CJ44: 0 | CK44: 0 | CL44: 0 | CM44: 0 | CN44: 0
A45: 41 | C45: 0 | E45: 0 | I45: 0 | M45: 0 | Q45: 0 | U45: 0 | Y45: 0 | AC45: 0 | AG45: 0 | AK45: 0 | AO45: 0 | AS45: 0 | AW45: 0 | AZ45: 0 | BA45: 0 | BB45: 0 | BC45: 0 | BD45: 0 | BE45: 0 | BF45: 0 | BG45: 0 | BH45: 0 | BI45: 0 | BJ45: 0 | BK45: 0 | BL45: 0 | BM45: 0 | BN45: 0 | BO45: 0 | BP45: 0 | BQ45: 0 | BR45: 0 | BS45: 0 | BT45: 0 | BU45: 0 | BV45: 0 | BW45: 0 | BX45: 0 | BY45: 0 | BZ45: 0 | CA45: 0 | CB45: 0 | CC45: 0 | CD45: 0 | CE45: 0 | CF45: 0 | CG45: 0 | CH45: 0 | CI45: 0 | CJ45: 0 | CK45: 0 | CL45: 0 | CM45: 0 | CN45: 0
A46: 42 | C46: 0 | E46: 0 | I46: 0 | M46: 0 | Q46: 0 | U46: 0 | Y46: 0 | AC46: 0 | AG46: 0 | AK46: 0 | AO46: 0 | AS46: 0 | AW46: 0 | AZ46: 0 | BA46: 0 | BB46: 0 | BC46: 0 | BD46: 0 | BE46: 0 | BF46: 0 | BG46: 0 | BH46: 0 | BI46: 0 | BJ46: 0 | BK46: 0 | BL46: 0 | BM46: 0 | BN46: 0 | BO46: 0 | BP46: 0 | BQ46: 0 | BR46: 0 | BS46: 0 | BT46: 0 | BU46: 0 | BV46: 0 | BW46: 0 | BX46: 0 | BY46: 0 | BZ46: 0 | CA46: 0 | CB46: 0 | CC46: 0 | CD46: 0 | CE46: 0 | CF46: 0 | CG46: 0 | CH46: 0 | CI46: 0 | CJ46: 0 | CK46: 0 | CL46: 0 | CM46: 0 | CN46: 0
A47: 43 | C47: 0 | E47: 0 | I47: 0 | M47: 0 | Q47: 0 | U47: 0 | Y47: 0 | AC47: 0 | AG47: 0 | AK47: 0 | AO47: 0 | AS47: 0 | AW47: 0 | AZ47: 0 | BA47: 0 | BB47: 0 | BC47: 0 | BD47: 0 | BE47: 0 | BF47: 0 | BG47: 0 | BH47: 0 | BI47: 0 | BJ47: 0 | BK47: 0 | BL47: 0 | BM47: 0 | BN47: 0 | BO47: 0 | BP47: 0 | BQ47: 0 | BR47: 0 | BS47: 0 | BT47: 0 | BU47: 0 | BV47: 0 | BW47: 0 | BX47: 0 | BY47: 0 | BZ47: 0 | CA47: 0 | CB47: 0 | CC47: 0 | CD47: 0 | CE47: 0 | CF47: 0 | CG47: 0 | CH47: 0 | CI47: 0 | CJ47: 0 | CK47: 0 | CL47: 0 | CM47: 0 | CN47: 0
A48: 44 | C48: 0 | E48: 0 | I48: 0 | M48: 0 | Q48: 0 | U48: 0 | Y48: 0 | AC48: 0 | AG48: 0 | AK48: 0 | AO48: 0 | AS48: 0 | AW48: 0 | AZ48: 0 | BA48: 0 | BB48: 0 | BC48: 0 | BD48: 0 | BE48: 0 | BF48: 0 | BG48: 0 | BH48: 0 | BI48: 0 | BJ48: 0 | BK48: 0 | BL48: 0 | BM48: 0 | BN48: 0 | BO48: 0 | BP48: 0 | BQ48: 0 | BR48: 0 | BS48: 0 | BT48: 0 | BU48: 0 | BV48: 0 | BW48: 0 | BX48: 0 | BY48: 0 | BZ48: 0 | CA48: 0 | CB48: 0 | CC48: 0 | CD48: 0 | CE48: 0 | CF48: 0 | CG48: 0 | CH48: 0 | CI48: 0 | CJ48: 0 | CK48: 0 | CL48: 0 | CM48: 0 | CN48: 0
A49: 45 | C49: 0 | D49: xxx | E49: xxx | F49: xxx | G49: xxx | H49: xxx | I49: xxx | J49: xxx | K49: xxx | L49: xxx | M49: xxx | N49: xxx | O49: xxx | P49: xxx | Q49: xxx | R49: xxx | S49: xxx | T49: xxx | U49: xxx | V49: xxx | W49: xxx | Y49: xxx | Z49: xxx | AA49: xxx | AB49: xxx | AC49: xxx | AD49: xxx | AE49: xxx | AF49: xxx | AG49: xxx | AH49: xxx | AI49: xxx | AJ49: xxx | AK49: xxx | AL49: xxx | AM49: xxx | AN49: xxx | AO49: xxx | AP49: xxx | AQ49: xxx | AR49: xxx | AS49: xxx | AT49: xxx | AU49: xxx | AV49: xxx | AW49: xxx | AX49: xxx | AY49: xxx | AZ49: 0 | BA49: 0 | BB49: 0 | BC49: 0 | BD49: 0 | BE49: 0 | BF49: 0 | BG49: 0 | BH49: 0 | BI49: 0 | BJ49: 0 | BK49: 0 | BL49: 0 | BM49: 0 | BN49: 0 | BO49: 0 | BP49: 0 | BQ49: 0 | BR49: 0 | BS49: 0 | BT49: 0 | BU49: 0 | BV49: 0 | BW49: 0 | BX49: 0 | BY49: 0 | BZ49: 0 | CA49: 0 | CB49: 0 | CC49: 0 | CD49: 0 | CE49: 0 | CF49: 0 | CG49: 0 | CH49: 0 | CI49: 0 | CJ49: 0 | CK49: 0 | CL49: 0 | CM49: 0 | CN49: 0

Sheet Class. elimin. 2 piores res
A1: 2025 | E1: OK | I1: OK | M1: OK | Q1: OK | U1: OK | Y1: OK | AC1: OK | AG1: OK | AK1: OK | AO1: OK | AS1: OK | AW1: OK
D2: 1ª etapa | H2: 2ª etapa | L2: 3ª etapa | P2: 4ª etapa | T2: 5ª etapa | X2: 6ª etapa | AB2: 7ª etapa | AF2: 8ª etapa | AJ2: 9ª etapa | AN2: 10ª etapa | AR2: 11ª etapa | AV2: 12ª etapa
D3: 2025-02-09 | H3: 2025-02-23 | L3: 2025-03-16 | P3: 2025-04-13 | T3: 2025-05-18 | X3: 2025-06-15 | AB3: 2025-07-13 | AF3: 2025-08-17 | AJ3: 2025-09-14 | AN3: 2025-10-12 | AR3: 2025-11-09 | AV3: 2025-12-07
B4: Nome do (a) Piloto (a) | C4: Pontuação Geral | D4: Posição | E4: Pontos | F4: Bônus | G4: Penalidade | H4: Posição | I4: Pontos | J4: Bônus | K4: Penalidade | L4: Posição | M4: Pontos | N4: Bônus | O4: Penalidade | P4: Posição | Q4: Pontos | R4: Bônus | S4: Penalidade | T4: Posição | U4: Pontos | V4: Bônus | W4: Penalidade | X4: Posição | Y4: Pontos | Z4: Bônus | AA4: Penalidade | AB4: Posição | AC4: Pontos | AD4: Bônus | AE4: Penalidade | AF4: Posição | AG4: Pontos | AH4: Bônus | AI4: Penalidade | AJ4: Posição | AK4: Pontos | AL4: Bônus | AM4: Penalidade | AN4: Posição | AO4: Pontos | AP4: Bônus | AQ4: Penalidade | AR4: Posição | AS4: Pontos | AT4: Bônus | AU4: Penalidade | AV4: Posição | AW4: Pontos | AX4: Bônus | AY4: Penalidade | AZ4: 1º LUGAR | BA4: 2º LUGAR | BB4: 3º LUGAR | BC4: 4º LUGAR | BD4: 5º LUGAR | BE4: 6º LUGAR | BF4: 7º LUGAR | BG4: 8º LUGAR | BH4: 9º LUGAR | BI4: 10º LUGAR | BJ4: 11º LUGAR | BK4: 12º LUGAR | BL4: 13º LUGAR | BM4: 14º LUGAR | BN4: 15º LUGAR | BO4: 16º LUGAR | BP4: 17º LUGAR | BQ4: 18º LUGAR | BR4: 19º LUGAR | BS4: 20º LUGAR | BT4: 21º LUGAR | BU4: 22º LUGAR | BV4: 23º LUGAR | BW4: 24º LUGAR | BX4: 25º LUGAR | BY4: 26º LUGAR | BZ4: 27º LUGAR | CA4: 28º LUGAR | CB4: 29º LUGAR | CC4: 30º LUGAR | CD4: 31º LUGAR | CE4: 32º LUGAR | CF4: 33º LUGAR | CG4: 34º LUGAR | CH4: 35º LUGAR | CI4: 36º LUGAR | CJ4: 37º LUGAR | CK4: 38º LUGAR | CL4: 39º LUGAR | CM4: 40º LUGAR | CN4: 41º LUGAR
A5: 1 | B5: Maria Borges | C5: 147 | D5: 2 | E5: 17 | H5: 2 | I5: 17 | L5: 3 | M5: 15 | N5: 1 | P5: 12 | Q5: 4* | T5: 1 | U5: 20 | X5: 4 | Y5: 13 | AA5: -1 | AB5: 2 | AC5: 17 | AD5: 1 | AE5: -1 | AF5: 2 | AG5: 17 | AJ5: 8 | AK5: 8 | AN5: 7 | AO5: 9 | AQ5: -1 | AR5: 11 | AS5: 5* | AV5: 3 | AW5: 15 | AZ5: 1 | BA5: 4 | BB5: 2 | BC5: 1 | BD5: 0 | BE5: 0 | BF5: 1 | BG5: 1 | BH5: 0 | BI5: 0 | BJ5: 1 | BK5: 1 | BL5: 0 | BM5: 0 | BN5: 0 | BO5: 0 | BP5: 0 | BQ5: 0 | BR5: 0 | BS5: 0 | BT5: 0 | BU5: 0 | BV5: 0 | BW5: 0 | BX5: 0 | BY5: 0 | BZ5: 0 | CA5: 0 | CB5: 0 | CC5: 0 | CD5: 0 | CE5: 0 | CF5: 0 | CG5: 0 | CH5: 0 | CI5: 0 | CJ5: 0 | CK5: 0 | CL5: 0 | CM5: 0 | CN5: 0
A6: 2 | B6: Christofer Laguna | C6: 141 | D6: 4 | E6: 13 | I6: 0* | L6: 1 | M6: 20 | P6: 9 | Q6: 7* | T6: 4 | U6: 13 | X6: 8 | Y6: 8 | AB6: 3 | AC6: 15 | AF6: 1 | AG6: 20 | AH6: 1 | AJ6: 6 | AK6: 10 | AN6: 15 | AO6: 1 | AQ6: SIM | AR6: 1 | AS6: 20 | AU6: -1 | AV6: 1 | AW6: 20 | AX6: 1 | AZ6: 4 | BA6: 0 | BB6: 1 | BC6: 2 | BD6: 0 | BE6: 1 | BF6: 0 | BG6: 1 | BH6: 1 | BI6: 0 | BJ6: 0 | BK6: 0 | BL6: 0 | BM6: 0 | BN6: 1 | BO6: 0 | BP6: 0 | BQ6: 0 | BR6: 0 | BS6: 0 | BT6: 0 | BU6: 0 | BV6: 0 | BW6: 0 | BX6: 0 | BY6: 0 | BZ6: 0 | CA6: 0 | CB6: 0 | CC6: 0 | CD6: 0 | CE6: 0 | CF6: 0 | CG6: 0 | CH6: 0 | CI6: 0 | CJ6: 0 | CK6: 0 | CL6: 0 | CM6: 0 | CN6: 0
A7: 3 | B7: Guilherme Rodrigues | C7: 112 | D7: 11 | E7: 5 | G7: SIM | H7: 3 | I7: 15 | L7: 18 | M7: 1* | Q7: 0* | T7: 9 | U7: 7 | X7: 0 | Y7: 0 | AA7: SIM | AB7: 4 | AC7: 13 | AF7: 5 | AG7: 11 | AJ7: 2 | AK7: 17 | AN7: 2 | AO7: 17 | AR7: 5 | AS7: 11 | AV7: 2 | AW7: 17 | AY7: -1 | AZ7: 0 | BA7: 3 | BB7: 1 | BC7: 1 | BD7: 2 | BE7: 0 | BF7: 0 | BG7: 0 | BH7: 1 | BI7: 0 | BJ7: 1 | BK7: 0 | BL7: 0 | BM7: 0 | BN7: 0 | BO7: 0 | BP7: 0 | BQ7: 1 | BR7: 0 | BS7: 0 | BT7: 0 | BU7: 0 | BV7: 0 | BW7: 0 | BX7: 0 | BY7: 0 | BZ7: 0 | CA7: 0 | CB7: 0 | CC7: 0 | CD7: 0 | CE7: 0 | CF7: 0 | CG7: 0 | CH7: 0 | CI7: 0 | CJ7: 0 | CK7: 0 | CL7: 0 | CM7: 0 | CN7: 0
A8: 4 | B8: Eduardo Vitol | C8: 97 | D8: 7 | E8: 9 | H8: 12 | I8: 4 | J8: 1 | K8: SIM | L8: 11 | M8: 5* | P8: 4 | Q8: 13 | T8: 6 | U8: 10 | X8: 9 | Y8: 7 | AB8: 11 | AC8: 5 | AG8: 0* | AJ8: 5 | AK8: 11 | AN8: 4 | AO8: 13 | AR8: 4 | AS8: 13 | AV8: 5 | AW8: 11 | AZ8: 0 | BA8: 0 | BB8: 0 | BC8: 3 | BD8: 2 | BE8: 1 | BF8: 1 | BG8: 0 | BH8: 1 | BI8: 0 | BJ8: 2 | BK8: 1 | BL8: 0 | BM8: 0 | BN8: 0 | BO8: 0 | BP8: 0 | BQ8: 0 | BR8: 0 | BS8: 0 | BT8: 0 | BU8: 0 | BV8: 0 | BW8: 0 | BX8: 0 | BY8: 0 | BZ8: 0 | CA8: 0 | CB8: 0 | CC8: 0 | CD8: 0 | CE8: 0 | CF8: 0 | CG8: 0 | CH8: 0 | CI8: 0 | CJ8: 0 | CK8: 0 | CL8: 0 | CM8: 0 | CN8: 0
A9: 5 | B9: Léo Dumont | C9: 85 | D9: 1 | E9: 20 | H9: 5 | I9: 11 | L9: 4 | M9: 13 | P9: 1 | Q9: 20 | R9: 1 | T9: 11 | U9: 5 | X9: 21 | Y9: 1 | AB9: 9 | AC9: 7 | AF9: 3 | AG9: 15 | AJ9: 16 | AK9: 1 | AO9: 0* | AQ9: -3 | AS9: 0* | AU9: -3 | AW9: 0 | AY9: -3 | AZ9: 2 | BA9: 0 | BB9: 1 | BC9: 1 | BD9: 1 | BE9: 0 | BF9: 0 | BG9: 0 | BH9: 1 | BI9: 0 | BJ9: 1 | BK9: 0 | BL9: 0 | BM9: 0 | BN9: 0 | BO9: 1 | BP9: 0 | BQ9: 0 | BR9: 0 | BS9: 0 | BT9: 1 | BU9: 0 | BV9: 0 | BW9: 0 | BX9: 0 | BY9: 0 | BZ9: 0 | CA9: 0 | CB9: 0 | CC9: 0 | CD9: 0 | CE9: 0 | CF9: 0 | CG9: 0 | CH9: 0 | CI9: 0 | CJ9: 0 | CK9: 0 | CL9: 0 | CM9: 0 | CN9: 0
A10: 6 | B10: Igor Helmold | C10: 81 | E10: 0* | G10: -3 | I10: 0* | L10: 10 | M10: 6 | P10: 3 | Q10: 15 | T10: 7 | U10: 9 | X10: 6 | Y10: 10 | AB10: 5 | AC10: 11 | AF10: 6 | AG10: 10 | AJ10: 7 | AK10: 9 | AN10: 11 | AO10: 5 | AR10: 6 | AS10: 10 | AW10: 0 | AY10: -1 | AZ10: 0 | BA10: 0 | BB10: 1 | BC10: 0 | BD10: 1 | BE10: 3 | BF10: 2 | BG10: 0 | BH10: 0 | BI10: 1 | BJ10: 1 | BK10: 0 | BL10: 0 | BM10: 0 | BN10: 0 | BO10: 0 | BP10: 0 | BQ10: 0 | BR10: 0 | BS10: 0 | BT10: 0 | BU10: 0 | BV10: 0 | BW10: 0 | BX10: 0 | BY10: 0 | BZ10: 0 | CA10: 0 | CB10: 0 | CC10: 0 | CD10: 0 | CE10: 0 | CF10: 0 | CG10: 0 | CH10: 0 | CI10: 0 | CJ10: 0 | CK10: 0 | CL10: 0 | CM10: 0 | CN10: 0
A11: 7 | B11: Matheus Sarmento | C11: 65 | D11: 9 | E11: 7 | H11: 18 | I11: 1* | L11: 17 | M11: 1* | P11: 17 | Q11: 1 | T11: 8 | U11: 8 | X11: 17 | Y11: 1 | AB11: 10 | AC11: 6 | AF11: 8 | AG11: 8 | AJ11: 13 | AK11: 3 | AM11: -1 | AN11: 6 | AO11: 10 | AR11: 7 | AS11: 9 | AV11: 4 | AW11: 13 | AZ11: 0 | BA11: 0 | BB11: 0 | BC11: 1 | BD11: 0 | BE11: 1 | BF11: 1 | BG11: 2 | BH11: 1 | BI11: 1 | BJ11: 0 | BK11: 0 | BL11: 1 | BM11: 0 | BN11: 0 | BO11: 0 | BP11: 3 | BQ11: 1 | BR11: 0 | BS11: 0 | BT11: 0 | BU11: 0 | BV11: 0 | BW11: 0 | BX11: 0 | BY11: 0 | BZ11: 0 | CA11: 0 | CB11: 0 | CC11: 0 | CD11: 0 | CE11: 0 | CF11: 0 | CG11: 0 | CH11: 0 | CI11: 0 | CJ11: 0 | CK11: 0 | CL11: 0 | CM11: 0 | CN11: 0
A12: 8 | B12: Augusto Lopes | C12: 61 | D12: 0 | E12: 0 | G12: SIM | H12: 34 | I12: 0 | K12: SIM | L12: 13 | M12: 3 | P12: 21 | Q12: 1 | T12: 21 | U12: 1 | V12: 1 | W12: -1 | X12: 19 | Y12: 1 | AB12: 1 | AC12: 20 | AF12: 4 | AG12: 13 | AK12: 0* | AM12: -1 | AN12: 1 | AO12: 20 | AR12: 10 | AS12: 6 | AW12: 0* | AY12: -3 | AZ12: 2 | BA12: 0 | BB12: 0 | BC12: 1 | BD12: 0 | BE12: 0 | BF12: 0 | BG12: 0 | BH12: 0 | BI12: 1 | BJ12: 0 | BK12: 0 | BL12: 1 | BM12: 0 | BN12: 0 | BO12: 0 | BP12: 0 | BQ12: 0 | BR12: 1 | BS12: 0 | BT12: 2 | BU12: 0 | BV12: 0 | BW12: 0 | BX12: 0 | BY12: 0 | BZ12: 0 | CA12: 0 | CB12: 0 | CC12: 0 | CD12: 0 | CE12: 0 | CF12: 0 | CG12: 1 | CH12: 0 | CI12: 0 | CJ12: 0 | CK12: 0 | CL12: 0 | CM12: 0 | CN12: 0
A13: 9 | B13: Reila Ricardo | C13: 60 | D13: 8 | E13: 8 | H13: 10 | I13: 6 | L13: 2 | M13: 17 | P13: 16 | Q13: 1 | T13: 15 | U13: 1 | X13: 0 | Y13: 0 | AA13: SIM | AC13: 0* | AF13: 11 | AG13: 5 | AJ13: 12 | AK13: 4 | AN13: 5 | AO13: 11 | AS13: 0* | AV13: 9 | AW13: 7 | AZ13: 0 | BA13: 1 | BB13: 0 | BC13: 0 | BD13: 1 | BE13: 0 | BF13: 0 | BG13: 1 | BH13: 1 | BI13: 1 | BJ13: 1 | BK13: 1 | BL13: 0 | BM13: 0 | BN13: 1 | BO13: 1 | BP13: 0 | BQ13: 0 | BR13: 0 | BS13: 0 | BT13: 0 | BU13: 0 | BV13: 0 | BW13: 0 | BX13: 0 | BY13: 0 | BZ13: 0 | CA13: 0 | CB13: 0 | CC13: 0 | CD13: 0 | CE13: 0 | CF13: 0 | CG13: 0 | CH13: 0 | CI13: 0 | CJ13: 0 | CK13: 0 | CL13: 0 | CM13: 0 | CN13: 0
A14: 10 | B14: Marcus Brum | C14: 58 | D14: 10 | E14: 6 | H14: 8 | I14: 8 | L14: 14 | M14: 2 | P14: 5 | Q14: 11 | T14: 16 | U14: 1 | Y14: 0* | AA14: -1 | AC14: 0* | AG14: 0 | AJ14: 15 | AK14: 1 | AN14: 3 | AO14: 15 | AR14: 3 | AS14: 15 | AW14: 0 | AZ14: 0 | BA14: 0 | BB14: 2 | BC14: 0 | BD14: 1 | BE14: 0 | BF14: 0 | BG14: 1 | BH14: 0 | BI14: 1 | BJ14: 0 | BK14: 0 | BL14: 0 | BM14: 1 | BN14: 1 | BO14: 1 | BP14: 0 | BQ14: 0 | BR14: 0 | BS14: 0 | BT14: 0 | BU14: 0 | BV14: 0 | BW14: 0 | BX14: 0 | BY14: 0 | BZ14: 0 | CA14: 0 | CB14: 0 | CC14: 0 | CD14: 0 | CE14: 0 | CF14: 0 | CG14: 0 | CH14: 0 | CI14: 0 | CJ14: 0 | CK14: 0 | CL14: 0 | CM14: 0 | CN14: 0
A15: 11 | B15: Leonardo Sousa | C15: 54 | D15: 13 | E15: 3 | H15: 11 | I15: 5 | L15: 20 | M15: 1 | P15: 7 | Q15: 9 | T15: 13 | U15: 3 | X15: 30 | Y15: 1 | AA15: SIM | AC15: 0* | AE15: -3 | AF15: 9 | AG15: 7 | AJ15: 4 | AK15: 13 | AO15: 0* | AR15: 2 | AS15: 17 | AT15: 1 | AW15: 0 | AY15: -3 | AZ15: 0 | BA15: 1 | BB15: 0 | BC15: 1 | BD15: 0 | BE15: 0 | BF15: 1 | BG15: 0 | BH15: 1 | BI15: 0 | BJ15: 1 | BK15: 0 | BL15: 2 | BM15: 0 | BN15: 0 | BO15: 0 | BP15: 0 | BQ15: 0 | BR15: 0 | BS15: 1 | BT15: 0 | BU15: 0 | BV15: 0 | BW15: 0 | BX15: 0 | BY15: 0 | BZ15: 0 | CA15: 0 | CB15: 0 | CC15: 1 | CD15: 0 | CE15: 0 | CF15: 0 | CG15: 0 | CH15: 0 | CI15: 0 | CJ15: 0 | CK15: 0 | CL15: 0 | CM15: 0 | CN15: 0
A16: 12 | B16: Henrique Sarmento | C16: 52 | D16: 18 | E16: 1* | H16: 13 | I16: 3 | L16: 24 | M16: 1* | P16: 15 | Q16: 1 | T16: 5 | U16: 11 | X16: 16 | Y16: 1 | AB16: 8 | AC16: 8 | AF16: 14 | AG16: 2 | AJ16: 14 | AK16: 2 | AN16: 9 | AO16: 7 | AR16: 9 | AS16: 7 | AV16: 6 | AW16: 10 | AZ16: 0 | BA16: 0 | BB16: 0 | BC16: 0 | BD16: 1 | BE16: 1 | BF16: 0 | BG16: 1 | BH16: 2 | BI16: 0 | BJ16: 0 | BK16: 0 | BL16: 1 | BM16: 2 | BN16: 1 | BO16: 1 | BP16: 0 | BQ16: 1 | BR16: 0 | BS16: 0 | BT16: 0 | BU16: 0 | BV16: 0 | BW16: 1 | BX16: 0 | BY16: 0 | BZ16: 0 | CA16: 0 | CB16: 0 | CC16: 0 | CD16: 0 | CE16: 0 | CF16: 0 | CG16: 0 | CH16: 0 | CI16: 0 | CJ16: 0 | CK16: 0 | CL16: 0 | CM16: 0 | CN16: 0
A17: 13 | B17: Ilton Sarmento | C17: 48 | D17: 20 | E17: 1* | H17: 14 | I17: 2 | L17: 16 | M17: 1 | P17: 11 | Q17: 5 | T17: 17 | U17: 1* | X17: 14 | Y17: 2 | AB17: 6 | AC17: 10 | AF17: 7 | AG17: 9 | AJ17: 10 | AK17: 6 | AN17: 10 | AO17: 6 | AR17: 24 | AS17: 1 | AU17: SIM | AV17: 10 | AW17: 6 | AZ17: 0 | BA17: 0 | BB17: 0 | BC17: 0 | BD17: 0 | BE17: 1 | BF17: 1 | BG17: 0 | BH17: 0 | BI17: 3 | BJ17: 1 | BK17: 0 | BL17: 0 | BM17: 2 | BN17: 0 | BO17: 1 | BP17: 1 | BQ17: 0 | BR17: 0 | BS17: 1 | BT17: 0 | BU17: 0 | BV17: 0 | BW17: 1 | BX17: 0 | BY17: 0 | BZ17: 0 | CA17: 0 | CB17: 0 | CC17: 0 | CD17: 0 | CE17: 0 | CF17: 0 | CG17: 0 | CH17: 0 | CI17: 0 | CJ17: 0 | CK17: 0 | CL17: 0 | CM17: 0 | CN17: 0
A18: 14 | B18: Rodrigo Mendonça | C18: 46 | E18: 0* | G18: NÃO | I18: 0* | K18: NÃO | M18: 0 | O18: NÃO | Q18: 0 | S18: NÃO | T18: 2 | U18: 17 | X18: 11 | Y18: 5 | Z18: 1 | AA18: SIM | AB18: 12 | AC18: 4 | AG18: 0 | AI18: -3 | AJ18: 1 | AK18: 20 | AL18: 1 | AO18: 0 | AR18: 12 | AS18: 4 | AW18: 0 | AY18: -3 | AZ18: 1 | BA18: 1 | BB18: 0 | BC18: 0 | BD18: 0 | BE18: 0 | BF18: 0 | BG18: 0 | BH18: 0 | BI18: 0 | BJ18: 1 | BK18: 2 | BL18: 0 | BM18: 0 | BN18: 0 | BO18: 0 | BP18: 0 | BQ18: 0 | BR18: 0 | BS18: 0 | BT18: 0 | BU18: 0 | BV18: 0 | BW18: 0 | BX18: 0 | BY18: 0 | BZ18: 0 | CA18: 0 | CB18: 0 | CC18: 0 | CD18: 0 | CE18: 0 | CF18: 0 | CG18: 0 | CH18: 0 | CI18: 0 | CJ18: 0 | CK18: 0 | CL18: 0 | CM18: 0 | CN18: 0
A19: 15 | B19: Gustavo Reis | C19: 44 | D19: 16 | E19: 1 | I19: 0* | K19: -3 | L19: 9 | M19: 7 | P19: 2 | Q19: 17 | U19: 0* | W19: -3 | X19: 1 | Y19: 20 | AC19: 0 | AE19: -3 | AF19: 12 | AG19: 4 | AK19: 0 | AM19: -1 | AO19: 0 | AR19: 8 | AS19: 8 | AW19: 0 | AY19: -3 | AZ19: 1 | BA19: 1 | BB19: 0 | BC19: 0 | BD19: 0 | BE19: 0 | BF19: 0 | BG19: 1 | BH19: 1 | BI19: 0 | BJ19: 0 | BK19: 1 | BL19: 0 | BM19: 0 | BN19: 0 | BO19: 1 | BP19: 0 | BQ19: 0 | BR19: 0 | BS19: 0 | BT19: 0 | BU19: 0 | BV19: 0 | BW19: 0 | BX19: 0 | BY19: 0 | BZ19: 0 | CA19: 0 | CB19: 0 | CC19: 0 | CD19: 0 | CE19: 0 | CF19: 0 | CG19: 0 | CH19: 0 | CI19: 0 | CJ19: 0 | CK19: 0 | CL19: 0 | CM19: 0 | CN19: 0
A20: 16 | B20: Bruno Botelho | C20: 43 | D20: 21 | E20: 1 | H20: 9 | I20: 7 | L20: 12 | M20: 4 | P20: 8 | Q20: 8 | U20: 0* | X20: 3 | Y20: 15 | AC20: 0* | AG20: 0 | AI20: -1 | AK20: 0 | AN20: 8 | AO20: 8 | AP20: 1 | AS20: 0 | AW20: 0 | AZ20: 0 | BA20: 0 | BB20: 1 | BC20: 0 | BD20: 0 | BE20: 0 | BF20: 0 | BG20: 2 | BH20: 1 | BI20: 0 | BJ20: 0 | BK20: 1 | BL20: 0 | BM20: 0 | BN20: 0 | BO20: 0 | BP20: 0 | BQ20: 0 | BR20: 0 | BS20: 0 | BT20: 1 | BU20: 0 | BV20: 0 | BW20: 0 | BX20: 0 | BY20: 0 | BZ20: 0 | CA20: 0 | CB20: 0 | CC20: 0 | CD20: 0 | CE20: 0 | CF20: 0 | CG20: 0 | CH20: 0 | CI20: 0 | CJ20: 0 | CK20: 0 | CL20: 0 | CM20: 0 | CN20: 0
A21: 17 | B21: Gislei Silva | C21: 41 | D21: 14 | E21: 2 | G21: -1 | H21: 1 | I21: 20 | L21: 7 | M21: 9 | P21: 13 | Q21: 3 | T21: 18 | U21: 1 | X21: 13 | Y21: 3 | AC21: 0* | AG21: 0* | AI21: -3 | AJ21: 9 | AK21: 7 | AN21: 13 | AO21: 3 | AQ21: SIM | AS21: 0 | AW21: 0 | AY21: -3 | AZ21: 1 | BA21: 0 | BB21: 0 | BC21: 0 | BD21: 0 | BE21: 0 | BF21: 1 | BG21: 0 | BH21: 1 | BI21: 0 | BJ21: 0 | BK21: 0 | BL21: 3 | BM21: 1 | BN21: 0 | BO21: 0 | BP21: 0 | BQ21: 1 | BR21: 0 | BS21: 0 | BT21: 0 | BU21: 0 | BV21: 0 | BW21: 0 | BX21: 0 | BY21: 0 | BZ21: 0 | CA21: 0 | CB21: 0 | CC21: 0 | CD21: 0 | CE21: 0 | CF21: 0 | CG21: 0 | CH21: 0 | CI21: 0 | CJ21: 0 | CK21: 0 | CL21: 0 | CM21: 0 | CN21: 0
A22: 18 | B22: Ludving Mendez | C22: 38 | D22: 6 | E22: 10 | H22: 6 | I22: 10 | L22: 5 | M22: 11 | Q22: 0* | T22: 3 | U22: 15 | X22: 20 | Y22: 1 | AC22: 0* | AG22: 0 | AK22: 0 | AO22: 0 | AQ22: -3 | AS22: 0 | AU22: -3 | AW22: 0 | AY22: -3 | AZ22: 0 | BA22: 0 | BB22: 1 | BC22: 0 | BD22: 1 | BE22: 2 | BF22: 0 | BG22: 0 | BH22: 0 | BI22: 0 | BJ22: 0 | BK22: 0 | BL22: 0 | BM22: 0 | BN22: 0 | BO22: 0 | BP22: 0 | BQ22: 0 | BR22: 0 | BS22: 1 | BT22: 0 | BU22: 0 | BV22: 0 | BW22: 0 | BX22: 0 | BY22: 0 | BZ22: 0 | CA22: 0 | CB22: 0 | CC22: 0 | CD22: 0 | CE22: 0 | CF22: 0 | CG22: 0 | CH22: 0 | CI22: 0 | CJ22: 0 | CK22: 0 | CL22: 0 | CM22: 0 | CN22: 0
A23: 19 | B23: Silvano | C23: 37 | E23: 0* | G23: NÃO | I23: 0* | K23: NÃO | M23: 0 | O23: NÃO | Q23: 0 | S23: NÃO | T23: 19 | U23: 1 | X23: 12 | Y23: 4 | AC23: 0 | AF23: 10 | AG23: 6 | AJ23: 3 | AK23: 15 | AO23: 0 | AR23: 13 | AS23: 3 | AV23: 8 | AW23: 8 | AZ23: 0 | BA23: 0 | BB23: 1 | BC23: 0 | BD23: 0 | BE23: 0 | BF23: 0 | BG23: 1 | BH23: 0 | BI23: 1 | BJ23: 0 | BK23: 1 | BL23: 1 | BM23: 0 | BN23: 0 | BO23: 0 | BP23: 0 | BQ23: 0 | BR23: 1 | BS23: 0 | BT23: 0 | BU23: 0 | BV23: 0 | BW23: 0 | BX23: 0 | BY23: 0 | BZ23: 0 | CA23: 0 | CB23: 0 | CC23: 0 | CD23: 0 | CE23: 0 | CF23: 0 | CG23: 0 | CH23: 0 | CI23: 0 | CJ23: 0 | CK23: 0 | CL23: 0 | CM23: 0 | CN23: 0
A24: 20 | B24: Marcelo Almeida | C24: 36 | D24: 5 | E24: 11 | H24: 4 | I24: 13 | L24: 6 | M24: 10 | P24: 10 | Q24: 6 | U24: 0* | Y24: 0* | AA24: -1 | AC24: 0 | AG24: 0 | AK24: 0 | AO24: 0 | AS24: 0 | AW24: 0 | AY24: -3 | AZ24: 0 | BA24: 0 | BB24: 0 | BC24: 1 | BD24: 1 | BE24: 1 | BF24: 0 | BG24: 0 | BH24: 0 | BI24: 1 | BJ24: 0 | BK24: 0 | BL24: 0 | BM24: 0 | BN24: 0 | BO24: 0 | BP24: 0 | BQ24: 0 | BR24: 0 | BS24: 0 | BT24: 0 | BU24: 0 | BV24: 0 | BW24: 0 | BX24: 0 | BY24: 0 | BZ24: 0 | CA24: 0 | CB24: 0 | CC24: 0 | CD24: 0 | CE24: 0 | CF24: 0 | CG24: 0 | CH24: 0 | CI24: 0 | CJ24: 0 | CK24: 0 | CL24: 0 | CM24: 0 | CN24: 0
A25: 21 | B25: Rafael Colen | C25: 33 | E25: 0* | G25: -1 | H25: 15 | I25: 1 | L25: 19 | M25: 1 | P25: 27 | Q25: 1 | S25: SIM | U25: 0* | W25: -3 | X25: 2 | Y25: 17 | AB25: 13 | AC25: 3 | AF25: 13 | AG25: 3 | AJ25: 11 | AK25: 5 | AO25: 0 | AQ25: -3 | AS25: 0 | AV25: 7 | AW25: 9 | AZ25: 0 | BA25: 1 | BB25: 0 | BC25: 0 | BD25: 0 | BE25: 0 | BF25: 1 | BG25: 0 | BH25: 0 | BI25: 0 | BJ25: 1 | BK25: 0 | BL25: 2 | BM25: 0 | BN25: 1 | BO25: 0 | BP25: 0 | BQ25: 0 | BR25: 1 | BS25: 0 | BT25: 0 | BU25: 0 | BV25: 0 | BW25: 0 | BX25: 0 | BY25: 0 | BZ25: 1 | CA25: 0 | CB25: 0 | CC25: 0 | CD25: 0 | CE25: 0 | CF25: 0 | CG25: 0 | CH25: 0 | CI25: 0 | CJ25: 0 | CK25: 0 | CL25: 0 | CM25: 0 | CN25: 0
A26: 22 | B26: Thiago Alves | C26: 18 | E26: 0* | G26: -3 | H26: 7 | I26: 9 | L26: 8 | M26: 8 | P26: 14 | Q26: 2 | T26: 14 | U26: 2 | Y26: 0* | AB26: 7 | AC26: 9 | AG26: 0 | AK26: 0 | AO26: 0 | AQ26: -3 | AS26: 0 | AU26: -3 | AW26: 0 | AY26: -3 | AZ26: 0 | BA26: 0 | BB26: 0 | BC26: 0 | BD26: 0 | BE26: 0 | BF26: 2 | BG26: 1 | BH26: 0 | BI26: 0 | BJ26: 0 | BK26: 0 | BL26: 0 | BM26: 2 | BN26: 0 | BO26: 0 | BP26: 0 | BQ26: 0 | BR26: 0 | BS26: 0 | BT26: 0 | BU26: 0 | BV26: 0 | BW26: 0 | BX26: 0 | BY26: 0 | BZ26: 0 | CA26: 0 | CB26: 0 | CC26: 0 | CD26: 0 | CE26: 0 | CF26: 0 | CG26: 0 | CH26: 0 | CI26: 0 | CJ26: 0 | CK26: 0 | CL26: 0 | CM26: 0 | CN26: 0
A27: 23 | B27: Bernardo Veloso | C27: 10 | D27: 12 | E27: 4 | I27: 0* | L27: 21 | M27: 1 | P27: 20 | Q27: 1 | U27: 0* | X27: 10 | Y27: 6 | AC27: 0 | AG27: 0 | AK27: 0 | AN27: 23 | AO27: 1 | AQ27: SIM | AS27: 0 | AW27: 0 | AY27: -3 | AZ27: 0 | BA27: 0 | BB27: 0 | BC27: 0 | BD27: 0 | BE27: 0 | BF27: 0 | BG27: 0 | BH27: 0 | BI27: 1 | BJ27: 0 | BK27: 1 | BL27: 0 | BM27: 0 | BN27: 0 | BO27: 0 | BP27: 0 | BQ27: 0 | BR27: 0 | BS27: 1 | BT27: 1 | BU27: 0 | BV27: 1 | BW27: 0 | BX27: 0 | BY27: 0 | BZ27: 0 | CA27: 0 | CB27: 0 | CC27: 0 | CD27: 0 | CE27: 0 | CF27: 0 | CG27: 0 | CH27: 0 | CI27: 0 | CJ27: 0 | CK27: 0 | CL27: 0 | CM27: 0 | CN27: 0
A28: 24 | B28: Ronaldo Ribeiro | C28: 6 | D28: 19 | E28: 1 | I28: 0* | M28: 0* | O28: -3 | Q28: 0 | T28: 10 | U28: 6 | W28: -1 | X28: 7 | Y28: 9 | AC28: 0 | AE28: -3 | AG28: 0 | AI28: -3 | AK28: 0 | AO28: 0 | AS28: 0 | AW28: 0 | AZ28: 0 | BA28: 0 | BB28: 0 | BC28: 0 | BD28: 0 | BE28: 0 | BF28: 1 | BG28: 0 | BH28: 0 | BI28: 1 | BJ28: 0 | BK28: 0 | BL28: 0 | BM28: 0 | BN28: 0 | BO28: 0 | BP28: 0 | BQ28: 0 | BR28: 1 | BS28: 0 | BT28: 0 | BU28: 0 | BV28: 0 | BW28: 0 | BX28: 0 | BY28: 0 | BZ28: 0 | CA28: 0 | CB28: 0 | CC28: 0 | CD28: 0 | CE28: 0 | CF28: 0 | CG28: 0 | CH28: 0 | CI28: 0 | CJ28: 0 | CK28: 0 | CL28: 0 | CM28: 0 | CN28: 0
A29: 25 | B29: Will Francino | C29: 3 | D29: 3 | E29: 15 | F29: 1 | I29: 0* | K29: -1 | M29: 0* | Q29: 0 | U29: 0 | Y29: 0 | AC29: 0 | AE29: -3 | AG29: 0 | AI29: -3 | AK29: 0 | AO29: 0 | AS29: 0 | AU29: -3 | AW29: 0 | AY29: -3 | AZ29: 0 | BA29: 0 | BB29: 1 | BC29: 0 | BD29: 0 | BE29: 0 | BF29: 0 | BG29: 0 | BH29: 0 | BI29: 0 | BJ29: 0 | BK29: 0 | BL29: 0 | BM29: 0 | BN29: 0 | BO29: 0 | BP29: 0 | BQ29: 0 | BR29: 0 | BS29: 0 | BT29: 0 | BU29: 0 | BV29: 0 | BW29: 0 | BX29: 0 | BY29: 0 | BZ29: 0 | CA29: 0 | CB29: 0 | CC29: 0 | CD29: 0 | CE29: 0 | CF29: 0 | CG29: 0 | CH29: 0 | CI29: 0 | CJ29: 0 | CK29: 0 | CL29: 0 | CM29: 0 | CN29: 0
A30: 26 | B30: Bruno Gomes | C30: 1 | D30: 15 | E30: 1 | H30: 17 | I30: 1 | L30: 22 | M30: 1 | P30: 18 | Q30: 1 | T30: 12 | U30: 4 | X30: 15 | Y30: 1 | AC30: 0* | AE30: -1 | AG30: 0* | AI30: -3 | AK30: 0 | AM30: -1 | AO30: 0 | AS30: 0 | AW30: 0 | AY30: -3 | AZ30: 0 | BA30: 0 | BB30: 0 | BC30: 0 | BD30: 0 | BE30: 0 | BF30: 0 | BG30: 0 | BH30: 0 | BI30: 0 | BJ30: 0 | BK30: 1 | BL30: 0 | BM30: 0 | BN30: 2 | BO30: 0 | BP30: 1 | BQ30: 1 | BR30: 0 | BS30: 0 | BT30: 0 | BU30: 1 | BV30: 0 | BW30: 0 | BX30: 0 | BY30: 0 | BZ30: 0 | CA30: 0 | CB30: 0 | CC30: 0 | CD30: 0 | CE30: 0 | CF30: 0 | CG30: 0 | CH30: 0 | CI30: 0 | CJ30: 0 | CK30: 0 | CL30: 0 | CM30: 0 | CN30: 0
A31: 27 | B31: Enedson Gomes | C31: 1 | E31: 0* | H31: 16 | I31: 1 | L31: 23 | M31: 1 | P31: 19 | Q31: 1 | S31: -1 | T31: 20 | U31: 1 | X31: 18 | Y31: 1 | AC31: 0* | AG31: 0 | AK31: 0 | AO31: 0 | AS31: 0 | AW31: 0 | AY31: -3 | AZ31: 0 | BA31: 0 | BB31: 0 | BC31: 0 | BD31: 0 | BE31: 0 | BF31: 0 | BG31: 0 | BH31: 0 | BI31: 0 | BJ31: 0 | BK31: 0 | BL31: 0 | BM31: 0 | BN31: 0 | BO31: 1 | BP31: 0 | BQ31: 1 | BR31: 1 | BS31: 1 | BT31: 0 | BU31: 0 | BV31: 1 | BW31: 0 | BX31: 0 | BY31: 0 | BZ31: 0 | CA31: 0 | CB31: 0 | CC31: 0 | CD31: 0 | CE31: 0 | CF31: 0 | CG31: 0 | CH31: 0 | CI31: 0 | CJ31: 0 | CK31: 0 | CL31: 0 | CM31: 0 | CN31: 0
A32: 28 | B32: Francisco Biulchi | C32: 0 | E32: 0* | I32: 0* | M32: 0 | Q32: 0 | U32: 0 | Y32: 0 | AC32: 0 | AG32: 0 | AK32: 0 | AO32: 0 | AS32: 0 | AW32: 0 | AY32: -1 | AZ32: 0 | BA32: 1 | BB32: 0 | BC32: 0 | BD32: 0 | BE32: 1 | BF32: 0 | BG32: 0 | BH32: 0 | BI32: 0 | BJ32: 0 | BK32: 0 | BL32: 0 | BM32: 0 | BN32: 1 | BO32: 0 | BP32: 0 | BQ32: 0 | BR32: 0 | BS32: 0 | BT32: 0 | BU32: 0 | BV32: 0 | BW32: 0 | BX32: 0 | BY32: 0 | BZ32: 0 | CA32: 0 | CB32: 0 | CC32: 0 | CD32: 0 | CE32: 0 | CF32: 0 | CG32: 0 | CH32: 0 | CI32: 0 | CJ32: 0 | CK32: 0 | CL32: 0 | CM32: 0 | CN32: 0
A33: 29 | B33: André Colen | C33: 0 | E33: 0* | G33: NÃO | I33: 0* | K33: NÃO | M33: 0 | O33: NÃO | Q33: 0 | S33: NÃO | U33: 0 | W33: NÃO | X33: 5 | Y33: 11 | AC33: 0 | AE33: -3 | AG33: 0 | AI33: -3 | AK33: 0 | AM33: -3 | AO33: 0 | AQ33: -3 | AS33: 0 | AU33: -3 | AW33: 0 | AY33: -3 | AZ33: 0 | BA33: 0 | BB33: 0 | BC33: 0 | BD33: 1 | BE33: 0 | BF33: 0 | BG33: 0 | BH33: 0 | BI33: 0 | BJ33: 0 | BK33: 0 | BL33: 0 | BM33: 0 | BN33: 0 | BO33: 0 | BP33: 0 | BQ33: 0 | BR33: 0 | BS33: 0 | BT33: 0 | BU33: 0 | BV33: 0 | BW33: 0 | BX33: 0 | BY33: 0 | BZ33: 0 | CA33: 0 | CB33: 0 | CC33: 0 | CD33: 0 | CE33: 0 | CF33: 0 | CG33: 0 | CH33: 0 | CI33: 0 | CJ33: 0 | CK33: 0 | CL33: 0 | CM33: 0 | CN33: 0
A34: 30 | B34: Marcelo Parizzi | C34: 0 | D34: 17 | E34: 1 | I34: 0* | L34: 15 | M34: 1 | P34: 6 | Q34: 10 | U34: 0* | Y34: 0 | AC34: 0 | AG34: 0 | AI34: -3 | AK34: 0 | AM34: -3 | AO34: 0 | AQ34: -3 | AS34: 0 | AU34: -3 | AW34: 0 | AY34: -3 | AZ34: 0 | BA34: 0 | BB34: 0 | BC34: 0 | BD34: 0 | BE34: 1 | BF34: 0 | BG34: 0 | BH34: 0 | BI34: 0 | BJ34: 0 | BK34: 0 | BL34: 0 | BM34: 0 | BN34: 1 | BO34: 0 | BP34: 1 | BQ34: 0 | BR34: 0 | BS34: 0 | BT34: 0 | BU34: 0 | BV34: 0 | BW34: 0 | BX34: 0 | BY34: 0 | BZ34: 0 | CA34: 0 | CB34: 0 | CC34: 0 | CD34: 0 | CE34: 0 | CF34: 0 | CG34: 0 | CH34: 0 | CI34: 0 | CJ34: 0 | CK34: 0 | CL34: 0 | CM34: 0 | CN34: 0
A35: 31 | B35: Celso Dantas | C35: 0 | E35: 0* | G35: -3 | I35: 0* | L35: 25 | M35: 1 | Q35: 0 | S35: -1 | U35: 0 | W35: -3 | Y35: 0 | AC35: 0 | AG35: 0 | AI35: -3 | AK35: 0 | AO35: 0 | AS35: 0 | AW35: 0 | AZ35: 0 | BA35: 0 | BB35: 0 | BC35: 0 | BD35: 0 | BE35: 0 | BF35: 0 | BG35: 0 | BH35: 0 | BI35: 0 | BJ35: 0 | BK35: 0 | BL35: 0 | BM35: 0 | BN35: 0 | BO35: 0 | BP35: 0 | BQ35: 0 | BR35: 0 | BS35: 0 | BT35: 0 | BU35: 0 | BV35: 0 | BW35: 0 | BX35: 1 | BY35: 0 | BZ35: 0 | CA35: 0 | CB35: 0 | CC35: 0 | CD35: 0 | CE35: 0 | CF35: 0 | CG35: 0 | CH35: 0 | CI35: 0 | CJ35: 0 | CK35: 0 | CL35: 0 | CM35: 0 | CN35: 0
A36: 32 | B36: Júnior Torres | C36: 0 | E36: 0* | G36: -3 | I36: 0* | K36: -3 | M36: 0 | O36: -3 | Q36: 0 | S36: -3 | U36: 0 | W36: -3 | Y36: 0 | AA36: -3 | AC36: 0 | AE36: -3 | AG36: 0 | AI36: -3 | AK36: 0 | AM36: -3 | AO36: 0 | AQ36: -3 | AS36: 0 | AU36: -3 | AW36: 0 | AY36: -3 | AZ36: 0 | BA36: 0 | BB36: 0 | BC36: 0 | BD36: 0 | BE36: 0 | BF36: 0 | BG36: 0 | BH36: 0 | BI36: 0 | BJ36: 0 | BK36: 0 | BL36: 0 | BM36: 0 | BN36: 0 | BO36: 0 | BP36: 0 | BQ36: 0 | BR36: 0 | BS36: 0 | BT36: 0 | BU36: 0 | BV36: 0 | BW36: 0 | BX36: 0 | BY36: 0 | BZ36: 0 | CA36: 0 | CB36: 0 | CC36: 0 | CD36: 0 | CE36: 0 | CF36: 0 | CG36: 0 | CH36: 0 | CI36: 0 | CJ36: 0 | CK36: 0 | CL36: 0 | CM36: 0 | CN36: 0
A37: 33 | B37: xxxxx | C37: 0 | E37: 0* | I37: 0* | M37: 0 | Q37: 0 | U37: 0 | Y37: 0 | AC37: 0 | AG37: 0 | AK37: 0 | AO37: 0 | AS37: 0 | AW37: 0 | AZ37: 0 | BA37: 0 | BB37: 0 | BC37: 0 | BD37: 0 | BE37: 0 | BF37: 0 | BG37: 0 | BH37: 0 | BI37: 0 | BJ37: 0 | BK37: 0 | BL37: 0 | BM37: 0 | BN37: 0 | BO37: 0 | BP37: 0 | BQ37: 0 | BR37: 0 | BS37: 0 | BT37: 0 | BU37: 0 | BV37: 0 | BW37: 0 | BX37: 0 | BY37: 0 | BZ37: 0 | CA37: 0 | CB37: 0 | CC37: 0 | CD37: 0 | CE37: 0 | CF37: 0 | CG37: 0 | CH37: 0 | CI37: 0 | CJ37: 0 | CK37: 0 | CL37: 0 | CM37: 0 | CN37: 0
A38: 34 | B38: Marco Rinold | C38: 0 | E38: 0* | G38: -3 | I38: 0* | K38: -3 | M38: 0 | O38: -3 | Q38: 0 | S38: -1 | U38: 0 | W38: -3 | Y38: 0 | AA38: -3 | AC38: 0 | AE38: -3 | AG38: 0 | AI38: -3 | AK38: 0 | AM38: -3 | AO38: 0 | AQ38: -3 | AS38: 0 | AU38: -3 | AW38: 0 | AY38: -3 | AZ38: 0 | BA38: 0 | BB38: 0 | BC38: 0 | BD38: 0 | BE38: 0 | BF38: 0 | BG38: 0 | BH38: 0 | BI38: 0 | BJ38: 0 | BK38: 0 | BL38: 0 | BM38: 0 | BN38: 0 | BO38: 0 | BP38: 0 | BQ38: 0 | BR38: 0 | BS38: 0 | BT38: 0 | BU38: 0 | BV38: 0 | BW38: 0 | BX38: 0 | BY38: 0 | BZ38: 0 | CA38: 0 | CB38: 0 | CC38: 0 | CD38: 0 | CE38: 0 | CF38: 0 | CG38: 0 | CH38: 0 | CI38: 0 | CJ38: 0 | CK38: 0 | CL38: 0 | CM38: 0 | CN38: 0
A39: 35 | B39: Thiago Michatoski | C39: 0 | E39: 0* | G39: -3 | I39: 0* | K39: -3 | M39: 0 | O39: -3 | Q39: 0 | S39: -3 | U39: 0 | W39: -3 | Y39: 0 | AA39: -3 | AC39: 0 | AE39: -3 | AG39: 0 | AI39: -3 | AK39: 0 | AM39: -3 | AO39: 0 | AQ39: -3 | AS39: 0 | AU39: -3 | AW39: 0 | AY39: -3 | AZ39: 0 | BA39: 0 | BB39: 0 | BC39: 0 | BD39: 0 | BE39: 0 | BF39: 0 | BG39: 0 | BH39: 0 | BI39: 0 | BJ39: 0 | BK39: 0 | BL39: 0 | BM39: 0 | BN39: 0 | BO39: 0 | BP39: 0 | BQ39: 0 | BR39: 0 | BS39: 0 | BT39: 0 | BU39: 0 | BV39: 0 | BW39: 0 | BX39: 0 | BY39: 0 | BZ39: 0 | CA39: 0 | CB39: 0 | CC39: 0 | CD39: 0 | CE39: 0 | CF39: 0 | CG39: 0 | CH39: 0 | CI39: 0 | CJ39: 0 | CK39: 0 | CL39: 0 | CM39: 0 | CN39: 0
A40: 36 | C40: 0 | E40: 0 | I40: 0 | M40: 0 | Q40: 0 | U40: 0 | Y40: 0 | AC40: 0 | AG40: 0 | AK40: 0 | AO40: 0 | AS40: 0 | AW40: 0 | AZ40: 0 | BA40: 0 | BB40: 0 | BC40: 0 | BD40: 0 | BE40: 0 | BF40: 0 | BG40: 0 | BH40: 0 | BI40: 0 | BJ40: 0 | BK40: 0 | BL40: 0 | BM40: 0 | BN40: 0 | BO40: 0 | BP40: 0 | BQ40: 0 | BR40: 0 | BS40: 0 | BT40: 0 | BU40: 0 | BV40: 0 | BW40: 0 | BX40: 0 | BY40: 0 | BZ40: 0 | CA40: 0 | CB40: 0 | CC40: 0 | CD40: 0 | CE40: 0 | CF40: 0 | CG40: 0 | CH40: 0 | CI40: 0 | CJ40: 0 | CK40: 0 | CL40: 0 | CM40: 0 | CN40: 0
A41: 37 | C41: 0 | E41: 0 | I41: 0 | M41: 0 | Q41: 0 | U41: 0 | Y41: 0 | AC41: 0 | AG41: 0 | AK41: 0 | AO41: 0 | AS41: 0 | AW41: 0 | AZ41: 0 | BA41: 0 | BB41: 0 | BC41: 0 | BD41: 0 | BE41: 0 | BF41: 0 | BG41: 0 | BH41: 0 | BI41: 0 | BJ41: 0 | BK41: 0 | BL41: 0 | BM41: 0 | BN41: 0 | BO41: 0 | BP41: 0 | BQ41: 0 | BR41: 0 | BS41: 0 | BT41: 0 | BU41: 0 | BV41: 0 | BW41: 0 | BX41: 0 | BY41: 0 | BZ41: 0 | CA41: 0 | CB41: 0 | CC41: 0 | CD41: 0 | CE41: 0 | CF41: 0 | CG41: 0 | CH41: 0 | CI41: 0 | CJ41: 0 | CK41: 0 | CL41: 0 | CM41: 0 | CN41: 0
A42: 38 | C42: 0 | E42: 0 | I42: 0 | M42: 0 | Q42: 0 | U42: 0 | Y42: 0 | AC42: 0 | AG42: 0 | AK42: 0 | AO42: 0 | AS42: 0 | AW42: 0 | AZ42: 0 | BA42: 0 | BB42: 0 | BC42: 0 | BD42: 0 | BE42: 0 | BF42: 0 | BG42: 0 | BH42: 0 | BI42: 0 | BJ42: 0 | BK42: 0 | BL42: 0 | BM42: 0 | BN42: 0 | BO42: 0 | BP42: 0 | BQ42: 0 | BR42: 0 | BS42: 0 | BT42: 0 | BU42: 0 | BV42: 0 | BW42: 0 | BX42: 0 | BY42: 0 | BZ42: 0 | CA42: 0 | CB42: 0 | CC42: 0 | CD42: 0 | CE42: 0 | CF42: 0 | CG42: 0 | CH42: 0 | CI42: 0 | CJ42: 0 | CK42: 0 | CL42: 0 | CM42: 0 | CN42: 0
A43: 39 | C43: 0 | E43: 0 | I43: 0 | M43: 0 | Q43: 0 | U43: 0 | Y43: 0 | AC43: 0 | AG43: 0 | AK43: 0 | AO43: 0 | AS43: 0 | AW43: 0 | AZ43: 0 | BA43: 0 | BB43: 0 | BC43: 0 | BD43: 0 | BE43: 0 | BF43: 0 | BG43: 0 | BH43: 0 | BI43: 0 | BJ43: 0 | BK43: 0 | BL43: 0 | BM43: 0 | BN43: 0 | BO43: 0 | BP43: 0 | BQ43: 0 | BR43: 0 | BS43: 0 | BT43: 0 | BU43: 0 | BV43: 0 | BW43: 0 | BX43: 0 | BY43: 0 | BZ43: 0 | CA43: 0 | CB43: 0 | CC43: 0 | CD43: 0 | CE43: 0 | CF43: 0 | CG43: 0 | CH43: 0 | CI43: 0 | CJ43: 0 | CK43: 0 | CL43: 0 | CM43: 0 | CN43: 0
A44: 40 | C44: 0 | E44: 0 | I44: 0 | M44: 0 | Q44: 0 | U44: 0 | Y44: 0 | AC44: 0 | AG44: 0 | AK44: 0 | AO44: 0 | AS44: 0 | AW44: 0 | AZ44: 0 | BA44: 0 | BB44: 0 | BC44: 0 | BD44: 0 | BE44: 0 | BF44: 0 | BG44: 0 | BH44: 0 | BI44: 0 | BJ44: 0 | BK44: 0 | BL44: 0 | BM44: 0 | BN44: 0 | BO44: 0 | BP44: 0 | BQ44: 0 | BR44: 0 | BS44: 0 | BT44: 0 | BU44: 0 | BV44: 0 | BW44: 0 | BX44: 0 | BY44: 0 | BZ44: 0 | CA44: 0 | CB44: 0 | CC44: 0 | CD44: 0 | CE44: 0 | CF44: 0 | CG44: 0 | CH44: 0 | CI44: 0 | CJ44: 0 | CK44: 0 | CL44: 0 | CM44: 0 | CN44: 0
A45: 41 | C45: 0 | E45: 0 | I45: 0 | M45: 0 | Q45: 0 | U45: 0 | Y45: 0 | AC45: 0 | AG45: 0 | AK45: 0 | AO45: 0 | AS45: 0 | AW45: 0 | AZ45: 0 | BA45: 0 | BB45: 0 | BC45: 0 | BD45: 0 | BE45: 0 | BF45: 0 | BG45: 0 | BH45: 0 | BI45: 0 | BJ45: 0 | BK45: 0 | BL45: 0 | BM45: 0 | BN45: 0 | BO45: 0 | BP45: 0 | BQ45: 0 | BR45: 0 | BS45: 0 | BT45: 0 | BU45: 0 | BV45: 0 | BW45: 0 | BX45: 0 | BY45: 0 | BZ45: 0 | CA45: 0 | CB45: 0 | CC45: 0 | CD45: 0 | CE45: 0 | CF45: 0 | CG45: 0 | CH45: 0 | CI45: 0 | CJ45: 0 | CK45: 0 | CL45: 0 | CM45: 0 | CN45: 0
A46: 42 | C46: 0 | E46: 0 | I46: 0 | M46: 0 | Q46: 0 | U46: 0 | Y46: 0 | AC46: 0 | AG46: 0 | AK46: 0 | AO46: 0 | AS46: 0 | AW46: 0 | AZ46: 0 | BA46: 0 | BB46: 0 | BC46: 0 | BD46: 0 | BE46: 0 | BF46: 0 | BG46: 0 | BH46: 0 | BI46: 0 | BJ46: 0 | BK46: 0 | BL46: 0 | BM46: 0 | BN46: 0 | BO46: 0 | BP46: 0 | BQ46: 0 | BR46: 0 | BS46: 0 | BT46: 0 | BU46: 0 | BV46: 0 | BW46: 0 | BX46: 0 | BY46: 0 | BZ46: 0 | CA46: 0 | CB46: 0 | CC46: 0 | CD46: 0 | CE46: 0 | CF46: 0 | CG46: 0 | CH46: 0 | CI46: 0 | CJ46: 0 | CK46: 0 | CL46: 0 | CM46: 0 | CN46: 0
A47: 43 | C47: 0 | E47: 0 | I47: 0 | M47: 0 | Q47: 0 | U47: 0 | Y47: 0 | AC47: 0 | AG47: 0 | AK47: 0 | AO47: 0 | AS47: 0 | AW47: 0 | AZ47: 0 | BA47: 0 | BB47: 0 | BC47: 0 | BD47: 0 | BE47: 0 | BF47: 0 | BG47: 0 | BH47: 0 | BI47: 0 | BJ47: 0 | BK47: 0 | BL47: 0 | BM47: 0 | BN47: 0 | BO47: 0 | BP47: 0 | BQ47: 0 | BR47: 0 | BS47: 0 | BT47: 0 | BU47: 0 | BV47: 0 | BW47: 0 | BX47: 0 | BY47: 0 | BZ47: 0 | CA47: 0 | CB47: 0 | CC47: 0 | CD47: 0 | CE47: 0 | CF47: 0 | CG47: 0 | CH47: 0 | CI47: 0 | CJ47: 0 | CK47: 0 | CL47: 0 | CM47: 0 | CN47: 0
A48: 44 | C48: 0 | E48: 0 | I48: 0 | M48: 0 | Q48: 0 | U48: 0 | Y48: 0 | AC48: 0 | AG48: 0 | AK48: 0 | AO48: 0 | AS48: 0 | AW48: 0 | AZ48: 0 | BA48: 0 | BB48: 0 | BC48: 0 | BD48: 0 | BE48: 0 | BF48: 0 | BG48: 0 | BH48: 0 | BI48: 0 | BJ48: 0 | BK48: 0 | BL48: 0 | BM48: 0 | BN48: 0 | BO48: 0 | BP48: 0 | BQ48: 0 | BR48: 0 | BS48: 0 | BT48: 0 | BU48: 0 | BV48: 0 | BW48: 0 | BX48: 0 | BY48: 0 | BZ48: 0 | CA48: 0 | CB48: 0 | CC48: 0 | CD48: 0 | CE48: 0 | CF48: 0 | CG48: 0 | CH48: 0 | CI48: 0 | CJ48: 0 | CK48: 0 | CL48: 0 | CM48: 0 | CN48: 0
A49: 45 | C49: 0 | D49: xxx | E49: xxx | F49: xxx | G49: xxx | H49: xxx | I49: xxx | J49: xxx | K49: xxx | L49: xxx | M49: xxx | N49: xxx | O49: xxx | P49: xxx | Q49: xxx | R49: xxx | S49: xxx | T49: xxx | U49: xxx | V49: xxx | W49: xxx | Y49: xxx | Z49: xxx | AA49: xxx | AB49: xxx | AC49: xxx | AD49: xxx | AE49: xxx | AF49: xxx | AG49: xxx | AH49: xxx | AI49: xxx | AJ49: xxx | AK49: xxx | AL49: xxx | AM49: xxx | AN49: xxx | AO49: xxx | AP49: xxx | AQ49: xxx | AR49: xxx | AS49: xxx | AT49: xxx | AU49: xxx | AV49: xxx | AW49: xxx | AX49: xxx | AY49: xxx | AZ49: 0 | BA49: 0 | BB49: 0 | BC49: 0 | BD49: 0 | BE49: 0 | BF49: 0 | BG49: 0 | BH49: 0 | BI49: 0 | BJ49: 0 | BK49: 0 | BL49: 0 | BM49: 0 | BN49: 0 | BO49: 0 | BP49: 0 | BQ49: 0 | BR49: 0 | BS49: 0 | BT49: 0 | BU49: 0 | BV49: 0 | BW49: 0 | BX49: 0 | BY49: 0 | BZ49: 0 | CA49: 0 | CB49: 0 | CC49: 0 | CD49: 0 | CE49: 0 | CF49: 0 | CG49: 0 | CH49: 0 | CI49: 0 | CJ49: 0 | CK49: 0 | CL49: 0 | CM49: 0 | CN49: 0

Sheet Vazia
